Department,Entity,Transaction Date,Expense Type,Expense Area,Supplier,Transaction No.,Amount
"Department for Energy, Security and Net Zero",The Coal Authority,14/03/2024,Training & Education,Board,Oe Cam Llp,179503,378.6
"Department for Energy, Security and Net Zero",The Coal Authority,31/03/2024,Training & Education,Board,Oe Cam Llp,180164,"3,128.90"
"Department for Energy, Security and Net Zero",The Coal Authority,16/05/2024,Training & Education,"Business Planning, Risk & Systems",Azeus UK Limited,180787,"1,685.40"
"Department for Energy, Security and Net Zero",The Coal Authority,17/05/2024,Business Meetings,Colleague & Corporate Engagement,A Class Corporate Travel,181191,799
"Department for Energy, Security and Net Zero",The Coal Authority,09/04/2024,Software Licenses - SaaS,Colleague & Corporate Engagement,Government Procurement Card,181485,600
"Department for Energy, Security and Net Zero",The Coal Authority,15/04/2024,Membership Subscriptions,Colleague & Corporate Engagement,Government Procurement Card,181485,16.18
"Department for Energy, Security and Net Zero",The Coal Authority,23/05/2024,Training & Education,Colleague & Corporate Engagement,Redefining Communications Ltd,181263,"2,000.00"
"Department for Energy, Security and Net Zero",The Coal Authority,22/05/2024,Peripherals / Consumables (MEP),Colleague & Corporate Engagement,Staff Expenses Control,181245,30
"Department for Energy, Security and Net Zero",The Coal Authority,29/04/2024,Staff Events,Colleague & Corporate Engagement,Visair Ltd,181373,"7,139.00"
"Department for Energy, Security and Net Zero",The Coal Authority,15/05/2024,Training & Education,Community Response,Broadcast Media Services Ltd,180957,"3,850.00"
"Department for Energy, Security and Net Zero",The Coal Authority,30/04/2024,Public Relations,Community Response,CYMEN CYFYNGEDIG,179697,35
"Department for Energy, Security and Net Zero",The Coal Authority,28/05/2024,Public Relations,Community Response,David Bell Photography,181300,450
"Department for Energy, Security and Net Zero",The Coal Authority,28/05/2024,Public Relations,Community Response,David Bell Photography,181300,150
"Department for Energy, Security and Net Zero",The Coal Authority,29/05/2024,Public Relations,Community Response,David Bell Photography,181429,400
"Department for Energy, Security and Net Zero",The Coal Authority,29/05/2024,Public Relations,Community Response,David Bell Photography,181429,450
"Department for Energy, Security and Net Zero",The Coal Authority,04/04/2024,Mobiles Phones - Call Charges,Community Response,Government Procurement Card,181485,9.17
"Department for Energy, Security and Net Zero",The Coal Authority,08/04/2024,Public Relations,Community Response,Government Procurement Card,181485,77.23
"Department for Energy, Security and Net Zero",The Coal Authority,10/04/2024,Incidentals,Community Response,Government Procurement Card,181485,5.83
"Department for Energy, Security and Net Zero",The Coal Authority,14/04/2024,Public Relations,Community Response,Government Procurement Card,181485,70.85
"Department for Energy, Security and Net Zero",The Coal Authority,19/04/2024,Public Relations,Community Response,Government Procurement Card,181485,78.93
"Department for Energy, Security and Net Zero",The Coal Authority,23/04/2024,Subsistence Allowances,Community Response,Government Procurement Card,181485,15.42
"Department for Energy, Security and Net Zero",The Coal Authority,23/04/2024,Subsistence Allowances,Community Response,Government Procurement Card,181485,22.46
"Department for Energy, Security and Net Zero",The Coal Authority,23/04/2024,Training & Education,Community Response,Government Procurement Card,181485,124.74
"Department for Energy, Security and Net Zero",The Coal Authority,24/04/2024,Subsistence Allowances,Community Response,Government Procurement Card,181485,24.17
"Department for Energy, Security and Net Zero",The Coal Authority,24/04/2024,Subsistence Allowances,Community Response,Government Procurement Card,181485,21.25
"Department for Energy, Security and Net Zero",The Coal Authority,25/04/2024,Public Relations,Community Response,Government Procurement Card,181485,72.01
"Department for Energy, Security and Net Zero",The Coal Authority,25/04/2024,Subsistence Allowances,Community Response,Government Procurement Card,181485,28.32
"Department for Energy, Security and Net Zero",The Coal Authority,25/04/2024,Subsistence Allowances,Community Response,Government Procurement Card,181485,25.92
"Department for Energy, Security and Net Zero",The Coal Authority,27/04/2024,Software Licenses - SaaS,Community Response,Government Procurement Card,181485,200.4
"Department for Energy, Security and Net Zero",The Coal Authority,30/04/2024,Training & Education,Community Response,Government Procurement Card,181485,60
"Department for Energy, Security and Net Zero",The Coal Authority,01/05/2024,Public Relations,Community Response,Government Procurement Card,181485,78.37
"Department for Energy, Security and Net Zero",The Coal Authority,31/05/2024,Business Publications,Community Response,Government Procurement Card,181517,12.31
"Department for Energy, Security and Net Zero",The Coal Authority,31/05/2024,Fuel (Vehicle),Community Response,Government Procurement Card,181517,23.59
"Department for Energy, Security and Net Zero",The Coal Authority,31/05/2024,Fuel (Vehicle),Community Response,Government Procurement Card,181517,58.34
"Department for Energy, Security and Net Zero",The Coal Authority,31/05/2024,Subsistence Allowances,Community Response,Government Procurement Card,181517,28.15
"Department for Energy, Security and Net Zero",The Coal Authority,31/05/2024,Subsistence Allowances,Community Response,Government Procurement Card,181517,33.33
"Department for Energy, Security and Net Zero",The Coal Authority,31/05/2024,Subsistence Allowances,Community Response,Government Procurement Card,181517,5.71
"Department for Energy, Security and Net Zero",The Coal Authority,31/05/2024,Subsistence Allowances,Community Response,Government Procurement Card,181517,8.05
"Department for Energy, Security and Net Zero",The Coal Authority,31/05/2024,Subsistence Allowances,Community Response,Government Procurement Card,181517,24.17
"Department for Energy, Security and Net Zero",The Coal Authority,31/05/2024,Subsistence Allowances,Community Response,Government Procurement Card,181517,3.59
"Department for Energy, Security and Net Zero",The Coal Authority,31/05/2024,Subsistence Allowances,Community Response,Government Procurement Card,181517,30
"Department for Energy, Security and Net Zero",The Coal Authority,31/05/2024,Subsistence Allowances,Community Response,Government Procurement Card,181517,21.25
"Department for Energy, Security and Net Zero",The Coal Authority,31/05/2024,Subsistence Allowances,Community Response,Government Procurement Card,181517,5.83
"Department for Energy, Security and Net Zero",The Coal Authority,31/05/2024,Subsistence Allowances,Community Response,Government Procurement Card,181517,1.25
"Department for Energy, Security and Net Zero",The Coal Authority,25/03/2024,Public Relations,Community Response,Richard Williams Photographer,180231,550
"Department for Energy, Security and Net Zero",The Coal Authority,30/04/2024,Fares - Public Transport,Customer Services & Strategy,Ace Of Mansfield Ltd,180127,71.94
"Department for Energy, Security and Net Zero",The Coal Authority,30/05/2024,Stationery,Customer Services & Strategy,Banner Group Limited,181502,58.26
"Department for Energy, Security and Net Zero",The Coal Authority,30/05/2024,Stationery,Customer Services & Strategy,Banner Group Limited,181502,118.55
"Department for Energy, Security and Net Zero",The Coal Authority,30/05/2024,Stationery,Customer Services & Strategy,Banner Group Limited,181502,31.94
"Department for Energy, Security and Net Zero",The Coal Authority,30/05/2024,Stationery,Customer Services & Strategy,Banner Group Limited,181502,3.42
"Department for Energy, Security and Net Zero",The Coal Authority,30/05/2024,Stationery,Customer Services & Strategy,Banner Group Limited,181502,22.95
"Department for Energy, Security and Net Zero",The Coal Authority,30/05/2024,Stationery,Customer Services & Strategy,Banner Group Limited,181502,19.4
"Department for Energy, Security and Net Zero",The Coal Authority,30/05/2024,Stationery,Customer Services & Strategy,Banner Group Limited,181502,135.3
"Department for Energy, Security and Net Zero",The Coal Authority,30/05/2024,Stationery,Customer Services & Strategy,Banner Group Limited,181502,20.1
"Department for Energy, Security and Net Zero",The Coal Authority,30/05/2024,Stationery,Customer Services & Strategy,Banner Group Limited,181502,50.25
"Department for Energy, Security and Net Zero",The Coal Authority,30/05/2024,Stationery,Customer Services & Strategy,Banner Group Limited,181502,47.2
"Department for Energy, Security and Net Zero",The Coal Authority,30/05/2024,Stationery,Customer Services & Strategy,Banner Group Limited,181502,9.5
"Department for Energy, Security and Net Zero",The Coal Authority,30/05/2024,Stationery,Customer Services & Strategy,Banner Group Limited,181502,58.26
"Department for Energy, Security and Net Zero",The Coal Authority,26/04/2024,Postage & Couriers,Customer Services & Strategy,FedEx Express UK Transportaion Limited,179775,65.92
"Department for Energy, Security and Net Zero",The Coal Authority,03/05/2024,Postage & Couriers,Customer Services & Strategy,FedEx Express UK Transportaion Limited,180445,61.62
"Department for Energy, Security and Net Zero",The Coal Authority,17/05/2024,Postage & Couriers,Customer Services & Strategy,FedEx Express UK Transportaion Limited,181110,282.69
"Department for Energy, Security and Net Zero",The Coal Authority,23/04/2024,Subsistence Allowances,Customer Services & Strategy,Government Procurement Card,181485,3.5
"Department for Energy, Security and Net Zero",The Coal Authority,24/04/2024,Subsistence Allowances,Customer Services & Strategy,Government Procurement Card,181485,13.7
"Department for Energy, Security and Net Zero",The Coal Authority,25/04/2024,Subsistence Allowances,Customer Services & Strategy,Government Procurement Card,181485,22.87
"Department for Energy, Security and Net Zero",The Coal Authority,26/04/2024,Subsistence Allowances,Customer Services & Strategy,Government Procurement Card,181485,5.92
"Department for Energy, Security and Net Zero",The Coal Authority,31/05/2024,Subsistence Allowances,Customer Services & Strategy,Government Procurement Card,181517,29.85
"Department for Energy, Security and Net Zero",The Coal Authority,01/05/2024,Stationery,Customer Services & Strategy,Imprint,179604,47.24
"Department for Energy, Security and Net Zero",The Coal Authority,01/05/2024,Stationery,Customer Services & Strategy,Imprint,179605,47.24
"Department for Energy, Security and Net Zero",The Coal Authority,02/05/2024,Postage & Couriers,Customer Services & Strategy,Postage By Phone -Pitney Bowes,180288,500
"Department for Energy, Security and Net Zero",The Coal Authority,02/05/2024,Postage & Couriers,Customer Services & Strategy,Postage By Phone -Pitney Bowes,180288,500
"Department for Energy, Security and Net Zero",The Coal Authority,02/05/2024,Postage & Couriers,Customer Services & Strategy,Postage By Phone -Pitney Bowes,180288,31.16
"Department for Energy, Security and Net Zero",The Coal Authority,14/05/2024,Stationery,Customer Services & Strategy,Quadient UK Ltd,180817,150
"Department for Energy, Security and Net Zero",The Coal Authority,30/04/2024,Postage & Couriers,Customer Services & Strategy,Royal Mail Group Plc,180434,100
"Department for Energy, Security and Net Zero",The Coal Authority,23/04/2024,Subsistence Allowances,Customer Services & Strategy,Staff Expenses Control,181245,4
"Department for Energy, Security and Net Zero",The Coal Authority,14/05/2024,Subsistence Allowances,Customer Services & Strategy,Staff Expenses Control,181245,6
"Department for Energy, Security and Net Zero",The Coal Authority,15/05/2024,Postage & Couriers,Customer Services & Strategy,THE MAILING ROOM LTD,181291,721.86
"Department for Energy, Security and Net Zero",The Coal Authority,01/05/2024,eCommerce Commission Charges,Customer Services & Strategy,Worldpay Limited,180128,242.37
"Department for Energy, Security and Net Zero",The Coal Authority,15/05/2024,CY - Non-coal Minewater - Additions,DEFRA LEP Funding,Aecom Infrastructure & Env,181129,0.01
"Department for Energy, Security and Net Zero",The Coal Authority,15/05/2024,CY - Non-coal Minewater - Additions,DEFRA LEP Funding,Aecom Infrastructure & Env,181129,746.98
"Department for Energy, Security and Net Zero",The Coal Authority,15/05/2024,CY - Non-coal Minewater - Additions,DEFRA LEP Funding,Aecom Infrastructure & Env,181129,"2,795.87"
"Department for Energy, Security and Net Zero",The Coal Authority,15/05/2024,CY - Non-coal Minewater - Additions,DEFRA LEP Funding,Aecom Infrastructure & Env,181129,798.49
"Department for Energy, Security and Net Zero",The Coal Authority,15/05/2024,CY - Non-coal Minewater - Additions,DEFRA LEP Funding,Aecom Infrastructure & Env,181129,"2,433.33"
"Department for Energy, Security and Net Zero",The Coal Authority,15/05/2024,CY - Non-coal Minewater - Additions,DEFRA LEP Funding,Aecom Infrastructure & Env,181129,304.66
"Department for Energy, Security and Net Zero",The Coal Authority,15/05/2024,CY - Non-coal Minewater - Additions,DEFRA LEP Funding,Aecom Infrastructure & Env,181129,983.26
"Department for Energy, Security and Net Zero",The Coal Authority,15/05/2024,CY - Non-coal Minewater - Additions,DEFRA LEP Funding,Aecom Infrastructure & Env,181129,499.43
"Department for Energy, Security and Net Zero",The Coal Authority,15/05/2024,CY - Non-coal Minewater - Additions,DEFRA LEP Funding,Aecom Infrastructure & Env,181129,500.02
"Department for Energy, Security and Net Zero",The Coal Authority,15/05/2024,CY - Non-coal Minewater - Additions,DEFRA LEP Funding,Aecom Infrastructure & Env,181129,"2,867.00"
"Department for Energy, Security and Net Zero",The Coal Authority,15/05/2024,CY - Non-coal Minewater - Additions,DEFRA LEP Funding,Aecom Infrastructure & Env,181129,"4,205.04"
"Department for Energy, Security and Net Zero",The Coal Authority,15/05/2024,CY - Non-coal Minewater - Additions,DEFRA LEP Funding,Aecom Infrastructure & Env,181129,575.97
"Department for Energy, Security and Net Zero",The Coal Authority,15/05/2024,CY - Non-coal Minewater - Additions,DEFRA LEP Funding,Aecom Infrastructure & Env,181129,839.05
"Department for Energy, Security and Net Zero",The Coal Authority,15/05/2024,CY - Non-coal Minewater - Additions,DEFRA LEP Funding,Aecom Infrastructure & Env,181129,741.15
"Department for Energy, Security and Net Zero",The Coal Authority,15/05/2024,Minewater Feasibility / Scoping,DEFRA LEP Funding,AECOM Ltd,180722,"4,683.20"
"Department for Energy, Security and Net Zero",The Coal Authority,09/04/2024,Subsidence Pumping Maintenance - Power,DEFRA LEP Funding,Edf Energy,180031,653.3
"Department for Energy, Security and Net Zero",The Coal Authority,07/05/2024,Subsidence Pumping Maintenance - Power,DEFRA LEP Funding,Edf Energy,181389,"2,128.07"
"Department for Energy, Security and Net Zero",The Coal Authority,30/05/2024,Subsidence Pumping Maintenance - Power,DEFRA LEP Funding,Edf Energy,181407,-653.3
"Department for Energy, Security and Net Zero",The Coal Authority,24/04/2024,Minewater Discharge Consents,DEFRA LEP Funding,Environment Agency,179962,"5,599.00"
"Department for Energy, Security and Net Zero",The Coal Authority,05/04/2024,Fuel (Vehicle),DEFRA LEP Funding,Government Procurement Card,181485,30.18
"Department for Energy, Security and Net Zero",The Coal Authority,08/04/2024,Subsistence Allowances,DEFRA LEP Funding,Government Procurement Card,181485,17.76
"Department for Energy, Security and Net Zero",The Coal Authority,09/04/2024,Subsistence Allowances,DEFRA LEP Funding,Government Procurement Card,181485,3.92
"Department for Energy, Security and Net Zero",The Coal Authority,09/04/2024,Subsistence Allowances,DEFRA LEP Funding,Government Procurement Card,181485,2.46
"Department for Energy, Security and Net Zero",The Coal Authority,09/04/2024,Subsistence Allowances,DEFRA LEP Funding,Government Procurement Card,181485,8.92
"Department for Energy, Security and Net Zero",The Coal Authority,09/04/2024,Subsistence Allowances,DEFRA LEP Funding,Government Procurement Card,181485,5.45
"Department for Energy, Security and Net Zero",The Coal Authority,09/04/2024,Subsistence Allowances,DEFRA LEP Funding,Government Procurement Card,181485,28.79
"Department for Energy, Security and Net Zero",The Coal Authority,10/04/2024,Fuel (Vehicle),DEFRA LEP Funding,Government Procurement Card,181485,17.59
"Department for Energy, Security and Net Zero",The Coal Authority,10/04/2024,Subsistence Allowances,DEFRA LEP Funding,Government Procurement Card,181485,19.13
"Department for Energy, Security and Net Zero",The Coal Authority,10/04/2024,Subsistence Allowances,DEFRA LEP Funding,Government Procurement Card,181485,19.12
"Department for Energy, Security and Net Zero",The Coal Authority,10/04/2024,Subsistence Allowances,DEFRA LEP Funding,Government Procurement Card,181485,5.5
"Department for Energy, Security and Net Zero",The Coal Authority,10/04/2024,Subsistence Allowances,DEFRA LEP Funding,Government Procurement Card,181485,4.58
"Department for Energy, Security and Net Zero",The Coal Authority,11/04/2024,Hotel & Accommodation,DEFRA LEP Funding,Government Procurement Card,181485,170
"Department for Energy, Security and Net Zero",The Coal Authority,11/04/2024,Subsistence Allowances,DEFRA LEP Funding,Government Procurement Card,181485,6
"Department for Energy, Security and Net Zero",The Coal Authority,11/04/2024,Subsistence Allowances,DEFRA LEP Funding,Government Procurement Card,181485,3.46
"Department for Energy, Security and Net Zero",The Coal Authority,25/04/2024,Subsistence Allowances,DEFRA LEP Funding,Government Procurement Card,181485,2.75
"Department for Energy, Security and Net Zero",The Coal Authority,25/04/2024,Subsistence Allowances,DEFRA LEP Funding,Government Procurement Card,181485,14.12
"Department for Energy, Security and Net Zero",The Coal Authority,25/04/2024,Subsistence Allowances,DEFRA LEP Funding,Government Procurement Card,181485,12.34
"Department for Energy, Security and Net Zero",The Coal Authority,14/05/2024,CY - Non-coal Minewater - Additions,DEFRA LEP Funding,Compensation Payment,180667,"5,400.00"
"Department for Energy, Security and Net Zero",The Coal Authority,11/04/2024,Subsistence Allowances,DEFRA LEP Funding,Staff Expenses Control,179989,2.53
"Department for Energy, Security and Net Zero",The Coal Authority,12/04/2024,Fuel (Vehicle),DEFRA LEP Funding,Staff Expenses Control,179989,45.08
"Department for Energy, Security and Net Zero",The Coal Authority,24/04/2024,Mileage Payments,DEFRA LEP Funding,Staff Expenses Control,179989,42.75
"Department for Energy, Security and Net Zero",The Coal Authority,25/04/2024,Mileage Payments,DEFRA LEP Funding,Staff Expenses Control,179989,8.49
"Department for Energy, Security and Net Zero",The Coal Authority,25/04/2024,Mileage Payments,DEFRA LEP Funding,Staff Expenses Control,179989,55.8
"Department for Energy, Security and Net Zero",The Coal Authority,25/04/2024,Subsistence Allowances,DEFRA LEP Funding,Staff Expenses Control,179989,11.35
"Department for Energy, Security and Net Zero",The Coal Authority,30/04/2024,Incidentals,DEFRA LEP Funding,Staff Expenses Control,179989,2.12
"Department for Energy, Security and Net Zero",The Coal Authority,30/04/2024,Mileage Payments,DEFRA LEP Funding,Staff Expenses Control,179989,60.75
"Department for Energy, Security and Net Zero",The Coal Authority,30/04/2024,Mileage Payments,DEFRA LEP Funding,Staff Expenses Control,179989,58.05
"Department for Energy, Security and Net Zero",The Coal Authority,30/04/2024,Subsistence Allowances,DEFRA LEP Funding,Staff Expenses Control,179989,13.5
"Department for Energy, Security and Net Zero",The Coal Authority,23/04/2024,Stationery,DEFRA LEP Funding,Staff Expenses Control,180470,120
"Department for Energy, Security and Net Zero",The Coal Authority,23/04/2024,Stationery,DEFRA LEP Funding,Staff Expenses Control,180470,120
"Department for Energy, Security and Net Zero",The Coal Authority,23/04/2024,Stationery,DEFRA LEP Funding,Staff Expenses Control,180470,120
"Department for Energy, Security and Net Zero",The Coal Authority,16/05/2024,Mileage Payments,DEFRA LEP Funding,Staff Expenses Control,181245,45.9
"Department for Energy, Security and Net Zero",The Coal Authority,17/05/2024,Mileage Payments,DEFRA LEP Funding,Staff Expenses Control,181245,8.5
"Department for Energy, Security and Net Zero",The Coal Authority,17/05/2024,Mileage Payments,DEFRA LEP Funding,Staff Expenses Control,181245,55.8
"Department for Energy, Security and Net Zero",The Coal Authority,17/05/2024,Subsistence Allowances,DEFRA LEP Funding,Staff Expenses Control,181245,22.67
"Department for Energy, Security and Net Zero",The Coal Authority,25/04/2024,CY - Non-coal Minewater - Additions,DEFRA LEP Funding,Turner and Townsend Project Management Ltd.,179491,"1,126.46"
"Department for Energy, Security and Net Zero",The Coal Authority,26/03/2024,CY - Non-coal Minewater - Additions,DEFRA LEP Funding,Wardell Armstrong LLP,180608,560
"Department for Energy, Security and Net Zero",The Coal Authority,10/05/2024,CY - Non-coal Minewater - Additions,DEFRA Metal Mine Programme,AECOM Ltd,180555,"1,000.00"
"Department for Energy, Security and Net Zero",The Coal Authority,10/05/2024,CY - Non-coal Minewater - Additions,DEFRA Metal Mine Programme,AECOM Ltd,180555,"1,000.00"
"Department for Energy, Security and Net Zero",The Coal Authority,10/05/2024,CY - Non-coal Minewater - Additions,DEFRA Metal Mine Programme,AECOM Ltd,180555,"1,000.00"
"Department for Energy, Security and Net Zero",The Coal Authority,10/05/2024,CY - Non-coal Minewater - Additions,DEFRA Metal Mine Programme,AECOM Ltd,180555,"1,000.00"
"Department for Energy, Security and Net Zero",The Coal Authority,14/05/2024,Research & Development (Non BEIS Funded),DEFRA Metal Mine Programme,Alliance Contracting Solutions Ltd,180605,783.68
"Department for Energy, Security and Net Zero",The Coal Authority,25/03/2024,Legal - General,DEFRA Metal Mine Programme,Browne Jacobson Llp Client Account,179543,192.8
"Department for Energy, Security and Net Zero",The Coal Authority,01/05/2024,Minewater Rent,DEFRA Metal Mine Programme,Brownfield Investments Ltd,180456,360
"Department for Energy, Security and Net Zero",The Coal Authority,01/05/2024,Minewater Rent,DEFRA Metal Mine Programme,Brownfield Investments Ltd,180456,"25,354.52"
"Department for Energy, Security and Net Zero",The Coal Authority,09/04/2024,Minewater Power Costs,DEFRA Metal Mine Programme,Edf Energy,180031,"107,213.33"
"Department for Energy, Security and Net Zero",The Coal Authority,09/04/2024,Minewater Power Costs,DEFRA Metal Mine Programme,Edf Energy,180031,"3,627.96"
"Department for Energy, Security and Net Zero",The Coal Authority,01/05/2024,Minewater Power Costs,DEFRA Metal Mine Programme,Edf Energy,180574,736.27
"Department for Energy, Security and Net Zero",The Coal Authority,09/04/2024,Minewater Power Costs,DEFRA Metal Mine Programme,Edf Energy,180599,607.19
"Department for Energy, Security and Net Zero",The Coal Authority,14/05/2024,Minewater Power Costs,DEFRA Metal Mine Programme,Edf Energy,180600,-603.02
"Department for Energy, Security and Net Zero",The Coal Authority,09/04/2024,Minewater Power Costs,DEFRA Metal Mine Programme,Edf Energy,180601,652.95
"Department for Energy, Security and Net Zero",The Coal Authority,14/05/2024,Minewater Power Costs,DEFRA Metal Mine Programme,Edf Energy,180602,-652.95
"Department for Energy, Security and Net Zero",The Coal Authority,26/04/2024,Minewater Power Costs,DEFRA Metal Mine Programme,Edf Energy,180683,657.02
"Department for Energy, Security and Net Zero",The Coal Authority,07/05/2024,Minewater Power Costs,DEFRA Metal Mine Programme,Edf Energy,181389,"99,243.06"
"Department for Energy, Security and Net Zero",The Coal Authority,07/05/2024,Minewater Power Costs,DEFRA Metal Mine Programme,Edf Energy,181389,"3,422.87"
"Department for Energy, Security and Net Zero",The Coal Authority,30/05/2024,Minewater Power Costs,DEFRA Metal Mine Programme,Edf Energy,181481,-736.27
"Department for Energy, Security and Net Zero",The Coal Authority,26/05/2024,Minewater Power Costs,DEFRA Metal Mine Programme,Edf Energy,181516,734.52
"Department for Energy, Security and Net Zero",The Coal Authority,26/04/2024,Minewater Sampling - 'Non-operational' Sites,DEFRA Metal Mine Programme,Enitial Limited,179673,225
"Department for Energy, Security and Net Zero",The Coal Authority,26/04/2024,Minewater Sampling - 'Non-operational' Sites,DEFRA Metal Mine Programme,Enitial Limited,179674,225
"Department for Energy, Security and Net Zero",The Coal Authority,24/04/2024,Minewater Discharge Consents,DEFRA Metal Mine Programme,Environment Agency,179963,"1,686.00"
"Department for Energy, Security and Net Zero",The Coal Authority,24/04/2024,Minewater Discharge Consents,DEFRA Metal Mine Programme,Environment Agency,180484,"1,686.00"
"Department for Energy, Security and Net Zero",The Coal Authority,04/04/2024,Fuel (Vehicle),DEFRA Metal Mine Programme,Government Procurement Card,181485,37.63
"Department for Energy, Security and Net Zero",The Coal Authority,04/04/2024,Subsistence Allowances,DEFRA Metal Mine Programme,Government Procurement Card,181485,18.29
"Department for Energy, Security and Net Zero",The Coal Authority,04/04/2024,Subsistence Allowances,DEFRA Metal Mine Programme,Government Procurement Card,181485,3.57
"Department for Energy, Security and Net Zero",The Coal Authority,08/04/2024,Subsistence Allowances,DEFRA Metal Mine Programme,Government Procurement Card,181485,3.33
"Department for Energy, Security and Net Zero",The Coal Authority,08/04/2024,Subsistence Allowances,DEFRA Metal Mine Programme,Government Procurement Card,181485,6.8
"Department for Energy, Security and Net Zero",The Coal Authority,08/04/2024,Subsistence Allowances,DEFRA Metal Mine Programme,Government Procurement Card,181485,18.35
"Department for Energy, Security and Net Zero",The Coal Authority,10/04/2024,Fuel (Vehicle),DEFRA Metal Mine Programme,Government Procurement Card,181485,33.79
"Department for Energy, Security and Net Zero",The Coal Authority,10/04/2024,Subsistence Allowances,DEFRA Metal Mine Programme,Government Procurement Card,181485,5
"Department for Energy, Security and Net Zero",The Coal Authority,11/04/2024,Fuel (Vehicle),DEFRA Metal Mine Programme,Government Procurement Card,181485,45.03
"Department for Energy, Security and Net Zero",The Coal Authority,18/04/2024,Fuel (Vehicle),DEFRA Metal Mine Programme,Government Procurement Card,181485,16.31
"Department for Energy, Security and Net Zero",The Coal Authority,19/04/2024,Subsistence Allowances,DEFRA Metal Mine Programme,Government Procurement Card,181485,6.15
"Department for Energy, Security and Net Zero",The Coal Authority,20/04/2024,Fuel (Vehicle),DEFRA Metal Mine Programme,Government Procurement Card,181485,41.42
"Department for Energy, Security and Net Zero",The Coal Authority,23/04/2024,Mobile Equipment,DEFRA Metal Mine Programme,Government Procurement Card,181485,21.57
"Department for Energy, Security and Net Zero",The Coal Authority,24/04/2024,Fuel (Vehicle),DEFRA Metal Mine Programme,Government Procurement Card,181485,45.65
"Department for Energy, Security and Net Zero",The Coal Authority,24/04/2024,Subsistence Allowances,DEFRA Metal Mine Programme,Government Procurement Card,181485,2.62
"Department for Energy, Security and Net Zero",The Coal Authority,24/04/2024,Subsistence Allowances,DEFRA Metal Mine Programme,Government Procurement Card,181485,2.63
"Department for Energy, Security and Net Zero",The Coal Authority,20/05/2024,Minewater Feasibility / Scoping,DEFRA Metal Mine Programme,Hydro International Data Insight & Analysis Ltd,181239,"1,055.65"
"Department for Energy, Security and Net Zero",The Coal Authority,08/05/2024,CY - Minewater Scheme - Additions,DEFRA Metal Mine Programme,John F Hunt Regeneration Ltd,180265,"7,716.45"
"Department for Energy, Security and Net Zero",The Coal Authority,08/05/2024,Minewater Chemicals - Operational Sites,DEFRA Metal Mine Programme,John F Hunt Regeneration Ltd,180265,"28,908.20"
"Department for Energy, Security and Net Zero",The Coal Authority,08/05/2024,Minewater Contractor Add. Task Order - Ops Site,DEFRA Metal Mine Programme,John F Hunt Regeneration Ltd,180265,206.68
"Department for Energy, Security and Net Zero",The Coal Authority,08/05/2024,Minewater Contractor Maint. Visits - Ops Site,DEFRA Metal Mine Programme,John F Hunt Regeneration Ltd,180265,"39,602.90"
"Department for Energy, Security and Net Zero",The Coal Authority,08/05/2024,Minewater Management Fees,DEFRA Metal Mine Programme,John F Hunt Regeneration Ltd,180265,"53,052.19"
"Department for Energy, Security and Net Zero",The Coal Authority,08/05/2024,Minewater Sampling - Operational Sites,DEFRA Metal Mine Programme,John F Hunt Regeneration Ltd,180265,"4,911.45"
"Department for Energy, Security and Net Zero",The Coal Authority,20/05/2024,Minewater Land Option / Access Payments,DEFRA Metal Mine Programme,Compensation Payment,181038,"5,000.00"
"Department for Energy, Security and Net Zero",The Coal Authority,09/05/2024,CY - Non-coal Minewater - Additions,DEFRA Metal Mine Programme,Severn Trent Serv Ops Uk Ltd,180255,-877.43
"Department for Energy, Security and Net Zero",The Coal Authority,09/05/2024,Minewater Sampling - 'Non-operational' Sites,DEFRA Metal Mine Programme,Socotec UK Limited,180589,177.86
"Department for Energy, Security and Net Zero",The Coal Authority,10/04/2024,Mileage Payments,DEFRA Metal Mine Programme,Staff Expenses Control,179989,18.2
"Department for Energy, Security and Net Zero",The Coal Authority,10/04/2024,Mileage Payments,DEFRA Metal Mine Programme,Staff Expenses Control,179989,18.67
"Department for Energy, Security and Net Zero",The Coal Authority,10/04/2024,Mileage Payments,DEFRA Metal Mine Programme,Staff Expenses Control,179989,5.61
"Department for Energy, Security and Net Zero",The Coal Authority,10/04/2024,Mileage Payments,DEFRA Metal Mine Programme,Staff Expenses Control,179989,5.79
"Department for Energy, Security and Net Zero",The Coal Authority,10/04/2024,Subsistence Allowances,DEFRA Metal Mine Programme,Staff Expenses Control,179989,6
"Department for Energy, Security and Net Zero",The Coal Authority,10/04/2024,Subsistence Allowances,DEFRA Metal Mine Programme,Staff Expenses Control,179989,3.5
"Department for Energy, Security and Net Zero",The Coal Authority,10/04/2024,Subsistence Allowances,DEFRA Metal Mine Programme,Staff Expenses Control,179989,16
"Department for Energy, Security and Net Zero",The Coal Authority,12/04/2024,Mileage Payments,DEFRA Metal Mine Programme,Staff Expenses Control,179989,23.66
"Department for Energy, Security and Net Zero",The Coal Authority,12/04/2024,Mileage Payments,DEFRA Metal Mine Programme,Staff Expenses Control,179989,23.75
"Department for Energy, Security and Net Zero",The Coal Authority,12/04/2024,Subsistence Allowances,DEFRA Metal Mine Programme,Staff Expenses Control,179989,4.17
"Department for Energy, Security and Net Zero",The Coal Authority,23/04/2024,Stationery,DEFRA Metal Mine Programme,Staff Expenses Control,180470,120
"Department for Energy, Security and Net Zero",The Coal Authority,23/04/2024,Stationery,DEFRA Metal Mine Programme,Staff Expenses Control,180470,120
"Department for Energy, Security and Net Zero",The Coal Authority,02/05/2024,Mileage Payments,DEFRA Metal Mine Programme,Staff Expenses Control,180470,18.2
"Department for Energy, Security and Net Zero",The Coal Authority,02/05/2024,Mileage Payments,DEFRA Metal Mine Programme,Staff Expenses Control,180470,18.67
"Department for Energy, Security and Net Zero",The Coal Authority,02/05/2024,Mileage Payments,DEFRA Metal Mine Programme,Staff Expenses Control,180470,5.61
"Department for Energy, Security and Net Zero",The Coal Authority,02/05/2024,Mileage Payments,DEFRA Metal Mine Programme,Staff Expenses Control,180470,5.8
"Department for Energy, Security and Net Zero",The Coal Authority,07/05/2024,Mileage Payments,DEFRA Metal Mine Programme,Staff Expenses Control,180470,5.79
"Department for Energy, Security and Net Zero",The Coal Authority,07/05/2024,Mileage Payments,DEFRA Metal Mine Programme,Staff Expenses Control,180470,18.21
"Department for Energy, Security and Net Zero",The Coal Authority,07/05/2024,Mileage Payments,DEFRA Metal Mine Programme,Staff Expenses Control,180470,18.66
"Department for Energy, Security and Net Zero",The Coal Authority,07/05/2024,Mileage Payments,DEFRA Metal Mine Programme,Staff Expenses Control,180470,5.62
"Department for Energy, Security and Net Zero",The Coal Authority,09/04/2024,Subsistence Allowances,DEFRA Metal Mine Programme,Staff Expenses Control,181245,23.9
"Department for Energy, Security and Net Zero",The Coal Authority,30/04/2024,CY - Non-coal Minewater - Additions,DEFRA Metal Mine Programme,Wear Rivers Trust,179791,"1,267.00"
"Department for Energy, Security and Net Zero",The Coal Authority,30/04/2024,Research & Development (Non BEIS Funded),DEFRA Metal Mine Programme,Wear Rivers Trust,180603,"1,041.16"
"Department for Energy, Security and Net Zero",The Coal Authority,30/04/2024,Minewater Power Costs,DEFRA Metal Mine Programme,Wheal Jane Ltd,180204,"5,908.04"
"Department for Energy, Security and Net Zero",The Coal Authority,24/04/2024,Minewater Discharge Consents,DEFRA Metal Mine Programme,Wheal Jane Ltd,180205,"1,479.00"
"Department for Energy, Security and Net Zero",The Coal Authority,30/04/2024,Minewater Sludge Disposal,DEFRA Metal Mine Programme,Wheal Jane Ltd,180636,"44,538.66"
"Department for Energy, Security and Net Zero",The Coal Authority,10/05/2024,Property Site Maintenance,DEV - Historic Property Liabilities,Japanese Knotweed Elimination Ltd,180628,"1,578.00"
"Department for Energy, Security and Net Zero",The Coal Authority,03/04/2024,Subsistence Allowances,DEV - Licensing,Government Procurement Card,181485,19.98
"Department for Energy, Security and Net Zero",The Coal Authority,23/04/2024,Incidentals,DEV - Licensing,Government Procurement Card,181485,20.83
"Department for Energy, Security and Net Zero",The Coal Authority,24/04/2024,Fuel (Vehicle),DEV - Licensing,Government Procurement Card,181485,48.06
"Department for Energy, Security and Net Zero",The Coal Authority,24/04/2024,Subsistence Allowances,DEV - Licensing,Government Procurement Card,181485,8.04
"Department for Energy, Security and Net Zero",The Coal Authority,03/05/2024,Incidentals,DEV - Licensing,Staff Expenses Control,180470,5.5
"Department for Energy, Security and Net Zero",The Coal Authority,15/05/2024,Consultancy-Legacy Mine Workings,DEV - Licensing,UKRI as represented by the British Geological Surv,180746,-0.02
"Department for Energy, Security and Net Zero",The Coal Authority,31/05/2024,Subsistence Allowances,DEV - Management,Government Procurement Card,181517,32.3
"Department for Energy, Security and Net Zero",The Coal Authority,07/05/2024,Consultancy-Legacy Mine Workings,DEV - Mine Heat Licensing,3V GEOMATICS INC.,180367,"1,944.45"
"Department for Energy, Security and Net Zero",The Coal Authority,23/04/2024,Fares - Public Transport,DEV - Mine Heat Licensing,Government Procurement Card,181485,12.98
"Department for Energy, Security and Net Zero",The Coal Authority,23/04/2024,Subsistence Allowances,DEV - Mine Heat Licensing,Government Procurement Card,181485,20.17
"Department for Energy, Security and Net Zero",The Coal Authority,24/04/2024,Subsistence Allowances,DEV - Mine Heat Licensing,Government Procurement Card,181485,26.17
"Department for Energy, Security and Net Zero",The Coal Authority,24/04/2024,Subsistence Allowances,DEV - Mine Heat Licensing,Government Procurement Card,181485,20
"Department for Energy, Security and Net Zero",The Coal Authority,24/04/2024,Training & Education,DEV - Mine Heat Licensing,Government Procurement Card,181485,54.88
"Department for Energy, Security and Net Zero",The Coal Authority,25/04/2024,Subsistence Allowances,DEV - Mine Heat Licensing,Government Procurement Card,181485,4.99
"Department for Energy, Security and Net Zero",The Coal Authority,31/05/2024,Fuel (Vehicle),DEV - Mine Heat Licensing,Government Procurement Card,181517,50.02
"Department for Energy, Security and Net Zero",The Coal Authority,31/05/2024,Subsistence Allowances,DEV - Mine Heat Licensing,Government Procurement Card,181517,5.5
"Department for Energy, Security and Net Zero",The Coal Authority,31/05/2024,Subsistence Allowances,DEV - Mine Heat Licensing,Government Procurement Card,181517,5.5
"Department for Energy, Security and Net Zero",The Coal Authority,31/05/2024,Subsistence Allowances,DEV - Mine Heat Licensing,Government Procurement Card,181517,22.7
"Department for Energy, Security and Net Zero",The Coal Authority,31/05/2024,Subsistence Allowances,DEV - Mine Heat Licensing,Government Procurement Card,181517,1.5
"Department for Energy, Security and Net Zero",The Coal Authority,31/05/2024,Training & Education,DEV - Mine Heat Licensing,Government Procurement Card,181517,54.88
"Department for Energy, Security and Net Zero",The Coal Authority,03/04/2024,Subsistence Allowances,DEV - Permissions,Government Procurement Card,181485,15.33
"Department for Energy, Security and Net Zero",The Coal Authority,31/05/2024,Staff Events,DEV - Permissions,Government Procurement Card,181517,21.45
"Department for Energy, Security and Net Zero",The Coal Authority,31/05/2024,Subsistence Allowances,DEV - Permissions,Government Procurement Card,181517,28.95
"Department for Energy, Security and Net Zero",The Coal Authority,31/05/2024,Subsistence Allowances,DEV - Permissions,Government Procurement Card,181517,22.2
"Department for Energy, Security and Net Zero",The Coal Authority,31/05/2024,Subsistence Allowances,DEV - Permissions,Government Procurement Card,181517,20.75
"Department for Energy, Security and Net Zero",The Coal Authority,31/05/2024,Subsistence Allowances,DEV - Permissions,Government Procurement Card,181517,3.75
"Department for Energy, Security and Net Zero",The Coal Authority,31/05/2024,Sundry Office Expenses,DEV - Permissions,Government Procurement Card,181517,55
"Department for Energy, Security and Net Zero",The Coal Authority,31/05/2024,Sundry Office Expenses,DEV - Permissions,Government Procurement Card,181517,416.67
"Department for Energy, Security and Net Zero",The Coal Authority,31/05/2024,Sundry Office Expenses,DEV - Permissions,Government Procurement Card,181517,283.33
"Department for Energy, Security and Net Zero",The Coal Authority,04/03/2024,Fares - Public Transport,DEV - Permissions,Staff Expenses Control,180470,10.92
"Department for Energy, Security and Net Zero",The Coal Authority,05/03/2024,Fares - Public Transport,DEV - Permissions,Staff Expenses Control,180470,9.97
"Department for Energy, Security and Net Zero",The Coal Authority,30/04/2024,eCommerce Commission Charges,DEV - Permissions,Worldpay,181183,795.17
"Department for Energy, Security and Net Zero",The Coal Authority,30/04/2024,eCommerce Commission Charges,DEV - Permissions,Worldpay,181183,44
"Department for Energy, Security and Net Zero",The Coal Authority,01/05/2024,eCommerce Commission Charges,DEV - Permissions,Worldpay Limited,181218,8.34
"Department for Energy, Security and Net Zero",The Coal Authority,18/04/2024,Training & Education,DEV - Planning & Local Authority Liaison,Government Procurement Card,181485,18
"Department for Energy, Security and Net Zero",The Coal Authority,29/04/2024,Subsistence Allowances,DEV - Planning & Local Authority Liaison,Government Procurement Card,181485,5.2
"Department for Energy, Security and Net Zero",The Coal Authority,29/04/2024,Subsistence Allowances,DEV - Planning & Local Authority Liaison,Government Procurement Card,181485,27.04
"Department for Energy, Security and Net Zero",The Coal Authority,29/04/2024,Subsistence Allowances,DEV - Planning & Local Authority Liaison,Government Procurement Card,181485,1.5
"Department for Energy, Security and Net Zero",The Coal Authority,30/04/2024,Fuel (Vehicle),DEV - Planning & Local Authority Liaison,Government Procurement Card,181485,55.54
"Department for Energy, Security and Net Zero",The Coal Authority,30/04/2024,Incidentals,DEV - Planning & Local Authority Liaison,Government Procurement Card,181485,5
"Department for Energy, Security and Net Zero",The Coal Authority,30/04/2024,Incidentals,DEV - Planning & Local Authority Liaison,Government Procurement Card,181485,5
"Department for Energy, Security and Net Zero",The Coal Authority,30/04/2024,Subsistence Allowances,DEV - Planning & Local Authority Liaison,Government Procurement Card,181485,5
"Department for Energy, Security and Net Zero",The Coal Authority,02/05/2024,Training & Education,DEV - Planning & Local Authority Liaison,Government Procurement Card,181485,420
"Department for Energy, Security and Net Zero",The Coal Authority,29/04/2024,Subsistence Allowances,DEV - Planning & Local Authority Liaison,Staff Expenses Control,179989,3.3
"Department for Energy, Security and Net Zero",The Coal Authority,29/04/2024,Subsistence Allowances,DEV - Planning & Local Authority Liaison,Staff Expenses Control,179989,23.33
"Department for Energy, Security and Net Zero",The Coal Authority,29/04/2024,Subsistence Allowances,DEV - Planning & Local Authority Liaison,Staff Expenses Control,179989,4.29
"Department for Energy, Security and Net Zero",The Coal Authority,29/04/2024,Subsistence Allowances,DEV - Planning & Local Authority Liaison,Staff Expenses Control,179989,18.96
"Department for Energy, Security and Net Zero",The Coal Authority,30/04/2024,Subsistence Allowances,DEV - Planning & Local Authority Liaison,Staff Expenses Control,179989,4.96
"Department for Energy, Security and Net Zero",The Coal Authority,30/04/2024,Subsistence Allowances,DEV - Planning & Local Authority Liaison,Staff Expenses Control,179989,5
"Department for Energy, Security and Net Zero",The Coal Authority,29/04/2024,Subsistence Allowances,DEV - Planning & Local Authority Liaison,Staff Expenses Control,180470,1.88
"Department for Energy, Security and Net Zero",The Coal Authority,29/04/2024,Subsistence Allowances,DEV - Planning & Local Authority Liaison,Staff Expenses Control,180470,2.74
"Department for Energy, Security and Net Zero",The Coal Authority,29/04/2024,Subsistence Allowances,DEV - Planning & Local Authority Liaison,Staff Expenses Control,180470,3.63
"Department for Energy, Security and Net Zero",The Coal Authority,29/04/2024,Subsistence Allowances,DEV - Planning & Local Authority Liaison,Staff Expenses Control,180470,22.5
"Department for Energy, Security and Net Zero",The Coal Authority,30/04/2024,Subsistence Allowances,DEV - Planning & Local Authority Liaison,Staff Expenses Control,180470,5
"Department for Energy, Security and Net Zero",The Coal Authority,29/04/2024,Subsistence Allowances,DEV - Planning & Local Authority Liaison,Staff Expenses Control,180471,20.17
"Department for Energy, Security and Net Zero",The Coal Authority,30/04/2024,Subsistence Allowances,DEV - Planning & Local Authority Liaison,Staff Expenses Control,180471,4.96
"Department for Energy, Security and Net Zero",The Coal Authority,29/04/2024,Subsistence Allowances,DEV - Planning & Local Authority Liaison,Staff Expenses Control,180991,7.85
"Department for Energy, Security and Net Zero",The Coal Authority,29/04/2024,Subsistence Allowances,DEV - Planning & Local Authority Liaison,Staff Expenses Control,180991,21.42
"Department for Energy, Security and Net Zero",The Coal Authority,29/04/2024,Subsistence Allowances,DEV - Planning & Local Authority Liaison,Staff Expenses Control,180991,3.8
"Department for Energy, Security and Net Zero",The Coal Authority,29/04/2024,Subsistence Allowances,DEV - Planning & Local Authority Liaison,Staff Expenses Control,180991,27.17
"Department for Energy, Security and Net Zero",The Coal Authority,29/04/2024,Subsistence Allowances,DEV - Planning & Local Authority Liaison,Staff Expenses Control,180991,4.2
"Department for Energy, Security and Net Zero",The Coal Authority,29/04/2024,Subsistence Allowances,DEV - Planning & Local Authority Liaison,Staff Expenses Control,180991,2.65
"Department for Energy, Security and Net Zero",The Coal Authority,30/04/2024,Fuel (Vehicle),DEV - Planning & Local Authority Liaison,Staff Expenses Control,180991,52.78
"Department for Energy, Security and Net Zero",The Coal Authority,30/04/2024,Subsistence Allowances,DEV - Planning & Local Authority Liaison,Staff Expenses Control,180991,4.71
"Department for Energy, Security and Net Zero",The Coal Authority,30/04/2024,Subsistence Allowances,DEV - Planning & Local Authority Liaison,Staff Expenses Control,180991,3.95
"Department for Energy, Security and Net Zero",The Coal Authority,30/04/2024,Subsistence Allowances,DEV - Planning & Local Authority Liaison,Staff Expenses Control,180991,1
"Department for Energy, Security and Net Zero",The Coal Authority,14/05/2024,Subsistence Allowances,DEV - Planning & Local Authority Liaison,Staff Expenses Control,180991,5.27
"Department for Energy, Security and Net Zero",The Coal Authority,16/05/2024,Fuel (Vehicle),DEV - Planning & Local Authority Liaison,Staff Expenses Control,180991,89.01
"Department for Energy, Security and Net Zero",The Coal Authority,30/04/2024,Property Site Maintenance,DEV - Property Management,City Group Security Ltd,181428,"5,757.40"
"Department for Energy, Security and Net Zero",The Coal Authority,24/04/2024,Outsourced Management - Estates,DEV - Property Management,Cooke & Arkwright,181411,"1,063.79"
"Department for Energy, Security and Net Zero",The Coal Authority,05/04/2024,Minewater Land Agents (Acquisitions),DEV - Property Management,Government Procurement Card,181485,325
"Department for Energy, Security and Net Zero",The Coal Authority,18/04/2024,Fuel (Vehicle),DEV - Property Management,Government Procurement Card,181485,8.48
"Department for Energy, Security and Net Zero",The Coal Authority,18/04/2024,Subsistence Allowances,DEV - Property Management,Government Procurement Card,181485,4.6
"Department for Energy, Security and Net Zero",The Coal Authority,18/04/2024,Subsistence Allowances,DEV - Property Management,Government Procurement Card,181485,14.9
"Department for Energy, Security and Net Zero",The Coal Authority,18/04/2024,Subsistence Allowances,DEV - Property Management,Government Procurement Card,181485,17.25
"Department for Energy, Security and Net Zero",The Coal Authority,18/04/2024,Subsistence Allowances,DEV - Property Management,Government Procurement Card,181485,10
"Department for Energy, Security and Net Zero",The Coal Authority,18/04/2024,Subsistence Allowances,DEV - Property Management,Government Procurement Card,181485,15.1
"Department for Energy, Security and Net Zero",The Coal Authority,18/04/2024,Subsistence Allowances,DEV - Property Management,Government Procurement Card,181485,30.99
"Department for Energy, Security and Net Zero",The Coal Authority,19/04/2024,Incidentals,DEV - Property Management,Government Procurement Card,181485,24
"Department for Energy, Security and Net Zero",The Coal Authority,26/04/2024,Fuel (Vehicle),DEV - Property Management,Government Procurement Card,181485,26.55
"Department for Energy, Security and Net Zero",The Coal Authority,26/04/2024,Fuel (Vehicle),DEV - Property Management,Government Procurement Card,181485,36.64
"Department for Energy, Security and Net Zero",The Coal Authority,02/05/2024,Subsistence Allowances,DEV - Property Management,Government Procurement Card,181485,8.4
"Department for Energy, Security and Net Zero",The Coal Authority,31/05/2024,Business Meetings,DEV - Property Management,Government Procurement Card,181517,238.6
"Department for Energy, Security and Net Zero",The Coal Authority,31/05/2024,Incidentals,DEV - Property Management,Government Procurement Card,181517,5.83
"Department for Energy, Security and Net Zero",The Coal Authority,31/05/2024,Staff Events,DEV - Property Management,Government Procurement Card,181517,437
"Department for Energy, Security and Net Zero",The Coal Authority,31/05/2024,Staff Events,DEV - Property Management,Government Procurement Card,181517,167.63
"Department for Energy, Security and Net Zero",The Coal Authority,31/05/2024,Staff Events,DEV - Property Management,Government Procurement Card,181517,41.67
"Department for Energy, Security and Net Zero",The Coal Authority,31/03/2024,Property Site Maintenance,DEV - Property Management,JMC Engineering Uk Ltd,179894,925.4
"Department for Energy, Security and Net Zero",The Coal Authority,30/04/2024,Property Site Maintenance,DEV - Property Management,JMC Engineering Uk Ltd,181520,"1,045.40"
"Department for Energy, Security and Net Zero",The Coal Authority,30/04/2024,Property Rents Payable,DEV - Property Management,Rental Payment,179506,"1,590.00"
"Department for Energy, Security and Net Zero",The Coal Authority,18/04/2024,Mileage Payments,DEV - Property Management,Staff Expenses Control,180470,126
"Department for Energy, Security and Net Zero",The Coal Authority,19/04/2024,Incidentals,DEV - Property Management,Staff Expenses Control,180470,35.95
"Department for Energy, Security and Net Zero",The Coal Authority,19/04/2024,Mileage Payments,DEV - Property Management,Staff Expenses Control,180470,99.45
"Department for Energy, Security and Net Zero",The Coal Authority,03/05/2024,Fares - Public Transport,DEV - Property Management,Staff Expenses Control,180470,10.6
"Department for Energy, Security and Net Zero",The Coal Authority,13/05/2024,Subsistence Allowances,DEV - Property Management,Staff Expenses Control,180991,22.7
"Department for Energy, Security and Net Zero",The Coal Authority,21/05/2024,Mileage Payments,DEV - Property Management,Staff Expenses Control,181245,9
"Department for Energy, Security and Net Zero",The Coal Authority,21/05/2024,Mileage Payments,DEV - Property Management,Staff Expenses Control,181245,24.3
"Department for Energy, Security and Net Zero",The Coal Authority,21/05/2024,Mileage Payments,DEV - Property Management,Staff Expenses Control,181245,26.1
"Department for Energy, Security and Net Zero",The Coal Authority,21/05/2024,Mileage Payments,DEV - Property Management,Staff Expenses Control,181245,9
"Department for Energy, Security and Net Zero",The Coal Authority,18/05/2024,Property Rents Payable,DEV - Property Management,Warrington Borough Council,181313,14
"Department for Energy, Security and Net Zero",The Coal Authority,29/04/2024,Temporary Contractors,DIG - Architecture,TurnerFox Recruitment Limited,179592,"3,147.40"
"Department for Energy, Security and Net Zero",The Coal Authority,29/04/2024,Temporary Contractors,DIG - Architecture,TurnerFox Recruitment Limited,180072,"3,975.25"
"Department for Energy, Security and Net Zero",The Coal Authority,15/04/2024,Temporary Contractors,DIG - Architecture,TurnerFox Recruitment Limited,180073,"3,975.25"
"Department for Energy, Security and Net Zero",The Coal Authority,22/04/2024,Temporary Contractors,DIG - Architecture,TurnerFox Recruitment Limited,180074,"3,577.73"
"Department for Energy, Security and Net Zero",The Coal Authority,08/04/2024,Temporary Contractors,DIG - Architecture,TurnerFox Recruitment Limited,180075,"1,590.10"
"Department for Energy, Security and Net Zero",The Coal Authority,06/05/2024,Temporary Contractors,DIG - Architecture,TurnerFox Recruitment Limited,180228,"3,577.73"
"Department for Energy, Security and Net Zero",The Coal Authority,06/05/2024,Temporary Contractors,DIG - Architecture,TurnerFox Recruitment Limited,180230,"3,934.25"
"Department for Energy, Security and Net Zero",The Coal Authority,13/05/2024,Temporary Contractors,DIG - Architecture,TurnerFox Recruitment Limited,180670,"2,782.68"
"Department for Energy, Security and Net Zero",The Coal Authority,20/05/2024,Temporary Contractors,DIG - Architecture,TurnerFox Recruitment Limited,181143,"3,934.25"
"Department for Energy, Security and Net Zero",The Coal Authority,20/05/2024,Temporary Contractors,DIG - Architecture,TurnerFox Recruitment Limited,181148,"3,180.20"
"Department for Energy, Security and Net Zero",The Coal Authority,29/05/2024,Temporary Contractors,DIG - Architecture,TurnerFox Recruitment Limited,181387,"3,180.20"
"Department for Energy, Security and Net Zero",The Coal Authority,27/05/2024,Temporary Contractors,DIG - Architecture,TurnerFox Recruitment Limited,181388,"3,934.25"
"Department for Energy, Security and Net Zero",The Coal Authority,02/05/2024,Ordance Survey Map Charges,DIG - Data Licensing,Ordnance Survey,179857,908.74
"Department for Energy, Security and Net Zero",The Coal Authority,02/05/2024,Ordance Survey Map Charges,DIG - Data Licensing,Ordnance Survey,179859,"19,083.54"
"Department for Energy, Security and Net Zero",The Coal Authority,12/03/2024,Incidentals,DIG - GIS,Staff Expenses Control,180470,5.79
"Department for Energy, Security and Net Zero",The Coal Authority,12/03/2024,Subsistence Allowances,DIG - GIS,Staff Expenses Control,180470,3.5
"Department for Energy, Security and Net Zero",The Coal Authority,18/03/2024,Incidentals,DIG - GIS,Staff Expenses Control,180470,11.67
"Department for Energy, Security and Net Zero",The Coal Authority,27/03/2024,Incidentals,DIG - GIS,Staff Expenses Control,180470,5.79
"Department for Energy, Security and Net Zero",The Coal Authority,25/04/2024,Incidentals,DIG - GIS,Staff Expenses Control,180470,5.79
"Department for Energy, Security and Net Zero",The Coal Authority,25/04/2024,Subsistence Allowances,DIG - GIS,Staff Expenses Control,180470,3
"Department for Energy, Security and Net Zero",The Coal Authority,22/04/2024,Temporary Contractors,DIG - Management,TurnerFox Recruitment Limited,180077,"2,222.45"
"Department for Energy, Security and Net Zero",The Coal Authority,15/04/2024,Temporary Contractors,DIG - Management,TurnerFox Recruitment Limited,180078,"2,222.45"
"Department for Energy, Security and Net Zero",The Coal Authority,08/04/2024,Temporary Contractors,DIG - Management,TurnerFox Recruitment Limited,180079,"2,666.94"
"Department for Energy, Security and Net Zero",The Coal Authority,08/04/2024,Temporary Contractors,DIG - Management,TurnerFox Recruitment Limited,180079,888.98
"Department for Energy, Security and Net Zero",The Coal Authority,29/04/2024,Temporary Contractors,DIG - Management,TurnerFox Recruitment Limited,180080,"2,222.45"
"Department for Energy, Security and Net Zero",The Coal Authority,06/05/2024,Temporary Contractors,DIG - Management,TurnerFox Recruitment Limited,180225,"2,666.94"
"Department for Energy, Security and Net Zero",The Coal Authority,13/05/2024,Temporary Contractors,DIG - Management,TurnerFox Recruitment Limited,180668,"1,777.96"
"Department for Energy, Security and Net Zero",The Coal Authority,20/05/2024,Temporary Contractors,DIG - Management,TurnerFox Recruitment Limited,181144,"2,222.45"
"Department for Energy, Security and Net Zero",The Coal Authority,27/05/2024,Temporary Contractors,DIG - Management,TurnerFox Recruitment Limited,181383,"4,000.41"
"Department for Energy, Security and Net Zero",The Coal Authority,02/05/2024,Other Hosting / IaaS,DIG - Service & Assurance,Amazon Web Services EMEA SARL,180305,"19,702.18"
"Department for Energy, Security and Net Zero",The Coal Authority,02/12/2022,Office Printing Services,DIG - Service & Assurance,Canon (Uk) Ltd,180869,502
"Department for Energy, Security and Net Zero",The Coal Authority,02/12/2022,Office Printing Services,DIG - Service & Assurance,Canon (Uk) Ltd,180869,"1,849.80"
"Department for Energy, Security and Net Zero",The Coal Authority,06/12/2023,Office Printing Services,DIG - Service & Assurance,Canon (Uk) Ltd,180871,"1,979.28"
"Department for Energy, Security and Net Zero",The Coal Authority,06/12/2023,Office Printing Services,DIG - Service & Assurance,Canon (Uk) Ltd,180871,549.64
"Department for Energy, Security and Net Zero",The Coal Authority,06/12/2023,Office Printing Services,DIG - Service & Assurance,Canon (Uk) Ltd,180871,0.05
"Department for Energy, Security and Net Zero",The Coal Authority,01/05/2024,Office Telephony - Call Charges,DIG - Service & Assurance,Daisy Corporate Services Trading Services Ltd,180427,11.83
"Department for Energy, Security and Net Zero",The Coal Authority,01/05/2024,Office Telephony - Line Rent,DIG - Service & Assurance,Daisy Corporate Services Trading Services Ltd,180427,264.29
"Department for Energy, Security and Net Zero",The Coal Authority,01/05/2024,Mobiles Phones - Line Rent,DIG - Service & Assurance,Daisy Corporate Services Trading Services Ltd,180433,158.61
"Department for Energy, Security and Net Zero",The Coal Authority,01/05/2024,Mobiles Phones - Line Rent,DIG - Service & Assurance,Daisy Corporate Services Trading Services Ltd,180433,"1,050.00"
"Department for Energy, Security and Net Zero",The Coal Authority,01/05/2024,Mobiles Phones - Line Rent,DIG - Service & Assurance,Daisy Corporate Services Trading Services Ltd,180433,"1,161.00"
"Department for Energy, Security and Net Zero",The Coal Authority,01/05/2024,Mobiles Phones - Line Rent,DIG - Service & Assurance,Daisy Corporate Services Trading Services Ltd,180433,71
"Department for Energy, Security and Net Zero",The Coal Authority,01/05/2024,Mobiles Phones - Line Rent,DIG - Service & Assurance,Daisy Corporate Services Trading Services Ltd,180433,12.51
"Department for Energy, Security and Net Zero",The Coal Authority,22/03/2024,Peripherals / Consumables (MEP),DIG - Service & Assurance,Government Procurement Card,181485,-8.4
"Department for Energy, Security and Net Zero",The Coal Authority,03/04/2024,Peripherals / Consumables (MEP),DIG - Service & Assurance,Government Procurement Card,181485,69.2
"Department for Energy, Security and Net Zero",The Coal Authority,03/04/2024,Peripherals / Consumables (MEP),DIG - Service & Assurance,Government Procurement Card,181485,17.1
"Department for Energy, Security and Net Zero",The Coal Authority,04/04/2024,Software Licenses - On Premise,DIG - Service & Assurance,Government Procurement Card,181485,195
"Department for Energy, Security and Net Zero",The Coal Authority,10/04/2024,Peripherals / Consumables (MEP),DIG - Service & Assurance,Government Procurement Card,181485,128.89
"Department for Energy, Security and Net Zero",The Coal Authority,12/04/2024,Mobiles Phones - Call Charges,DIG - Service & Assurance,Government Procurement Card,181485,2.99
"Department for Energy, Security and Net Zero",The Coal Authority,15/04/2024,Peripherals / Consumables (MEP),DIG - Service & Assurance,Government Procurement Card,181485,27.1
"Department for Energy, Security and Net Zero",The Coal Authority,16/04/2024,Peripherals / Consumables (MEP),DIG - Service & Assurance,Government Procurement Card,181485,572.3
"Department for Energy, Security and Net Zero",The Coal Authority,16/04/2024,Peripherals / Consumables (MEP),DIG - Service & Assurance,Government Procurement Card,181485,"1,348.00"
"Department for Energy, Security and Net Zero",The Coal Authority,16/04/2024,Peripherals / Consumables (MEP),DIG - Service & Assurance,Government Procurement Card,181485,11.23
"Department for Energy, Security and Net Zero",The Coal Authority,16/04/2024,Peripherals / Consumables (MEP),DIG - Service & Assurance,Government Procurement Card,181485,45.24
"Department for Energy, Security and Net Zero",The Coal Authority,16/04/2024,Peripherals / Consumables (MEP),DIG - Service & Assurance,Government Procurement Card,181485,12.06
"Department for Energy, Security and Net Zero",The Coal Authority,16/04/2024,Peripherals / Consumables (MEP),DIG - Service & Assurance,Government Procurement Card,181485,125.61
"Department for Energy, Security and Net Zero",The Coal Authority,17/04/2024,Peripherals / Consumables (MEP),DIG - Service & Assurance,Government Procurement Card,181485,"-1,348.00"
"Department for Energy, Security and Net Zero",The Coal Authority,17/04/2024,Peripherals / Consumables (MEP),DIG - Service & Assurance,Government Procurement Card,181485,12.48
"Department for Energy, Security and Net Zero",The Coal Authority,18/04/2024,Peripherals / Consumables (MEP),DIG - Service & Assurance,Government Procurement Card,181485,845.78
"Department for Energy, Security and Net Zero",The Coal Authority,22/04/2024,Peripherals / Consumables (MEP),DIG - Service & Assurance,Government Procurement Card,181485,56.56
"Department for Energy, Security and Net Zero",The Coal Authority,22/04/2024,Peripherals / Consumables (MEP),DIG - Service & Assurance,Government Procurement Card,181485,447.5
"Department for Energy, Security and Net Zero",The Coal Authority,22/04/2024,Peripherals / Consumables (MEP),DIG - Service & Assurance,Government Procurement Card,181485,22.42
"Department for Energy, Security and Net Zero",The Coal Authority,22/04/2024,Peripherals / Consumables (MEP),DIG - Service & Assurance,Government Procurement Card,181485,-27.1
"Department for Energy, Security and Net Zero",The Coal Authority,23/04/2024,Hardware Equipment & Support,DIG - Service & Assurance,Government Procurement Card,181485,"1,370.88"
"Department for Energy, Security and Net Zero",The Coal Authority,23/04/2024,Peripherals / Consumables (MEP),DIG - Service & Assurance,Government Procurement Card,181485,-45.25
"Department for Energy, Security and Net Zero",The Coal Authority,23/04/2024,Peripherals / Consumables (MEP),DIG - Service & Assurance,Government Procurement Card,181485,59.65
"Department for Energy, Security and Net Zero",The Coal Authority,23/04/2024,Peripherals / Consumables (MEP),DIG - Service & Assurance,Government Procurement Card,181485,158.3
"Department for Energy, Security and Net Zero",The Coal Authority,26/04/2024,Peripherals / Consumables (MEP),DIG - Service & Assurance,Government Procurement Card,181485,38.94
"Department for Energy, Security and Net Zero",The Coal Authority,29/04/2024,Mobile Equipment,DIG - Service & Assurance,Government Procurement Card,181485,60
"Department for Energy, Security and Net Zero",The Coal Authority,26/04/2024,Office Printing Services,DIG - Service & Assurance,Konica Minolta Business Sltns Ltd,179488,49.11
"Department for Energy, Security and Net Zero",The Coal Authority,14/05/2024,Training & Education,DIG - Service & Assurance,Staff Expenses Control,180991,25
"Department for Energy, Security and Net Zero",The Coal Authority,25/04/2024,Applications Consultancy,DIG - Technical Delivery,Cgi It Uk Ltd,180295,"93,139.53"
"Department for Energy, Security and Net Zero",The Coal Authority,21/05/2024,Applications Consultancy,DIG - Technical Delivery,Cgi It Uk Ltd,181215,"83,957.06"
"Department for Energy, Security and Net Zero",The Coal Authority,10/04/2024,Software Licenses - SaaS,DIG - Technical Delivery,Egress Software Technologies,179560,"4,280.40"
"Department for Energy, Security and Net Zero",The Coal Authority,10/04/2024,Surface Hazards - Equipment,DIG - Technical Delivery,Government Procurement Card,181485,31.98
"Department for Energy, Security and Net Zero",The Coal Authority,19/04/2024,Training & Education,DIG - Technical Delivery,Government Procurement Card,181485,38.79
"Department for Energy, Security and Net Zero",The Coal Authority,03/04/2024,Hardware Support,DIG - Technical Delivery,Softcat Limited,179852,0.01
"Department for Energy, Security and Net Zero",The Coal Authority,03/04/2024,Hardware Support,DIG - Technical Delivery,Softcat Limited,179852,"37,916.05"
"Department for Energy, Security and Net Zero",The Coal Authority,20/05/2024,Temporary Contractors,DIG - Technical Delivery,TurnerFox Recruitment Limited,181149,"2,049.85"
"Department for Energy, Security and Net Zero",The Coal Authority,27/05/2024,Temporary Contractors,DIG - Technical Delivery,TurnerFox Recruitment Limited,181384,"2,049.85"
"Department for Energy, Security and Net Zero",The Coal Authority,08/11/2023,Disaster Recovery & BCP,DIG - Technical Delivery,UKRI as represented by the British Geological Surv,180745,0.01
"Department for Energy, Security and Net Zero",The Coal Authority,16/05/2024,Disaster Recovery & BCP,DIG - Technical Delivery,UKRI as represented by the British Geological Surv,180946,"5,435.09"
"Department for Energy, Security and Net Zero",The Coal Authority,03/05/2024,Internet Service Provider & Comms,DIG - Technical Delivery,WCL UK Ltd (trading as Everything ICT),179895,"41,860.00"
"Department for Energy, Security and Net Zero",The Coal Authority,22/05/2024,Hardware Licenses,DIG - Technical Delivery,WCL UK Ltd (trading as Everything ICT),181153,"1,016.37"
"Department for Energy, Security and Net Zero",The Coal Authority,22/05/2024,Networking / Cabling,DIG - Technical Delivery,WCL UK Ltd (trading as Everything ICT),181153,"1,488.55"
"Department for Energy, Security and Net Zero",The Coal Authority,22/05/2024,Networking / Cabling,DIG - Technical Delivery,WCL UK Ltd (trading as Everything ICT),181153,15
"Department for Energy, Security and Net Zero",The Coal Authority,19/04/2024,Postage & Couriers,Engineering,Government Procurement Card,181485,4.1
"Department for Energy, Security and Net Zero",The Coal Authority,31/05/2024,Training & Education,Engineering,Government Procurement Card,181517,352.75
"Department for Energy, Security and Net Zero",The Coal Authority,29/04/2024,Mileage Payments,Engineering,Staff Expenses Control,179989,10.35
"Department for Energy, Security and Net Zero",The Coal Authority,29/04/2024,Mileage Payments,Engineering,Staff Expenses Control,179989,10.35
"Department for Energy, Security and Net Zero",The Coal Authority,13/05/2024,Mileage Payments,Engineering,Staff Expenses Control,180991,10.35
"Department for Energy, Security and Net Zero",The Coal Authority,13/05/2024,Mileage Payments,Engineering,Staff Expenses Control,180991,10.35
"Department for Energy, Security and Net Zero",The Coal Authority,07/05/2024,Minewater Rent,ENV - Mine Water Operations,Rental Payment,180021,100
"Department for Energy, Security and Net Zero",The Coal Authority,09/05/2024,Minewater Feasibility / Scoping,ENV - Mine Water Operations,AECOM Ltd,180465,"1,601.46"
"Department for Energy, Security and Net Zero",The Coal Authority,17/04/2024,Fuel (Vehicle),ENV - Mine Water Operations,Allstar Business Solutions Ltd,180111,1.9
"Department for Energy, Security and Net Zero",The Coal Authority,17/04/2024,Fuel (Vehicle),ENV - Mine Water Operations,Allstar Business Solutions Ltd,180111,42.9
"Department for Energy, Security and Net Zero",The Coal Authority,28/02/2024,Fuel (Vehicle),ENV - Mine Water Operations,Allstar Business Solutions Ltd,180113,40.23
"Department for Energy, Security and Net Zero",The Coal Authority,28/02/2024,Fuel (Vehicle),ENV - Mine Water Operations,Allstar Business Solutions Ltd,180113,1.9
"Department for Energy, Security and Net Zero",The Coal Authority,01/05/2024,Fuel (Vehicle),ENV - Mine Water Operations,Allstar Business Solutions Ltd,180315,87.83
"Department for Energy, Security and Net Zero",The Coal Authority,01/05/2024,Fuel (Vehicle),ENV - Mine Water Operations,Allstar Business Solutions Ltd,180315,3.8
"Department for Energy, Security and Net Zero",The Coal Authority,08/05/2024,Fuel (Vehicle),ENV - Mine Water Operations,Allstar Business Solutions Ltd,180449,40.01
"Department for Energy, Security and Net Zero",The Coal Authority,08/05/2024,Fuel (Vehicle),ENV - Mine Water Operations,Allstar Business Solutions Ltd,180449,1.9
"Department for Energy, Security and Net Zero",The Coal Authority,24/04/2024,Fuel (Vehicle),ENV - Mine Water Operations,Allstar Business Solutions Ltd,180792,33.34
"Department for Energy, Security and Net Zero",The Coal Authority,24/04/2024,Fuel (Vehicle),ENV - Mine Water Operations,Allstar Business Solutions Ltd,180792,1.9
"Department for Energy, Security and Net Zero",The Coal Authority,15/05/2024,Fuel (Vehicle),ENV - Mine Water Operations,Allstar Business Solutions Ltd,180848,38.79
"Department for Energy, Security and Net Zero",The Coal Authority,15/05/2024,Fuel (Vehicle),ENV - Mine Water Operations,Allstar Business Solutions Ltd,180848,3.8
"Department for Energy, Security and Net Zero",The Coal Authority,22/05/2024,Fuel (Vehicle),ENV - Mine Water Operations,Allstar Business Solutions Ltd,181399,43.04
"Department for Energy, Security and Net Zero",The Coal Authority,22/05/2024,Fuel (Vehicle),ENV - Mine Water Operations,Allstar Business Solutions Ltd,181399,71.67
"Department for Energy, Security and Net Zero",The Coal Authority,22/05/2024,Fuel (Vehicle),ENV - Mine Water Operations,Allstar Business Solutions Ltd,181399,5.7
"Department for Energy, Security and Net Zero",The Coal Authority,29/05/2024,Fuel (Vehicle),ENV - Mine Water Operations,Allstar Business Solutions Ltd,181421,41.47
"Department for Energy, Security and Net Zero",The Coal Authority,29/05/2024,Fuel (Vehicle),ENV - Mine Water Operations,Allstar Business Solutions Ltd,181421,40.01
"Department for Energy, Security and Net Zero",The Coal Authority,29/05/2024,Fuel (Vehicle),ENV - Mine Water Operations,Allstar Business Solutions Ltd,181421,3.8
"Department for Energy, Security and Net Zero",The Coal Authority,16/04/2024,Subsidence Pumping Maintenance - Power,ENV - Mine Water Operations,Barnburgh Farming Limited,179582,"1,600.00"
"Department for Energy, Security and Net Zero",The Coal Authority,14/05/2024,Minewater Power Costs,ENV - Mine Water Operations,Barnburgh Farming Limited,180936,"1,425.00"
"Department for Energy, Security and Net Zero",The Coal Authority,18/04/2024,Legal - General,ENV - Mine Water Operations,Browne Jacobson Llp Client Account,181087,"5,405.70"
"Department for Energy, Security and Net Zero",The Coal Authority,20/04/2024,Minewater Water Charges,ENV - Mine Water Operations,Business Stream,180098,198.13
"Department for Energy, Security and Net Zero",The Coal Authority,23/05/2024,Minewater Site Surveys,ENV - Mine Water Operations,Cornerstone  Projects Ltd,181349,558.55
"Department for Energy, Security and Net Zero",The Coal Authority,23/05/2024,Subsidence Pumping Maintenance - Power,ENV - Mine Water Operations,Danvm Drainage Commissioners,181344,"14,910.08"
"Department for Energy, Security and Net Zero",The Coal Authority,31/03/2024,Subsidence Pumping - Management Fees,ENV - Mine Water Operations,Doncaster East I D B,179484,45
"Department for Energy, Security and Net Zero",The Coal Authority,31/03/2024,Subsidence Pumping Maintenance - Planned,ENV - Mine Water Operations,Doncaster East I D B,179484,450
"Department for Energy, Security and Net Zero",The Coal Authority,31/03/2024,Subsidence Pumping - Management Fees,ENV - Mine Water Operations,Doncaster East I D B,179940,3.67
"Department for Energy, Security and Net Zero",The Coal Authority,31/03/2024,Subsidence Pumping - Management Fees,ENV - Mine Water Operations,Doncaster East I D B,179940,41.33
"Department for Energy, Security and Net Zero",The Coal Authority,31/03/2024,Subsidence Pumping Maintenance - Planned,ENV - Mine Water Operations,Doncaster East I D B,179940,299.52
"Department for Energy, Security and Net Zero",The Coal Authority,31/03/2024,Subsidence Pumping Maintenance - Planned,ENV - Mine Water Operations,Doncaster East I D B,179940,150.48
"Department for Energy, Security and Net Zero",The Coal Authority,31/03/2024,Subsidence Pumping - Management Fees,ENV - Mine Water Operations,Doncaster East I D B,179941,45
"Department for Energy, Security and Net Zero",The Coal Authority,31/03/2024,Subsidence Pumping Maintenance - Planned,ENV - Mine Water Operations,Doncaster East I D B,179941,450
"Department for Energy, Security and Net Zero",The Coal Authority,31/03/2024,Subsidence Pumping - Management Fees,ENV - Mine Water Operations,Doncaster East I D B,179942,52.96
"Department for Energy, Security and Net Zero",The Coal Authority,31/03/2024,Subsidence Pumping Maintenance - Planned,ENV - Mine Water Operations,Doncaster East I D B,179942,450
"Department for Energy, Security and Net Zero",The Coal Authority,31/03/2024,Subsidence Pumping Maintenance - Power,ENV - Mine Water Operations,Doncaster East I D B,179942,79.56
"Department for Energy, Security and Net Zero",The Coal Authority,31/03/2024,Subsidence Pumping - Management Fees,ENV - Mine Water Operations,Doncaster East I D B,179943,345.86
"Department for Energy, Security and Net Zero",The Coal Authority,31/03/2024,Subsidence Pumping Maintenance - Power,ENV - Mine Water Operations,Doncaster East I D B,179943,"3,458.56"
"Department for Energy, Security and Net Zero",The Coal Authority,31/03/2024,Subsidence Pumping - Management Fees,ENV - Mine Water Operations,Doncaster East I D B,179944,45
"Department for Energy, Security and Net Zero",The Coal Authority,31/03/2024,Subsidence Pumping Maintenance - Planned,ENV - Mine Water Operations,Doncaster East I D B,179944,273.48
"Department for Energy, Security and Net Zero",The Coal Authority,31/03/2024,Subsidence Pumping Maintenance - Planned,ENV - Mine Water Operations,Doncaster East I D B,179944,176.52
"Department for Energy, Security and Net Zero",The Coal Authority,31/03/2024,Subsidence Pumping - Management Fees,ENV - Mine Water Operations,Doncaster East I D B,179945,389.69
"Department for Energy, Security and Net Zero",The Coal Authority,31/03/2024,Subsidence Pumping Maintenance - Planned,ENV - Mine Water Operations,Doncaster East I D B,179945,450
"Department for Energy, Security and Net Zero",The Coal Authority,31/03/2024,Subsidence Pumping Maintenance - Power,ENV - Mine Water Operations,Doncaster East I D B,179945,"3,446.87"
"Department for Energy, Security and Net Zero",The Coal Authority,31/03/2024,Subsidence Pumping - Management Fees,ENV - Mine Water Operations,Doncaster East I D B,179946,343.89
"Department for Energy, Security and Net Zero",The Coal Authority,31/03/2024,Subsidence Pumping Maintenance - Planned,ENV - Mine Water Operations,Doncaster East I D B,179946,270
"Department for Energy, Security and Net Zero",The Coal Authority,31/03/2024,Subsidence Pumping Maintenance - Power,ENV - Mine Water Operations,Doncaster East I D B,179946,"3,168.91"
"Department for Energy, Security and Net Zero",The Coal Authority,31/03/2024,Subsidence Pumping - Management Fees,ENV - Mine Water Operations,Doncaster East I D B,179947,235.71
"Department for Energy, Security and Net Zero",The Coal Authority,31/03/2024,Subsidence Pumping Maintenance - Planned,ENV - Mine Water Operations,Doncaster East I D B,179947,270
"Department for Energy, Security and Net Zero",The Coal Authority,31/03/2024,Subsidence Pumping Maintenance - Power,ENV - Mine Water Operations,Doncaster East I D B,179947,"2,087.08"
"Department for Energy, Security and Net Zero",The Coal Authority,31/03/2024,Subsidence Pumping - Management Fees,ENV - Mine Water Operations,Doncaster East I D B,179948,5.43
"Department for Energy, Security and Net Zero",The Coal Authority,31/03/2024,Subsidence Pumping Maintenance - Planned,ENV - Mine Water Operations,Doncaster East I D B,179948,11.25
"Department for Energy, Security and Net Zero",The Coal Authority,31/03/2024,Subsidence Pumping Maintenance - Power,ENV - Mine Water Operations,Doncaster East I D B,179948,43.04
"Department for Energy, Security and Net Zero",The Coal Authority,31/03/2024,Subsidence Pumping - Management Fees,ENV - Mine Water Operations,Doncaster East I D B,179959,5.69
"Department for Energy, Security and Net Zero",The Coal Authority,31/03/2024,Subsidence Pumping Maintenance - Planned,ENV - Mine Water Operations,Doncaster East I D B,179959,9
"Department for Energy, Security and Net Zero",The Coal Authority,31/03/2024,Subsidence Pumping Maintenance - Power,ENV - Mine Water Operations,Doncaster East I D B,179959,47.93
"Department for Energy, Security and Net Zero",The Coal Authority,26/04/2024,Minewater Rates,ENV - Mine Water Operations,Doncaster East I D B,180206,54.66
"Department for Energy, Security and Net Zero",The Coal Authority,31/03/2024,Subsidence Pumping - Management Fees,ENV - Mine Water Operations,Doncaster East I D B,180297,150.6
"Department for Energy, Security and Net Zero",The Coal Authority,31/03/2024,Subsidence Pumping Maintenance - Planned,ENV - Mine Water Operations,Doncaster East I D B,180297,6.18
"Department for Energy, Security and Net Zero",The Coal Authority,31/03/2024,Subsidence Pumping Maintenance - Planned,ENV - Mine Water Operations,Doncaster East I D B,180297,47.82
"Department for Energy, Security and Net Zero",The Coal Authority,31/03/2024,Subsidence Pumping Maintenance - Power,ENV - Mine Water Operations,Doncaster East I D B,180297,"1,452.04"
"Department for Energy, Security and Net Zero",The Coal Authority,31/03/2024,Subsidence Pumping - Management Fees,ENV - Mine Water Operations,Doncaster East I D B,180303,15.42
"Department for Energy, Security and Net Zero",The Coal Authority,31/03/2024,Subsidence Pumping Maintenance - Planned,ENV - Mine Water Operations,Doncaster East I D B,180303,9
"Department for Energy, Security and Net Zero",The Coal Authority,31/03/2024,Subsidence Pumping Maintenance - Power,ENV - Mine Water Operations,Doncaster East I D B,180303,139.88
"Department for Energy, Security and Net Zero",The Coal Authority,31/03/2024,Subsidence Pumping Maintenance - Power,ENV - Mine Water Operations,Doncaster East I D B,180303,5.36
"Department for Energy, Security and Net Zero",The Coal Authority,09/04/2024,Minewater Power Costs,ENV - Mine Water Operations,Edf Energy,180031,"2,181.02"
"Department for Energy, Security and Net Zero",The Coal Authority,09/04/2024,Minewater Power Costs,ENV - Mine Water Operations,Edf Energy,180031,"7,933.08"
"Department for Energy, Security and Net Zero",The Coal Authority,09/04/2024,Minewater Power Costs,ENV - Mine Water Operations,Edf Energy,180031,"2,915.07"
"Department for Energy, Security and Net Zero",The Coal Authority,09/04/2024,Minewater Power Costs,ENV - Mine Water Operations,Edf Energy,180031,"3,970.39"
"Department for Energy, Security and Net Zero",The Coal Authority,09/04/2024,Minewater Power Costs,ENV - Mine Water Operations,Edf Energy,180031,"2,206.82"
"Department for Energy, Security and Net Zero",The Coal Authority,09/04/2024,Minewater Power Costs,ENV - Mine Water Operations,Edf Energy,180031,"17,020.81"
"Department for Energy, Security and Net Zero",The Coal Authority,09/04/2024,Minewater Power Costs,ENV - Mine Water Operations,Edf Energy,180031,71.48
"Department for Energy, Security and Net Zero",The Coal Authority,09/04/2024,Minewater Power Costs,ENV - Mine Water Operations,Edf Energy,180031,"16,160.88"
"Department for Energy, Security and Net Zero",The Coal Authority,09/04/2024,Minewater Power Costs,ENV - Mine Water Operations,Edf Energy,180031,"2,082.04"
"Department for Energy, Security and Net Zero",The Coal Authority,09/04/2024,Minewater Power Costs,ENV - Mine Water Operations,Edf Energy,180031,"2,351.77"
"Department for Energy, Security and Net Zero",The Coal Authority,09/04/2024,Minewater Power Costs,ENV - Mine Water Operations,Edf Energy,180031,"4,765.38"
"Department for Energy, Security and Net Zero",The Coal Authority,09/04/2024,Minewater Power Costs,ENV - Mine Water Operations,Edf Energy,180031,"36,370.85"
"Department for Energy, Security and Net Zero",The Coal Authority,09/04/2024,Minewater Power Costs,ENV - Mine Water Operations,Edf Energy,180031,84.64
"Department for Energy, Security and Net Zero",The Coal Authority,09/04/2024,Minewater Power Costs,ENV - Mine Water Operations,Edf Energy,180031,"6,643.34"
"Department for Energy, Security and Net Zero",The Coal Authority,09/04/2024,Minewater Power Costs,ENV - Mine Water Operations,Edf Energy,180031,"6,179.49"
"Department for Energy, Security and Net Zero",The Coal Authority,09/04/2024,Minewater Power Costs,ENV - Mine Water Operations,Edf Energy,180031,"12,429.54"
"Department for Energy, Security and Net Zero",The Coal Authority,09/04/2024,Minewater Power Costs,ENV - Mine Water Operations,Edf Energy,180031,"31,404.33"
"Department for Energy, Security and Net Zero",The Coal Authority,09/04/2024,Minewater Power Costs,ENV - Mine Water Operations,Edf Energy,180031,"5,497.39"
"Department for Energy, Security and Net Zero",The Coal Authority,09/04/2024,Minewater Power Costs,ENV - Mine Water Operations,Edf Energy,180031,"6,802.18"
"Department for Energy, Security and Net Zero",The Coal Authority,09/04/2024,Minewater Power Costs,ENV - Mine Water Operations,Edf Energy,180031,"2,491.72"
"Department for Energy, Security and Net Zero",The Coal Authority,09/04/2024,Minewater Power Costs,ENV - Mine Water Operations,Edf Energy,180031,"6,674.77"
"Department for Energy, Security and Net Zero",The Coal Authority,09/04/2024,Minewater Power Costs,ENV - Mine Water Operations,Edf Energy,180031,"1,896.13"
"Department for Energy, Security and Net Zero",The Coal Authority,09/04/2024,Minewater Power Costs,ENV - Mine Water Operations,Edf Energy,180031,"5,660.93"
"Department for Energy, Security and Net Zero",The Coal Authority,09/04/2024,Minewater Power Costs,ENV - Mine Water Operations,Edf Energy,180031,"8,271.84"
"Department for Energy, Security and Net Zero",The Coal Authority,09/04/2024,Minewater Power Costs,ENV - Mine Water Operations,Edf Energy,180031,"17,216.54"
"Department for Energy, Security and Net Zero",The Coal Authority,09/04/2024,Minewater Power Costs,ENV - Mine Water Operations,Edf Energy,180031,"1,478.60"
"Department for Energy, Security and Net Zero",The Coal Authority,09/04/2024,Minewater Power Costs,ENV - Mine Water Operations,Edf Energy,180031,"8,161.30"
"Department for Energy, Security and Net Zero",The Coal Authority,09/04/2024,Minewater Power Costs,ENV - Mine Water Operations,Edf Energy,180031,"4,251.04"
"Department for Energy, Security and Net Zero",The Coal Authority,09/04/2024,Minewater Power Costs,ENV - Mine Water Operations,Edf Energy,180031,"16,000.87"
"Department for Energy, Security and Net Zero",The Coal Authority,09/04/2024,Minewater Power Costs,ENV - Mine Water Operations,Edf Energy,180031,"25,037.69"
"Department for Energy, Security and Net Zero",The Coal Authority,09/04/2024,Minewater Power Costs,ENV - Mine Water Operations,Edf Energy,180031,"25,668.82"
"Department for Energy, Security and Net Zero",The Coal Authority,09/04/2024,Minewater Power Costs,ENV - Mine Water Operations,Edf Energy,180031,"28,985.58"
"Department for Energy, Security and Net Zero",The Coal Authority,09/04/2024,Minewater Power Costs,ENV - Mine Water Operations,Edf Energy,180031,"18,330.27"
"Department for Energy, Security and Net Zero",The Coal Authority,09/04/2024,Minewater Power Costs,ENV - Mine Water Operations,Edf Energy,180031,"9,212.79"
"Department for Energy, Security and Net Zero",The Coal Authority,09/04/2024,Minewater Power Costs,ENV - Mine Water Operations,Edf Energy,180031,"3,414.35"
"Department for Energy, Security and Net Zero",The Coal Authority,09/04/2024,Minewater Power Costs,ENV - Mine Water Operations,Edf Energy,180031,"7,856.11"
"Department for Energy, Security and Net Zero",The Coal Authority,09/04/2024,Minewater Power Costs,ENV - Mine Water Operations,Edf Energy,180031,"12,246.54"
"Department for Energy, Security and Net Zero",The Coal Authority,09/04/2024,Minewater Power Costs,ENV - Mine Water Operations,Edf Energy,180031,"9,985.92"
"Department for Energy, Security and Net Zero",The Coal Authority,09/04/2024,Minewater Power Costs,ENV - Mine Water Operations,Edf Energy,180031,"6,348.35"
"Department for Energy, Security and Net Zero",The Coal Authority,09/04/2024,Minewater Power Costs,ENV - Mine Water Operations,Edf Energy,180031,"1,358.55"
"Department for Energy, Security and Net Zero",The Coal Authority,09/04/2024,Minewater Power Costs,ENV - Mine Water Operations,Edf Energy,180031,"1,052.40"
"Department for Energy, Security and Net Zero",The Coal Authority,09/04/2024,Minewater Power Costs,ENV - Mine Water Operations,Edf Energy,180031,"5,620.13"
"Department for Energy, Security and Net Zero",The Coal Authority,09/04/2024,Minewater Power Costs,ENV - Mine Water Operations,Edf Energy,180031,"2,944.37"
"Department for Energy, Security and Net Zero",The Coal Authority,09/04/2024,Minewater Power Costs,ENV - Mine Water Operations,Edf Energy,180031,219.58
"Department for Energy, Security and Net Zero",The Coal Authority,09/04/2024,Minewater Power Costs,ENV - Mine Water Operations,Edf Energy,180031,"5,001.36"
"Department for Energy, Security and Net Zero",The Coal Authority,09/04/2024,Minewater Power Costs,ENV - Mine Water Operations,Edf Energy,180031,"27,342.84"
"Department for Energy, Security and Net Zero",The Coal Authority,09/04/2024,Minewater Power Costs,ENV - Mine Water Operations,Edf Energy,180031,"2,018.00"
"Department for Energy, Security and Net Zero",The Coal Authority,09/04/2024,Minewater Power Costs,ENV - Mine Water Operations,Edf Energy,180031,"33,616.43"
"Department for Energy, Security and Net Zero",The Coal Authority,09/04/2024,Subsidence Pumping Maintenance - Power,ENV - Mine Water Operations,Edf Energy,180031,40.75
"Department for Energy, Security and Net Zero",The Coal Authority,09/04/2024,Subsidence Pumping Maintenance - Power,ENV - Mine Water Operations,Edf Energy,180031,"2,613.58"
"Department for Energy, Security and Net Zero",The Coal Authority,09/04/2024,Subsidence Pumping Maintenance - Power,ENV - Mine Water Operations,Edf Energy,180031,168.3
"Department for Energy, Security and Net Zero",The Coal Authority,09/04/2024,Subsidence Pumping Maintenance - Power,ENV - Mine Water Operations,Edf Energy,180031,879.13
"Department for Energy, Security and Net Zero",The Coal Authority,09/04/2024,Subsidence Pumping Maintenance - Power,ENV - Mine Water Operations,Edf Energy,180031,"2,474.15"
"Department for Energy, Security and Net Zero",The Coal Authority,09/04/2024,Subsidence Pumping Maintenance - Power,ENV - Mine Water Operations,Edf Energy,180031,498.15
"Department for Energy, Security and Net Zero",The Coal Authority,09/04/2024,Subsidence Pumping Maintenance - Power,ENV - Mine Water Operations,Edf Energy,180031,320.35
"Department for Energy, Security and Net Zero",The Coal Authority,09/04/2024,Subsidence Pumping Maintenance - Power,ENV - Mine Water Operations,Edf Energy,180031,"1,187.24"
"Department for Energy, Security and Net Zero",The Coal Authority,09/04/2024,Subsidence Pumping Maintenance - Power,ENV - Mine Water Operations,Edf Energy,180031,"1,974.72"
"Department for Energy, Security and Net Zero",The Coal Authority,09/04/2024,Subsidence Pumping Maintenance - Power,ENV - Mine Water Operations,Edf Energy,180031,"1,069.25"
"Department for Energy, Security and Net Zero",The Coal Authority,09/04/2024,Subsidence Pumping Maintenance - Power,ENV - Mine Water Operations,Edf Energy,180031,"7,013.46"
"Department for Energy, Security and Net Zero",The Coal Authority,09/04/2024,Subsidence Pumping Maintenance - Power,ENV - Mine Water Operations,Edf Energy,180031,"1,079.18"
"Department for Energy, Security and Net Zero",The Coal Authority,09/04/2024,Subsidence Pumping Maintenance - Power,ENV - Mine Water Operations,Edf Energy,180031,"4,396.15"
"Department for Energy, Security and Net Zero",The Coal Authority,09/04/2024,Subsidence Pumping Maintenance - Power,ENV - Mine Water Operations,Edf Energy,180031,955.63
"Department for Energy, Security and Net Zero",The Coal Authority,09/04/2024,Subsidence Pumping Maintenance - Power,ENV - Mine Water Operations,Edf Energy,180031,309.12
"Department for Energy, Security and Net Zero",The Coal Authority,09/04/2024,Subsidence Pumping Maintenance - Power,ENV - Mine Water Operations,Edf Energy,180031,"1,118.77"
"Department for Energy, Security and Net Zero",The Coal Authority,09/04/2024,Subsidence Pumping Maintenance - Power,ENV - Mine Water Operations,Edf Energy,180031,"5,319.52"
"Department for Energy, Security and Net Zero",The Coal Authority,09/04/2024,Subsidence Pumping Maintenance - Power,ENV - Mine Water Operations,Edf Energy,180031,377.28
"Department for Energy, Security and Net Zero",The Coal Authority,09/04/2024,Subsidence Pumping Maintenance - Power,ENV - Mine Water Operations,Edf Energy,180031,612.51
"Department for Energy, Security and Net Zero",The Coal Authority,09/04/2024,Subsidence Pumping Maintenance - Power,ENV - Mine Water Operations,Edf Energy,180031,"1,814.49"
"Department for Energy, Security and Net Zero",The Coal Authority,09/04/2024,Subsidence Pumping Maintenance - Power,ENV - Mine Water Operations,Edf Energy,180031,907.99
"Department for Energy, Security and Net Zero",The Coal Authority,09/04/2024,Subsidence Pumping Maintenance - Power,ENV - Mine Water Operations,Edf Energy,180031,185.22
"Department for Energy, Security and Net Zero",The Coal Authority,09/04/2024,Subsidence Pumping Maintenance - Power,ENV - Mine Water Operations,Edf Energy,180031,751.7
"Department for Energy, Security and Net Zero",The Coal Authority,07/05/2024,Subsidence Pumping Maintenance - Power,ENV - Mine Water Operations,Edf Energy,180043,-268.95
"Department for Energy, Security and Net Zero",The Coal Authority,01/05/2024,Subsidence Pumping Maintenance - Power,ENV - Mine Water Operations,Edf Energy,180733,733.64
"Department for Energy, Security and Net Zero",The Coal Authority,28/07/2023,Minewater Power Costs,ENV - Mine Water Operations,Edf Energy,180738,"5,189.07"
"Department for Energy, Security and Net Zero",The Coal Authority,28/07/2023,Minewater Power Costs,ENV - Mine Water Operations,Edf Energy,180747,"10,729.01"
"Department for Energy, Security and Net Zero",The Coal Authority,28/07/2023,Minewater Power Costs,ENV - Mine Water Operations,Edf Energy,180760,"8,233.03"
"Department for Energy, Security and Net Zero",The Coal Authority,28/07/2023,Minewater Power Costs,ENV - Mine Water Operations,Edf Energy,180761,"9,138.19"
"Department for Energy, Security and Net Zero",The Coal Authority,28/07/2023,Minewater Power Costs,ENV - Mine Water Operations,Edf Energy,180762,"8,065.95"
"Department for Energy, Security and Net Zero",The Coal Authority,28/07/2023,Minewater Power Costs,ENV - Mine Water Operations,Edf Energy,180784,"8,133.06"
"Department for Energy, Security and Net Zero",The Coal Authority,07/05/2024,Minewater Power Costs,ENV - Mine Water Operations,Edf Energy,181389,"2,262.80"
"Department for Energy, Security and Net Zero",The Coal Authority,07/05/2024,Minewater Power Costs,ENV - Mine Water Operations,Edf Energy,181389,"3,519.78"
"Department for Energy, Security and Net Zero",The Coal Authority,07/05/2024,Minewater Power Costs,ENV - Mine Water Operations,Edf Energy,181389,"1,473.41"
"Department for Energy, Security and Net Zero",The Coal Authority,07/05/2024,Minewater Power Costs,ENV - Mine Water Operations,Edf Energy,181389,"1,255.03"
"Department for Energy, Security and Net Zero",The Coal Authority,07/05/2024,Minewater Power Costs,ENV - Mine Water Operations,Edf Energy,181389,"5,009.23"
"Department for Energy, Security and Net Zero",The Coal Authority,07/05/2024,Minewater Power Costs,ENV - Mine Water Operations,Edf Energy,181389,"13,247.13"
"Department for Energy, Security and Net Zero",The Coal Authority,07/05/2024,Minewater Power Costs,ENV - Mine Water Operations,Edf Energy,181389,"24,397.48"
"Department for Energy, Security and Net Zero",The Coal Authority,07/05/2024,Minewater Power Costs,ENV - Mine Water Operations,Edf Energy,181389,"26,302.30"
"Department for Energy, Security and Net Zero",The Coal Authority,07/05/2024,Minewater Power Costs,ENV - Mine Water Operations,Edf Energy,181389,"20,058.05"
"Department for Energy, Security and Net Zero",The Coal Authority,07/05/2024,Minewater Power Costs,ENV - Mine Water Operations,Edf Energy,181389,"6,321.34"
"Department for Energy, Security and Net Zero",The Coal Authority,07/05/2024,Minewater Power Costs,ENV - Mine Water Operations,Edf Energy,181389,"1,943.25"
"Department for Energy, Security and Net Zero",The Coal Authority,07/05/2024,Minewater Power Costs,ENV - Mine Water Operations,Edf Energy,181389,"5,307.92"
"Department for Energy, Security and Net Zero",The Coal Authority,07/05/2024,Minewater Power Costs,ENV - Mine Water Operations,Edf Energy,181389,"8,003.43"
"Department for Energy, Security and Net Zero",The Coal Authority,07/05/2024,Minewater Power Costs,ENV - Mine Water Operations,Edf Energy,181389,"8,448.89"
"Department for Energy, Security and Net Zero",The Coal Authority,07/05/2024,Minewater Power Costs,ENV - Mine Water Operations,Edf Energy,181389,"35,671.31"
"Department for Energy, Security and Net Zero",The Coal Authority,07/05/2024,Minewater Power Costs,ENV - Mine Water Operations,Edf Energy,181389,"7,226.60"
"Department for Energy, Security and Net Zero",The Coal Authority,07/05/2024,Minewater Power Costs,ENV - Mine Water Operations,Edf Energy,181389,"2,255.98"
"Department for Energy, Security and Net Zero",The Coal Authority,07/05/2024,Minewater Power Costs,ENV - Mine Water Operations,Edf Energy,181389,"2,860.07"
"Department for Energy, Security and Net Zero",The Coal Authority,07/05/2024,Minewater Power Costs,ENV - Mine Water Operations,Edf Energy,181389,"8,761.78"
"Department for Energy, Security and Net Zero",The Coal Authority,07/05/2024,Minewater Power Costs,ENV - Mine Water Operations,Edf Energy,181389,72.28
"Department for Energy, Security and Net Zero",The Coal Authority,07/05/2024,Minewater Power Costs,ENV - Mine Water Operations,Edf Energy,181389,"18,081.84"
"Department for Energy, Security and Net Zero",The Coal Authority,07/05/2024,Minewater Power Costs,ENV - Mine Water Operations,Edf Energy,181389,"2,072.88"
"Department for Energy, Security and Net Zero",The Coal Authority,07/05/2024,Minewater Power Costs,ENV - Mine Water Operations,Edf Energy,181389,"4,849.00"
"Department for Energy, Security and Net Zero",The Coal Authority,07/05/2024,Minewater Power Costs,ENV - Mine Water Operations,Edf Energy,181389,"16,086.21"
"Department for Energy, Security and Net Zero",The Coal Authority,07/05/2024,Minewater Power Costs,ENV - Mine Water Operations,Edf Energy,181389,"7,946.73"
"Department for Energy, Security and Net Zero",The Coal Authority,07/05/2024,Minewater Power Costs,ENV - Mine Water Operations,Edf Energy,181389,"16,962.69"
"Department for Energy, Security and Net Zero",The Coal Authority,07/05/2024,Minewater Power Costs,ENV - Mine Water Operations,Edf Energy,181389,"35,409.71"
"Department for Energy, Security and Net Zero",The Coal Authority,07/05/2024,Minewater Power Costs,ENV - Mine Water Operations,Edf Energy,181389,"4,127.36"
"Department for Energy, Security and Net Zero",The Coal Authority,07/05/2024,Minewater Power Costs,ENV - Mine Water Operations,Edf Energy,181389,"31,424.03"
"Department for Energy, Security and Net Zero",The Coal Authority,07/05/2024,Minewater Power Costs,ENV - Mine Water Operations,Edf Energy,181389,"27,945.50"
"Department for Energy, Security and Net Zero",The Coal Authority,07/05/2024,Minewater Power Costs,ENV - Mine Water Operations,Edf Energy,181389,"14,771.74"
"Department for Energy, Security and Net Zero",The Coal Authority,07/05/2024,Minewater Power Costs,ENV - Mine Water Operations,Edf Energy,181389,"3,175.97"
"Department for Energy, Security and Net Zero",The Coal Authority,07/05/2024,Minewater Power Costs,ENV - Mine Water Operations,Edf Energy,181389,"11,120.16"
"Department for Energy, Security and Net Zero",The Coal Authority,07/05/2024,Minewater Power Costs,ENV - Mine Water Operations,Edf Energy,181389,"4,059.07"
"Department for Energy, Security and Net Zero",The Coal Authority,07/05/2024,Minewater Power Costs,ENV - Mine Water Operations,Edf Energy,181389,"7,541.68"
"Department for Energy, Security and Net Zero",The Coal Authority,07/05/2024,Minewater Power Costs,ENV - Mine Water Operations,Edf Energy,181389,"2,633.57"
"Department for Energy, Security and Net Zero",The Coal Authority,07/05/2024,Minewater Power Costs,ENV - Mine Water Operations,Edf Energy,181389,152.29
"Department for Energy, Security and Net Zero",The Coal Authority,07/05/2024,Minewater Power Costs,ENV - Mine Water Operations,Edf Energy,181389,"10,470.50"
"Department for Energy, Security and Net Zero",The Coal Authority,07/05/2024,Minewater Power Costs,ENV - Mine Water Operations,Edf Energy,181389,"1,553.80"
"Department for Energy, Security and Net Zero",The Coal Authority,07/05/2024,Minewater Power Costs,ENV - Mine Water Operations,Edf Energy,181389,"2,343.80"
"Department for Energy, Security and Net Zero",The Coal Authority,07/05/2024,Minewater Power Costs,ENV - Mine Water Operations,Edf Energy,181389,"1,064.03"
"Department for Energy, Security and Net Zero",The Coal Authority,07/05/2024,Minewater Power Costs,ENV - Mine Water Operations,Edf Energy,181389,981.98
"Department for Energy, Security and Net Zero",The Coal Authority,07/05/2024,Minewater Power Costs,ENV - Mine Water Operations,Edf Energy,181389,"3,856.99"
"Department for Energy, Security and Net Zero",The Coal Authority,07/05/2024,Minewater Power Costs,ENV - Mine Water Operations,Edf Energy,181389,"2,852.88"
"Department for Energy, Security and Net Zero",The Coal Authority,07/05/2024,Minewater Power Costs,ENV - Mine Water Operations,Edf Energy,181389,"1,510.78"
"Department for Energy, Security and Net Zero",The Coal Authority,07/05/2024,Minewater Power Costs,ENV - Mine Water Operations,Edf Energy,181389,"6,078.45"
"Department for Energy, Security and Net Zero",The Coal Authority,07/05/2024,Minewater Power Costs,ENV - Mine Water Operations,Edf Energy,181389,"18,892.56"
"Department for Energy, Security and Net Zero",The Coal Authority,07/05/2024,Subsidence Pumping Maintenance - Power,ENV - Mine Water Operations,Edf Energy,181389,614.09
"Department for Energy, Security and Net Zero",The Coal Authority,07/05/2024,Subsidence Pumping Maintenance - Power,ENV - Mine Water Operations,Edf Energy,181389,364.15
"Department for Energy, Security and Net Zero",The Coal Authority,07/05/2024,Subsidence Pumping Maintenance - Power,ENV - Mine Water Operations,Edf Energy,181389,212.03
"Department for Energy, Security and Net Zero",The Coal Authority,07/05/2024,Subsidence Pumping Maintenance - Power,ENV - Mine Water Operations,Edf Energy,181389,790.57
"Department for Energy, Security and Net Zero",The Coal Authority,07/05/2024,Subsidence Pumping Maintenance - Power,ENV - Mine Water Operations,Edf Energy,181389,797.84
"Department for Energy, Security and Net Zero",The Coal Authority,07/05/2024,Subsidence Pumping Maintenance - Power,ENV - Mine Water Operations,Edf Energy,181389,"1,303.29"
"Department for Energy, Security and Net Zero",The Coal Authority,07/05/2024,Subsidence Pumping Maintenance - Power,ENV - Mine Water Operations,Edf Energy,181389,82.92
"Department for Energy, Security and Net Zero",The Coal Authority,07/05/2024,Subsidence Pumping Maintenance - Power,ENV - Mine Water Operations,Edf Energy,181389,377.8
"Department for Energy, Security and Net Zero",The Coal Authority,07/05/2024,Subsidence Pumping Maintenance - Power,ENV - Mine Water Operations,Edf Energy,181389,"1,395.84"
"Department for Energy, Security and Net Zero",The Coal Authority,07/05/2024,Subsidence Pumping Maintenance - Power,ENV - Mine Water Operations,Edf Energy,181389,"3,595.63"
"Department for Energy, Security and Net Zero",The Coal Authority,07/05/2024,Subsidence Pumping Maintenance - Power,ENV - Mine Water Operations,Edf Energy,181389,"1,027.70"
"Department for Energy, Security and Net Zero",The Coal Authority,07/05/2024,Subsidence Pumping Maintenance - Power,ENV - Mine Water Operations,Edf Energy,181389,34.5
"Department for Energy, Security and Net Zero",The Coal Authority,07/05/2024,Subsidence Pumping Maintenance - Power,ENV - Mine Water Operations,Edf Energy,181389,757.39
"Department for Energy, Security and Net Zero",The Coal Authority,07/05/2024,Subsidence Pumping Maintenance - Power,ENV - Mine Water Operations,Edf Energy,181389,"2,875.85"
"Department for Energy, Security and Net Zero",The Coal Authority,07/05/2024,Subsidence Pumping Maintenance - Power,ENV - Mine Water Operations,Edf Energy,181389,246.78
"Department for Energy, Security and Net Zero",The Coal Authority,07/05/2024,Subsidence Pumping Maintenance - Power,ENV - Mine Water Operations,Edf Energy,181389,"1,155.21"
"Department for Energy, Security and Net Zero",The Coal Authority,07/05/2024,Subsidence Pumping Maintenance - Power,ENV - Mine Water Operations,Edf Energy,181389,692.47
"Department for Energy, Security and Net Zero",The Coal Authority,07/05/2024,Subsidence Pumping Maintenance - Power,ENV - Mine Water Operations,Edf Energy,181389,"3,833.72"
"Department for Energy, Security and Net Zero",The Coal Authority,07/05/2024,Subsidence Pumping Maintenance - Power,ENV - Mine Water Operations,Edf Energy,181389,"1,157.77"
"Department for Energy, Security and Net Zero",The Coal Authority,07/05/2024,Subsidence Pumping Maintenance - Power,ENV - Mine Water Operations,Edf Energy,181389,173.78
"Department for Energy, Security and Net Zero",The Coal Authority,30/05/2024,Subsidence Pumping Maintenance - Power,ENV - Mine Water Operations,Edf Energy,181407,"-7,185.26"
"Department for Energy, Security and Net Zero",The Coal Authority,30/05/2024,Subsidence Pumping Maintenance - Power,ENV - Mine Water Operations,Edf Energy,181407,-353.56
"Department for Energy, Security and Net Zero",The Coal Authority,10/05/2024,Short Term Vehicle Hire,ENV - Mine Water Operations,Enterprise Rent A Car,181117,349.2
"Department for Energy, Security and Net Zero",The Coal Authority,24/04/2024,Minewater Discharge Consents,ENV - Mine Water Operations,Environment Agency,179641,"1,686.00"
"Department for Energy, Security and Net Zero",The Coal Authority,24/04/2024,Minewater Discharge Consents,ENV - Mine Water Operations,Environment Agency,179641,"1,686.00"
"Department for Energy, Security and Net Zero",The Coal Authority,24/04/2024,Minewater Discharge Consents,ENV - Mine Water Operations,Environment Agency,179641,"1,686.00"
"Department for Energy, Security and Net Zero",The Coal Authority,24/04/2024,Minewater Discharge Consents,ENV - Mine Water Operations,Environment Agency,179641,718
"Department for Energy, Security and Net Zero",The Coal Authority,24/04/2024,Minewater Discharge Consents,ENV - Mine Water Operations,Environment Agency,179641,"1,686.00"
"Department for Energy, Security and Net Zero",The Coal Authority,24/04/2024,Minewater Discharge Consents,ENV - Mine Water Operations,Environment Agency,179675,"1,686.00"
"Department for Energy, Security and Net Zero",The Coal Authority,24/04/2024,Minewater Discharge Consents,ENV - Mine Water Operations,Environment Agency,179682,"1,686.00"
"Department for Energy, Security and Net Zero",The Coal Authority,25/04/2024,Minewater Discharge Consents,ENV - Mine Water Operations,Environment Agency,179683,97
"Department for Energy, Security and Net Zero",The Coal Authority,24/04/2024,Minewater Discharge Consents,ENV - Mine Water Operations,Environment Agency,179684,"1,686.00"
"Department for Energy, Security and Net Zero",The Coal Authority,25/04/2024,Minewater Discharge Consents,ENV - Mine Water Operations,Environment Agency,179685,97
"Department for Energy, Security and Net Zero",The Coal Authority,25/04/2024,Minewater Discharge Consents,ENV - Mine Water Operations,Environment Agency,179686,97
"Department for Energy, Security and Net Zero",The Coal Authority,24/04/2024,Minewater Discharge Consents,ENV - Mine Water Operations,Environment Agency,179960,"1,686.00"
"Department for Energy, Security and Net Zero",The Coal Authority,24/04/2024,Minewater Discharge Consents,ENV - Mine Water Operations,Environment Agency,179960,"1,686.00"
"Department for Energy, Security and Net Zero",The Coal Authority,24/04/2024,Minewater Discharge Consents,ENV - Mine Water Operations,Environment Agency,179960,718
"Department for Energy, Security and Net Zero",The Coal Authority,24/04/2024,Minewater Discharge Consents,ENV - Mine Water Operations,Environment Agency,179960,"1,686.00"
"Department for Energy, Security and Net Zero",The Coal Authority,24/04/2024,Minewater Discharge Consents,ENV - Mine Water Operations,Environment Agency,179960,"1,686.00"
"Department for Energy, Security and Net Zero",The Coal Authority,24/04/2024,Minewater Discharge Consents,ENV - Mine Water Operations,Environment Agency,179961,"1,686.00"
"Department for Energy, Security and Net Zero",The Coal Authority,24/04/2024,Minewater Discharge Consents,ENV - Mine Water Operations,Environment Agency,179961,"1,686.00"
"Department for Energy, Security and Net Zero",The Coal Authority,24/04/2024,Minewater Discharge Consents,ENV - Mine Water Operations,Environment Agency,179961,"1,686.00"
"Department for Energy, Security and Net Zero",The Coal Authority,24/04/2024,Minewater Discharge Consents,ENV - Mine Water Operations,Environment Agency,179961,"1,686.00"
"Department for Energy, Security and Net Zero",The Coal Authority,24/04/2024,Minewater Discharge Consents,ENV - Mine Water Operations,Environment Agency,179961,718
"Department for Energy, Security and Net Zero",The Coal Authority,24/04/2024,Minewater Discharge Consents,ENV - Mine Water Operations,Environment Agency,179961,"1,686.00"
"Department for Energy, Security and Net Zero",The Coal Authority,24/04/2024,Minewater Discharge Consents,ENV - Mine Water Operations,Environment Agency,179961,"1,686.00"
"Department for Energy, Security and Net Zero",The Coal Authority,24/04/2024,Minewater Discharge Consents,ENV - Mine Water Operations,Environment Agency,179961,"1,686.00"
"Department for Energy, Security and Net Zero",The Coal Authority,24/04/2024,Minewater Discharge Consents,ENV - Mine Water Operations,Environment Agency,179962,"1,686.00"
"Department for Energy, Security and Net Zero",The Coal Authority,24/04/2024,Minewater Discharge Consents,ENV - Mine Water Operations,Environment Agency,179962,718
"Department for Energy, Security and Net Zero",The Coal Authority,24/04/2024,Minewater Discharge Consents,ENV - Mine Water Operations,Environment Agency,179963,"1,686.00"
"Department for Energy, Security and Net Zero",The Coal Authority,24/04/2024,Minewater Discharge Consents,ENV - Mine Water Operations,Environment Agency,179963,"1,686.00"
"Department for Energy, Security and Net Zero",The Coal Authority,24/04/2024,Minewater Discharge Consents,ENV - Mine Water Operations,Environment Agency,179963,718
"Department for Energy, Security and Net Zero",The Coal Authority,24/04/2024,Minewater Discharge Consents,ENV - Mine Water Operations,Environment Agency,179963,"1,686.00"
"Department for Energy, Security and Net Zero",The Coal Authority,24/04/2024,Minewater Discharge Consents,ENV - Mine Water Operations,Environment Agency,179963,"1,686.00"
"Department for Energy, Security and Net Zero",The Coal Authority,26/04/2024,Subsidence Pumping Maintenance - Planned,ENV - Mine Water Operations,Environment Agency,180392,"2,289.92"
"Department for Energy, Security and Net Zero",The Coal Authority,26/04/2024,Subsidence Pumping Maintenance - Planned,ENV - Mine Water Operations,Environment Agency,180393,"3,517.57"
"Department for Energy, Security and Net Zero",The Coal Authority,26/04/2024,Subsidence Pumping Maintenance - Planned,ENV - Mine Water Operations,Environment Agency,180394,"3,708.91"
"Department for Energy, Security and Net Zero",The Coal Authority,26/04/2024,Subsidence Pumping Maintenance - Planned,ENV - Mine Water Operations,Environment Agency,180395,"2,769.09"
"Department for Energy, Security and Net Zero",The Coal Authority,26/04/2024,Subsidence Pumping Maintenance - Planned,ENV - Mine Water Operations,Environment Agency,180396,160.65
"Department for Energy, Security and Net Zero",The Coal Authority,26/04/2024,Subsidence Pumping Maintenance - Planned,ENV - Mine Water Operations,Environment Agency,180397,"3,699.10"
"Department for Energy, Security and Net Zero",The Coal Authority,26/04/2024,Subsidence Pumping Maintenance - Planned,ENV - Mine Water Operations,Environment Agency,180398,"8,006.83"
"Department for Energy, Security and Net Zero",The Coal Authority,26/04/2024,Subsidence Pumping Maintenance - Planned,ENV - Mine Water Operations,Environment Agency,180399,"1,058.28"
"Department for Energy, Security and Net Zero",The Coal Authority,25/04/2024,Minewater Discharge Consents,ENV - Mine Water Operations,Environment Agency,180464,102
"Department for Energy, Security and Net Zero",The Coal Authority,24/04/2024,Minewater Discharge Consents,ENV - Mine Water Operations,Environment Agency,180484,"1,686.00"
"Department for Energy, Security and Net Zero",The Coal Authority,24/04/2024,Minewater Discharge Consents,ENV - Mine Water Operations,Environment Agency,180484,"1,686.00"
"Department for Energy, Security and Net Zero",The Coal Authority,24/04/2024,Minewater Discharge Consents,ENV - Mine Water Operations,Environment Agency,180484,718
"Department for Energy, Security and Net Zero",The Coal Authority,24/04/2024,Minewater Discharge Consents,ENV - Mine Water Operations,Environment Agency,180484,718
"Department for Energy, Security and Net Zero",The Coal Authority,24/04/2024,Minewater Discharge Consents,ENV - Mine Water Operations,Environment Agency,180484,718
"Department for Energy, Security and Net Zero",The Coal Authority,24/04/2024,Minewater Discharge Consents,ENV - Mine Water Operations,Environment Agency,180484,718
"Department for Energy, Security and Net Zero",The Coal Authority,24/04/2024,Minewater Discharge Consents,ENV - Mine Water Operations,Environment Agency,180484,"1,686.00"
"Department for Energy, Security and Net Zero",The Coal Authority,24/04/2024,Minewater Discharge Consents,ENV - Mine Water Operations,Environment Agency,180484,912
"Department for Energy, Security and Net Zero",The Coal Authority,24/04/2024,Minewater Discharge Consents,ENV - Mine Water Operations,Environment Agency,180484,718
"Department for Energy, Security and Net Zero",The Coal Authority,24/04/2024,Minewater Discharge Consents,ENV - Mine Water Operations,Environment Agency,180484,"1,686.00"
"Department for Energy, Security and Net Zero",The Coal Authority,24/04/2024,Minewater Discharge Consents,ENV - Mine Water Operations,Environment Agency,180484,718
"Department for Energy, Security and Net Zero",The Coal Authority,03/05/2024,Subsidence Pumping Maintenance - Planned,ENV - Mine Water Operations,Environment Agency,180934,"5,961.58"
"Department for Energy, Security and Net Zero",The Coal Authority,13/03/2024,CY - Minewater Scheme - Additions,ENV - Mine Water Operations,Environmental Monitoring Solutions Limited,180831,"5,481.00"
"Department for Energy, Security and Net Zero",The Coal Authority,02/04/2024,Fuel (Vehicle),ENV - Mine Water Operations,Government Procurement Card,181485,56.67
"Department for Energy, Security and Net Zero",The Coal Authority,05/04/2024,Subsistence Allowances,ENV - Mine Water Operations,Government Procurement Card,181485,5.16
"Department for Energy, Security and Net Zero",The Coal Authority,09/04/2024,Subsistence Allowances,ENV - Mine Water Operations,Government Procurement Card,181485,6.87
"Department for Energy, Security and Net Zero",The Coal Authority,11/04/2024,Fuel (Vehicle),ENV - Mine Water Operations,Government Procurement Card,181485,39.17
"Department for Energy, Security and Net Zero",The Coal Authority,11/04/2024,Subsistence Allowances,ENV - Mine Water Operations,Government Procurement Card,181485,23.96
"Department for Energy, Security and Net Zero",The Coal Authority,11/04/2024,Subsistence Allowances,ENV - Mine Water Operations,Government Procurement Card,181485,4.58
"Department for Energy, Security and Net Zero",The Coal Authority,12/04/2024,Subsistence Allowances,ENV - Mine Water Operations,Government Procurement Card,181485,5.65
"Department for Energy, Security and Net Zero",The Coal Authority,15/04/2024,Fuel (Vehicle),ENV - Mine Water Operations,Government Procurement Card,181485,50
"Department for Energy, Security and Net Zero",The Coal Authority,16/04/2024,Fuel (Vehicle),ENV - Mine Water Operations,Government Procurement Card,181485,57.66
"Department for Energy, Security and Net Zero",The Coal Authority,16/04/2024,Subsistence Allowances,ENV - Mine Water Operations,Government Procurement Card,181485,2.42
"Department for Energy, Security and Net Zero",The Coal Authority,17/04/2024,Mine Entry Inspection - Equipment,ENV - Mine Water Operations,Government Procurement Card,181485,116.47
"Department for Energy, Security and Net Zero",The Coal Authority,19/04/2024,Fuel (Vehicle),ENV - Mine Water Operations,Government Procurement Card,181485,1.43
"Department for Energy, Security and Net Zero",The Coal Authority,19/04/2024,Fuel (Vehicle),ENV - Mine Water Operations,Government Procurement Card,181485,31.78
"Department for Energy, Security and Net Zero",The Coal Authority,19/04/2024,Incidentals,ENV - Mine Water Operations,Government Procurement Card,181485,6.66
"Department for Energy, Security and Net Zero",The Coal Authority,19/04/2024,Subsistence Allowances,ENV - Mine Water Operations,Government Procurement Card,181485,8.54
"Department for Energy, Security and Net Zero",The Coal Authority,19/04/2024,Subsistence Allowances,ENV - Mine Water Operations,Government Procurement Card,181485,4.32
"Department for Energy, Security and Net Zero",The Coal Authority,19/04/2024,Subsistence Allowances,ENV - Mine Water Operations,Government Procurement Card,181485,7.64
"Department for Energy, Security and Net Zero",The Coal Authority,22/04/2024,Fuel (Vehicle),ENV - Mine Water Operations,Government Procurement Card,181485,1.47
"Department for Energy, Security and Net Zero",The Coal Authority,24/04/2024,Subsistence Allowances,ENV - Mine Water Operations,Government Procurement Card,181485,14.38
"Department for Energy, Security and Net Zero",The Coal Authority,25/04/2024,Subsistence Allowances,ENV - Mine Water Operations,Government Procurement Card,181485,4.48
"Department for Energy, Security and Net Zero",The Coal Authority,25/04/2024,Subsistence Allowances,ENV - Mine Water Operations,Government Procurement Card,181485,24.63
"Department for Energy, Security and Net Zero",The Coal Authority,25/04/2024,Subsistence Allowances,ENV - Mine Water Operations,Government Procurement Card,181485,19.46
"Department for Energy, Security and Net Zero",The Coal Authority,25/04/2024,Subsistence Allowances,ENV - Mine Water Operations,Government Procurement Card,181485,6.83
"Department for Energy, Security and Net Zero",The Coal Authority,25/04/2024,Subsistence Allowances,ENV - Mine Water Operations,Government Procurement Card,181485,6.45
"Department for Energy, Security and Net Zero",The Coal Authority,26/04/2024,Subsistence Allowances,ENV - Mine Water Operations,Government Procurement Card,181485,2.08
"Department for Energy, Security and Net Zero",The Coal Authority,26/04/2024,Subsistence Allowances,ENV - Mine Water Operations,Government Procurement Card,181485,3.92
"Department for Energy, Security and Net Zero",The Coal Authority,30/04/2024,Subsistence Allowances,ENV - Mine Water Operations,Government Procurement Card,181485,6
"Department for Energy, Security and Net Zero",The Coal Authority,31/03/2024,Minewater Contractor Add. Task Order - Ops Site,ENV - Mine Water Operations,Isle Axholme & Nth Notts Water,179591,487.07
"Department for Energy, Security and Net Zero",The Coal Authority,31/03/2024,Minewater Telecoms & Telemetry,ENV - Mine Water Operations,Isle Axholme & Nth Notts Water,179591,156.33
"Department for Energy, Security and Net Zero",The Coal Authority,31/03/2024,Subsidence Pumping - Management Fees,ENV - Mine Water Operations,Isle Axholme & Nth Notts Water,179591,182.1
"Department for Energy, Security and Net Zero",The Coal Authority,31/03/2024,Subsidence Pumping - Management Fees,ENV - Mine Water Operations,Isle Axholme & Nth Notts Water,179591,200.93
"Department for Energy, Security and Net Zero",The Coal Authority,31/03/2024,Subsidence Pumping Maintenance - Ad Hoc,ENV - Mine Water Operations,Isle Axholme & Nth Notts Water,179591,812.5
"Department for Energy, Security and Net Zero",The Coal Authority,31/03/2024,Subsidence Pumping Maintenance - Power,ENV - Mine Water Operations,Isle Axholme & Nth Notts Water,179591,371.28
"Department for Energy, Security and Net Zero",The Coal Authority,30/04/2024,Minewater Telecoms & Telemetry,ENV - Mine Water Operations,KORE Wireless UK PLC,179972,35
"Department for Energy, Security and Net Zero",The Coal Authority,30/04/2024,Minewater Telecoms & Telemetry,ENV - Mine Water Operations,KORE Wireless UK PLC,179973,15
"Department for Energy, Security and Net Zero",The Coal Authority,27/03/2024,Minewater Rent,ENV - Mine Water Operations,Rental Payment,181326,50
"Department for Energy, Security and Net Zero",The Coal Authority,01/05/2024,Minewater Rent,ENV - Mine Water Operations,Rental Payment,181312,350
"Department for Energy, Security and Net Zero",The Coal Authority,07/05/2024,Minewater Rent,ENV - Mine Water Operations,Rental Payment,180022,"5,188.54"
"Department for Energy, Security and Net Zero",The Coal Authority,07/05/2024,Minewater Rent,ENV - Mine Water Operations,Rental Payment,180001,50
"Department for Energy, Security and Net Zero",The Coal Authority,07/05/2024,Minewater Rent,ENV - Mine Water Operations,Rental Payment,180002,200
"Department for Energy, Security and Net Zero",The Coal Authority,30/04/2024,Minewater Contractor Add. Task Order - Ops Site,ENV - Mine Water Operations,National Coal Mining Museum,179688,"6,766.42"
"Department for Energy, Security and Net Zero",The Coal Authority,30/04/2024,Minewater Discharge Consents,ENV - Mine Water Operations,National Coal Mining Museum,180099,"1,686.00"
"Department for Energy, Security and Net Zero",The Coal Authority,29/05/2024,Minewater Contractor Maint. Visits - Ops Site,ENV - Mine Water Operations,National Coal Mining Museum,181497,"7,422.14"
"Department for Energy, Security and Net Zero",The Coal Authority,15/05/2024,Minewater Rent,ENV - Mine Water Operations,Network Rail,180821,40
"Department for Energy, Security and Net Zero",The Coal Authority,31/03/2024,Subsidence Pumping - Management Fees,ENV - Mine Water Operations,Ouse&Derwnt Intern Drainge Brd,179756,"11,957.33"
"Department for Energy, Security and Net Zero",The Coal Authority,31/03/2024,Subsidence Pumping Maintenance - Ad Hoc,ENV - Mine Water Operations,Ouse&Derwnt Intern Drainge Brd,179756,"6,050.96"
"Department for Energy, Security and Net Zero",The Coal Authority,31/03/2024,Subsidence Pumping Maintenance - Planned,ENV - Mine Water Operations,Ouse&Derwnt Intern Drainge Brd,179756,"1,816.97"
"Department for Energy, Security and Net Zero",The Coal Authority,31/03/2024,Subsidence Pumping Maintenance - Power,ENV - Mine Water Operations,Ouse&Derwnt Intern Drainge Brd,179756,"71,847.58"
"Department for Energy, Security and Net Zero",The Coal Authority,31/03/2024,Subsidence Pumping - Management Fees,ENV - Mine Water Operations,Ouse&Derwnt Intern Drainge Brd,179757,734.69
"Department for Energy, Security and Net Zero",The Coal Authority,31/03/2024,Subsidence Pumping Maintenance - Ad Hoc,ENV - Mine Water Operations,Ouse&Derwnt Intern Drainge Brd,179757,34.36
"Department for Energy, Security and Net Zero",The Coal Authority,31/03/2024,Subsidence Pumping Maintenance - Ad Hoc,ENV - Mine Water Operations,Ouse&Derwnt Intern Drainge Brd,179757,6
"Department for Energy, Security and Net Zero",The Coal Authority,31/03/2024,Subsidence Pumping Maintenance - Power,ENV - Mine Water Operations,Ouse&Derwnt Intern Drainge Brd,179757,"4,660.04"
"Department for Energy, Security and Net Zero",The Coal Authority,31/03/2024,Subsidence Pumping Maintenance - Power,ENV - Mine Water Operations,Ouse&Derwnt Intern Drainge Brd,179757,197.51
"Department for Energy, Security and Net Zero",The Coal Authority,31/03/2024,Subsidence Pumping - Management Fees,ENV - Mine Water Operations,Ouse&Derwnt Intern Drainge Brd,179794,401.85
"Department for Energy, Security and Net Zero",The Coal Authority,31/03/2024,Subsidence Pumping Maintenance - Ad Hoc,ENV - Mine Water Operations,Ouse&Derwnt Intern Drainge Brd,179794,45.27
"Department for Energy, Security and Net Zero",The Coal Authority,31/03/2024,Subsidence Pumping Maintenance - Planned,ENV - Mine Water Operations,Ouse&Derwnt Intern Drainge Brd,179794,260.32
"Department for Energy, Security and Net Zero",The Coal Authority,31/03/2024,Subsidence Pumping Maintenance - Power,ENV - Mine Water Operations,Ouse&Derwnt Intern Drainge Brd,179794,"2,373.44"
"Department for Energy, Security and Net Zero",The Coal Authority,31/03/2024,Subsidence Pumping - Management Fees,ENV - Mine Water Operations,Ouse&Derwnt Intern Drainge Brd,180076,"8,113.51"
"Department for Energy, Security and Net Zero",The Coal Authority,31/03/2024,Subsidence Pumping Maintenance - Ad Hoc,ENV - Mine Water Operations,Ouse&Derwnt Intern Drainge Brd,180076,"5,373.29"
"Department for Energy, Security and Net Zero",The Coal Authority,31/03/2024,Subsidence Pumping Maintenance - Planned,ENV - Mine Water Operations,Ouse&Derwnt Intern Drainge Brd,180076,"1,207.54"
"Department for Energy, Security and Net Zero",The Coal Authority,31/03/2024,Subsidence Pumping Maintenance - Power,ENV - Mine Water Operations,Ouse&Derwnt Intern Drainge Brd,180076,1.46
"Department for Energy, Security and Net Zero",The Coal Authority,31/03/2024,Subsidence Pumping Maintenance - Power,ENV - Mine Water Operations,Ouse&Derwnt Intern Drainge Brd,180076,"47,507.78"
"Department for Energy, Security and Net Zero",The Coal Authority,31/03/2024,Subsidence Pumping - Management Fees,ENV - Mine Water Operations,Ouse&Derwnt Intern Drainge Brd,180089,"3,240.50"
"Department for Energy, Security and Net Zero",The Coal Authority,31/03/2024,Subsidence Pumping Maintenance - Ad Hoc,ENV - Mine Water Operations,Ouse&Derwnt Intern Drainge Brd,180089,"1,545.15"
"Department for Energy, Security and Net Zero",The Coal Authority,31/03/2024,Subsidence Pumping Maintenance - Planned,ENV - Mine Water Operations,Ouse&Derwnt Intern Drainge Brd,180089,607.21
"Department for Energy, Security and Net Zero",The Coal Authority,31/03/2024,Subsidence Pumping Maintenance - Power,ENV - Mine Water Operations,Ouse&Derwnt Intern Drainge Brd,180089,"19,450.39"
"Department for Energy, Security and Net Zero",The Coal Authority,31/03/2024,Subsidence Pumping Maintenance - Power,ENV - Mine Water Operations,Ouse&Derwnt Intern Drainge Brd,180089,0.58
"Department for Energy, Security and Net Zero",The Coal Authority,01/06/2024,Minewater Rent,ENV - Mine Water Operations,Savills Uk Ltd Client Recpt A/c,181260,428.73
"Department for Energy, Security and Net Zero",The Coal Authority,31/03/2024,Subsidence Pumping Maintenance - Ad Hoc,ENV - Mine Water Operations,Selby Area Internal Drain Brd,180947,-0.03
"Department for Energy, Security and Net Zero",The Coal Authority,31/03/2024,Subsidence Pumping Maintenance - Ad Hoc,ENV - Mine Water Operations,Selby Area Internal Drain Brd,180947,473.67
"Department for Energy, Security and Net Zero",The Coal Authority,31/03/2024,Subsidence Pumping Maintenance - Ad Hoc,ENV - Mine Water Operations,Selby Area Internal Drain Brd,180947,"2,167.48"
"Department for Energy, Security and Net Zero",The Coal Authority,31/03/2024,Subsidence Pumping Maintenance - Power,ENV - Mine Water Operations,Selby Area Internal Drain Brd,180947,"1,409.00"
"Department for Energy, Security and Net Zero",The Coal Authority,31/03/2024,Subsidence Pumping Maintenance - Ad Hoc,ENV - Mine Water Operations,Selby Area Internal Drain Brd,180988,69.03
"Department for Energy, Security and Net Zero",The Coal Authority,31/03/2024,Subsidence Pumping Maintenance - Planned,ENV - Mine Water Operations,Selby Area Internal Drain Brd,180988,"2,279.31"
"Department for Energy, Security and Net Zero",The Coal Authority,31/03/2024,Subsidence Pumping Maintenance - Ad Hoc,ENV - Mine Water Operations,Selby Area Internal Drain Brd,181077,"2,587.08"
"Department for Energy, Security and Net Zero",The Coal Authority,31/03/2024,Subsidence Pumping Maintenance - Ad Hoc,ENV - Mine Water Operations,Selby Area Internal Drain Brd,181077,"1,373.00"
"Department for Energy, Security and Net Zero",The Coal Authority,31/03/2024,Subsidence Pumping Maintenance - Planned,ENV - Mine Water Operations,Selby Area Internal Drain Brd,181202,"1,957.14"
"Department for Energy, Security and Net Zero",The Coal Authority,31/03/2024,Subsidence Pumping Maintenance - Planned,ENV - Mine Water Operations,Selby Area Internal Drain Brd,181202,49.8
"Department for Energy, Security and Net Zero",The Coal Authority,31/03/2024,Subsidence Pumping Maintenance - Power,ENV - Mine Water Operations,Selby Area Internal Drain Brd,181202,135.74
"Department for Energy, Security and Net Zero",The Coal Authority,17/04/2024,Minewater Discharge Consents,ENV - Mine Water Operations,Sepa,179593,"3,319.25"
"Department for Energy, Security and Net Zero",The Coal Authority,07/05/2024,Minewater Contractor Maint. Visits - Ops Site,ENV - Mine Water Operations,Severn Trent Serv Ops Uk Ltd,180244,"8,490.59"
"Department for Energy, Security and Net Zero",The Coal Authority,07/05/2024,Minewater Contractor Maint. Visits - Ops Site,ENV - Mine Water Operations,Severn Trent Serv Ops Uk Ltd,180245,"528,701.43"
"Department for Energy, Security and Net Zero",The Coal Authority,09/05/2024,CY - Minewater Scheme - Additions,ENV - Mine Water Operations,Severn Trent Serv Ops Uk Ltd,180268,-103.37
"Department for Energy, Security and Net Zero",The Coal Authority,09/05/2024,CY - Minewater Scheme - Additions,ENV - Mine Water Operations,Severn Trent Serv Ops Uk Ltd,180268,"-21,684.76"
"Department for Energy, Security and Net Zero",The Coal Authority,09/05/2024,CY - Minewater Scheme - Additions,ENV - Mine Water Operations,Severn Trent Serv Ops Uk Ltd,180268,-638.8
"Department for Energy, Security and Net Zero",The Coal Authority,09/05/2024,CY - Plant & Machinery - Additions,ENV - Mine Water Operations,Severn Trent Serv Ops Uk Ltd,180268,-236.64
"Department for Energy, Security and Net Zero",The Coal Authority,15/05/2024,CY - Minewater Scheme - Additions,ENV - Mine Water Operations,Severn Trent Serv Ops Uk Ltd,180617,-414.47
"Department for Energy, Security and Net Zero",The Coal Authority,07/05/2024,CY - Minewater Scheme - Additions,ENV - Mine Water Operations,Severn Trent Serv Ops Uk Ltd,180853,951.35
"Department for Energy, Security and Net Zero",The Coal Authority,07/05/2024,CY - Minewater Scheme - Additions,ENV - Mine Water Operations,Severn Trent Serv Ops Uk Ltd,180853,899.1
"Department for Energy, Security and Net Zero",The Coal Authority,07/05/2024,CY - Minewater Scheme - Additions,ENV - Mine Water Operations,Severn Trent Serv Ops Uk Ltd,180853,"92,739.39"
"Department for Energy, Security and Net Zero",The Coal Authority,07/05/2024,CY - Minewater Scheme - Additions,ENV - Mine Water Operations,Severn Trent Serv Ops Uk Ltd,180853,582.68
"Department for Energy, Security and Net Zero",The Coal Authority,07/05/2024,CY - Minewater Scheme - Additions,ENV - Mine Water Operations,Severn Trent Serv Ops Uk Ltd,180853,"168,189.55"
"Department for Energy, Security and Net Zero",The Coal Authority,07/05/2024,CY - Minewater Scheme - Additions,ENV - Mine Water Operations,Severn Trent Serv Ops Uk Ltd,180853,"1,361.80"
"Department for Energy, Security and Net Zero",The Coal Authority,07/05/2024,CY - Minewater Scheme - Additions,ENV - Mine Water Operations,Severn Trent Serv Ops Uk Ltd,180853,"1,338.96"
"Department for Energy, Security and Net Zero",The Coal Authority,07/05/2024,CY - Minewater Scheme - Additions,ENV - Mine Water Operations,Severn Trent Serv Ops Uk Ltd,180853,79.77
"Department for Energy, Security and Net Zero",The Coal Authority,07/05/2024,CY - Minewater Scheme - Additions,ENV - Mine Water Operations,Severn Trent Serv Ops Uk Ltd,180853,682.84
"Department for Energy, Security and Net Zero",The Coal Authority,07/05/2024,CY - Minewater Scheme - Additions,ENV - Mine Water Operations,Severn Trent Serv Ops Uk Ltd,180853,"1,493.21"
"Department for Energy, Security and Net Zero",The Coal Authority,07/05/2024,CY - Minewater Scheme - Additions,ENV - Mine Water Operations,Severn Trent Serv Ops Uk Ltd,180853,108.36
"Department for Energy, Security and Net Zero",The Coal Authority,07/05/2024,CY - Minewater Scheme - Additions,ENV - Mine Water Operations,Severn Trent Serv Ops Uk Ltd,180853,578.48
"Department for Energy, Security and Net Zero",The Coal Authority,07/05/2024,CY - Minewater Scheme - Additions,ENV - Mine Water Operations,Severn Trent Serv Ops Uk Ltd,180853,"120,434.81"
"Department for Energy, Security and Net Zero",The Coal Authority,07/05/2024,CY - Minewater Scheme - Additions,ENV - Mine Water Operations,Severn Trent Serv Ops Uk Ltd,180853,"48,252.51"
"Department for Energy, Security and Net Zero",The Coal Authority,07/05/2024,CY - Minewater Scheme - Additions,ENV - Mine Water Operations,Severn Trent Serv Ops Uk Ltd,180853,"6,513.52"
"Department for Energy, Security and Net Zero",The Coal Authority,07/05/2024,CY - Minewater Scheme - Additions,ENV - Mine Water Operations,Severn Trent Serv Ops Uk Ltd,180853,"1,290.16"
"Department for Energy, Security and Net Zero",The Coal Authority,07/05/2024,CY - Minewater Scheme - Additions,ENV - Mine Water Operations,Severn Trent Serv Ops Uk Ltd,180853,"1,903.75"
"Department for Energy, Security and Net Zero",The Coal Authority,07/05/2024,CY - Minewater Scheme - Additions,ENV - Mine Water Operations,Severn Trent Serv Ops Uk Ltd,180853,119.66
"Department for Energy, Security and Net Zero",The Coal Authority,07/05/2024,CY - Minewater Scheme - Additions,ENV - Mine Water Operations,Severn Trent Serv Ops Uk Ltd,180853,876.82
"Department for Energy, Security and Net Zero",The Coal Authority,07/05/2024,CY - Minewater Scheme - Additions,ENV - Mine Water Operations,Severn Trent Serv Ops Uk Ltd,180853,37.89
"Department for Energy, Security and Net Zero",The Coal Authority,07/05/2024,CY - Minewater Scheme - Additions,ENV - Mine Water Operations,Severn Trent Serv Ops Uk Ltd,180853,79.77
"Department for Energy, Security and Net Zero",The Coal Authority,07/05/2024,CY - Minewater Scheme - Additions,ENV - Mine Water Operations,Severn Trent Serv Ops Uk Ltd,180853,414.47
"Department for Energy, Security and Net Zero",The Coal Authority,07/05/2024,CY - Minewater Scheme - Additions,ENV - Mine Water Operations,Severn Trent Serv Ops Uk Ltd,180853,"4,255.19"
"Department for Energy, Security and Net Zero",The Coal Authority,07/05/2024,CY - Minewater Scheme - Additions,ENV - Mine Water Operations,Severn Trent Serv Ops Uk Ltd,180853,"136,149.09"
"Department for Energy, Security and Net Zero",The Coal Authority,07/05/2024,CY - Minewater Scheme - Additions,ENV - Mine Water Operations,Severn Trent Serv Ops Uk Ltd,180853,"1,949.87"
"Department for Energy, Security and Net Zero",The Coal Authority,07/05/2024,CY - Minewater Scheme - Additions,ENV - Mine Water Operations,Severn Trent Serv Ops Uk Ltd,180853,"8,740.31"
"Department for Energy, Security and Net Zero",The Coal Authority,07/05/2024,CY - Minewater Scheme - Additions,ENV - Mine Water Operations,Severn Trent Serv Ops Uk Ltd,180853,"4,199.78"
"Department for Energy, Security and Net Zero",The Coal Authority,07/05/2024,CY - Minewater Scheme - Additions,ENV - Mine Water Operations,Severn Trent Serv Ops Uk Ltd,180853,"17,170.08"
"Department for Energy, Security and Net Zero",The Coal Authority,07/05/2024,CY - Minewater Scheme - Additions,ENV - Mine Water Operations,Severn Trent Serv Ops Uk Ltd,180853,"3,254.96"
"Department for Energy, Security and Net Zero",The Coal Authority,07/05/2024,CY - Minewater Scheme - Additions,ENV - Mine Water Operations,Severn Trent Serv Ops Uk Ltd,180853,"26,236.45"
"Department for Energy, Security and Net Zero",The Coal Authority,07/05/2024,CY - Plant & Machinery - Additions,ENV - Mine Water Operations,Severn Trent Serv Ops Uk Ltd,180853,"2,089.87"
"Department for Energy, Security and Net Zero",The Coal Authority,07/05/2024,CY - Plant & Machinery - Additions,ENV - Mine Water Operations,Severn Trent Serv Ops Uk Ltd,180853,"3,790.52"
"Department for Energy, Security and Net Zero",The Coal Authority,07/05/2024,CY - Subsidence Pumping - Additions,ENV - Mine Water Operations,Severn Trent Serv Ops Uk Ltd,180853,"6,722.37"
"Department for Energy, Security and Net Zero",The Coal Authority,07/05/2024,Minewater Chemicals - Operational Sites,ENV - Mine Water Operations,Severn Trent Serv Ops Uk Ltd,180853,869.9
"Department for Energy, Security and Net Zero",The Coal Authority,07/05/2024,Minewater Chemicals - Operational Sites,ENV - Mine Water Operations,Severn Trent Serv Ops Uk Ltd,180853,39.1
"Department for Energy, Security and Net Zero",The Coal Authority,07/05/2024,Minewater Contractor Add. Task Order - Ops Site,ENV - Mine Water Operations,Severn Trent Serv Ops Uk Ltd,180853,75.78
"Department for Energy, Security and Net Zero",The Coal Authority,07/05/2024,Minewater Contractor Add. Task Order - Ops Site,ENV - Mine Water Operations,Severn Trent Serv Ops Uk Ltd,180853,462.08
"Department for Energy, Security and Net Zero",The Coal Authority,07/05/2024,Minewater Contractor Add. Task Order - Ops Site,ENV - Mine Water Operations,Severn Trent Serv Ops Uk Ltd,180853,"1,156.54"
"Department for Energy, Security and Net Zero",The Coal Authority,07/05/2024,Minewater Contractor Add. Task Order - Ops Site,ENV - Mine Water Operations,Severn Trent Serv Ops Uk Ltd,180853,"1,245.05"
"Department for Energy, Security and Net Zero",The Coal Authority,07/05/2024,Minewater Contractor Add. Task Order - Ops Site,ENV - Mine Water Operations,Severn Trent Serv Ops Uk Ltd,180853,657.46
"Department for Energy, Security and Net Zero",The Coal Authority,07/05/2024,Minewater Contractor Add. Task Order - Ops Site,ENV - Mine Water Operations,Severn Trent Serv Ops Uk Ltd,180853,79.77
"Department for Energy, Security and Net Zero",The Coal Authority,07/05/2024,Minewater Contractor Add. Task Order - Ops Site,ENV - Mine Water Operations,Severn Trent Serv Ops Uk Ltd,180853,631.68
"Department for Energy, Security and Net Zero",The Coal Authority,07/05/2024,Minewater Contractor Maint. Visits - Ops Site,ENV - Mine Water Operations,Severn Trent Serv Ops Uk Ltd,180853,949.12
"Department for Energy, Security and Net Zero",The Coal Authority,07/05/2024,Minewater Landscaping,ENV - Mine Water Operations,Severn Trent Serv Ops Uk Ltd,180853,75.78
"Department for Energy, Security and Net Zero",The Coal Authority,07/05/2024,Minewater Landscaping,ENV - Mine Water Operations,Severn Trent Serv Ops Uk Ltd,180853,69.33
"Department for Energy, Security and Net Zero",The Coal Authority,07/05/2024,Minewater Landscaping,ENV - Mine Water Operations,Severn Trent Serv Ops Uk Ltd,180853,"1,043.13"
"Department for Energy, Security and Net Zero",The Coal Authority,07/05/2024,Minewater Management Fees,ENV - Mine Water Operations,Severn Trent Serv Ops Uk Ltd,180853,178.02
"Department for Energy, Security and Net Zero",The Coal Authority,07/05/2024,Minewater Monitoring & Flow Measurement,ENV - Mine Water Operations,Severn Trent Serv Ops Uk Ltd,180853,830.14
"Department for Energy, Security and Net Zero",The Coal Authority,07/05/2024,Minewater Pump Overhauls,ENV - Mine Water Operations,Severn Trent Serv Ops Uk Ltd,180853,268.49
"Department for Energy, Security and Net Zero",The Coal Authority,07/05/2024,Minewater Pump Overhauls,ENV - Mine Water Operations,Severn Trent Serv Ops Uk Ltd,180853,113.67
"Department for Energy, Security and Net Zero",The Coal Authority,07/05/2024,Minewater Pump Overhauls,ENV - Mine Water Operations,Severn Trent Serv Ops Uk Ltd,180853,638.8
"Department for Energy, Security and Net Zero",The Coal Authority,07/05/2024,Minewater Pump Overhauls,ENV - Mine Water Operations,Severn Trent Serv Ops Uk Ltd,180853,"11,749.30"
"Department for Energy, Security and Net Zero",The Coal Authority,07/05/2024,Minewater Remediation,ENV - Mine Water Operations,Severn Trent Serv Ops Uk Ltd,180853,17.01
"Department for Energy, Security and Net Zero",The Coal Authority,07/05/2024,Minewater Remediation,ENV - Mine Water Operations,Severn Trent Serv Ops Uk Ltd,180853,"1,063.72"
"Department for Energy, Security and Net Zero",The Coal Authority,07/05/2024,Minewater Remediation,ENV - Mine Water Operations,Severn Trent Serv Ops Uk Ltd,180853,"1,152.76"
"Department for Energy, Security and Net Zero",The Coal Authority,07/05/2024,Minewater Remediation,ENV - Mine Water Operations,Severn Trent Serv Ops Uk Ltd,180853,67.83
"Department for Energy, Security and Net Zero",The Coal Authority,07/05/2024,Minewater Remediation,ENV - Mine Water Operations,Severn Trent Serv Ops Uk Ltd,180853,33.92
"Department for Energy, Security and Net Zero",The Coal Authority,07/05/2024,Minewater Remediation,ENV - Mine Water Operations,Severn Trent Serv Ops Uk Ltd,180853,"1,211.98"
"Department for Energy, Security and Net Zero",The Coal Authority,07/05/2024,Minewater Remediation,ENV - Mine Water Operations,Severn Trent Serv Ops Uk Ltd,180853,17.01
"Department for Energy, Security and Net Zero",The Coal Authority,07/05/2024,Minewater Sampling - Operational Sites,ENV - Mine Water Operations,Severn Trent Serv Ops Uk Ltd,180853,260.22
"Department for Energy, Security and Net Zero",The Coal Authority,07/05/2024,Minewater Sampling - Operational Sites,ENV - Mine Water Operations,Severn Trent Serv Ops Uk Ltd,180853,192.35
"Department for Energy, Security and Net Zero",The Coal Authority,07/05/2024,Minewater Site Surveys,ENV - Mine Water Operations,Severn Trent Serv Ops Uk Ltd,180853,116.74
"Department for Energy, Security and Net Zero",The Coal Authority,07/05/2024,Minewater Sludge Disposal,ENV - Mine Water Operations,Severn Trent Serv Ops Uk Ltd,180853,10.24
"Department for Energy, Security and Net Zero",The Coal Authority,07/05/2024,Minewater Sludge Disposal,ENV - Mine Water Operations,Severn Trent Serv Ops Uk Ltd,180853,416.28
"Department for Energy, Security and Net Zero",The Coal Authority,07/05/2024,Minewater Sludge Disposal,ENV - Mine Water Operations,Severn Trent Serv Ops Uk Ltd,180853,746.53
"Department for Energy, Security and Net Zero",The Coal Authority,07/05/2024,Minewater Sludge Disposal,ENV - Mine Water Operations,Severn Trent Serv Ops Uk Ltd,180853,"97,711.55"
"Department for Energy, Security and Net Zero",The Coal Authority,07/05/2024,Minewater Sludge Disposal,ENV - Mine Water Operations,Severn Trent Serv Ops Uk Ltd,180853,68.03
"Department for Energy, Security and Net Zero",The Coal Authority,07/05/2024,Minewater Sludge Disposal,ENV - Mine Water Operations,Severn Trent Serv Ops Uk Ltd,180853,604.62
"Department for Energy, Security and Net Zero",The Coal Authority,07/05/2024,Minewater Telecoms & Telemetry,ENV - Mine Water Operations,Severn Trent Serv Ops Uk Ltd,180853,84.33
"Department for Energy, Security and Net Zero",The Coal Authority,07/05/2024,Subsidence Pumping Maintenance - Ad Hoc,ENV - Mine Water Operations,Severn Trent Serv Ops Uk Ltd,180853,"12,054.36"
"Department for Energy, Security and Net Zero",The Coal Authority,07/05/2024,Subsidence Pumping Maintenance - Ad Hoc,ENV - Mine Water Operations,Severn Trent Serv Ops Uk Ltd,180853,752.02
"Department for Energy, Security and Net Zero",The Coal Authority,07/05/2024,CY - Minewater Scheme - Additions,ENV - Mine Water Operations,Severn Trent Serv Ops Uk Ltd,180854,414.47
"Department for Energy, Security and Net Zero",The Coal Authority,20/02/2024,Subsistence Allowances,ENV - Mine Water Operations,Staff Expenses Control,180991,7.28
"Department for Energy, Security and Net Zero",The Coal Authority,20/02/2024,Subsistence Allowances,ENV - Mine Water Operations,Staff Expenses Control,180991,9.74
"Department for Energy, Security and Net Zero",The Coal Authority,21/02/2024,Subsistence Allowances,ENV - Mine Water Operations,Staff Expenses Control,180991,12.7
"Department for Energy, Security and Net Zero",The Coal Authority,14/05/2024,Subsistence Allowances,ENV - Mine Water Operations,Staff Expenses Control,180991,8.99
"Department for Energy, Security and Net Zero",The Coal Authority,15/05/2024,Subsistence Allowances,ENV - Mine Water Operations,Staff Expenses Control,180991,7.63
"Department for Energy, Security and Net Zero",The Coal Authority,15/05/2024,Subsistence Allowances,ENV - Mine Water Operations,Staff Expenses Control,180991,9.66
"Department for Energy, Security and Net Zero",The Coal Authority,22/05/2024,Subsistence Allowances,ENV - Mine Water Operations,Staff Expenses Control,181245,5.69
"Department for Energy, Security and Net Zero",The Coal Authority,07/05/2024,Minewater Rent,ENV - Mine Water Operations,Trustees Of Llanover Estate,180490,"2,000.00"
"Department for Energy, Security and Net Zero",The Coal Authority,28/04/2024,Minewater Water Charges,ENV - Mine Water Operations,Water Plus Limited,179964,291.86
"Department for Energy, Security and Net Zero",The Coal Authority,26/04/2024,Minewater Water Charges,ENV - Mine Water Operations,Water Plus Limited,179965,212.79
"Department for Energy, Security and Net Zero",The Coal Authority,18/04/2024,Minewater Water Charges,ENV - Mine Water Operations,Wave Utilities,179687,"12,536.13"
"Department for Energy, Security and Net Zero",The Coal Authority,14/05/2024,Minewater Power Costs,ENV - Mine Water Operations,Wave Utilities,181198,21.94
"Department for Energy, Security and Net Zero",The Coal Authority,20/05/2024,Minewater Rent,ENV - Mine Water Operations,Welbeck Estates Company Ltd,180964,-245.72
"Department for Energy, Security and Net Zero",The Coal Authority,13/05/2024,Minewater Rent,ENV - Mine Water Operations,Welbeck Estates Company Ltd,180965,366.65
"Department for Energy, Security and Net Zero",The Coal Authority,09/05/2024,CY - Subsidence Pumping - Additions,ENV - Projects & Delivery,AECOM Ltd,180293,851.3
"Department for Energy, Security and Net Zero",The Coal Authority,09/05/2024,Minewater Feasibility / Scoping,ENV - Projects & Delivery,AECOM Ltd,180442,"6,135.92"
"Department for Energy, Security and Net Zero",The Coal Authority,20/05/2024,Minewater Feasibility / Scoping,ENV - Projects & Delivery,AECOM Ltd,180958,542
"Department for Energy, Security and Net Zero",The Coal Authority,17/04/2024,Fuel (Vehicle),ENV - Projects & Delivery,Allstar Business Solutions Ltd,180111,3.8
"Department for Energy, Security and Net Zero",The Coal Authority,17/04/2024,Fuel (Vehicle),ENV - Projects & Delivery,Allstar Business Solutions Ltd,180111,45.61
"Department for Energy, Security and Net Zero",The Coal Authority,17/04/2024,Fuel (Vehicle),ENV - Projects & Delivery,Allstar Business Solutions Ltd,180111,49.19
"Department for Energy, Security and Net Zero",The Coal Authority,27/03/2024,Fuel (Vehicle),ENV - Projects & Delivery,Allstar Business Solutions Ltd,180112,31.27
"Department for Energy, Security and Net Zero",The Coal Authority,27/03/2024,Fuel (Vehicle),ENV - Projects & Delivery,Allstar Business Solutions Ltd,180112,138.16
"Department for Energy, Security and Net Zero",The Coal Authority,27/03/2024,Fuel (Vehicle),ENV - Projects & Delivery,Allstar Business Solutions Ltd,180112,13.6
"Department for Energy, Security and Net Zero",The Coal Authority,28/02/2024,Fuel (Vehicle),ENV - Projects & Delivery,Allstar Business Solutions Ltd,180113,42.22
"Department for Energy, Security and Net Zero",The Coal Authority,28/02/2024,Fuel (Vehicle),ENV - Projects & Delivery,Allstar Business Solutions Ltd,180113,3.8
"Department for Energy, Security and Net Zero",The Coal Authority,28/02/2024,Fuel (Vehicle),ENV - Projects & Delivery,Allstar Business Solutions Ltd,180113,41.53
"Department for Energy, Security and Net Zero",The Coal Authority,01/05/2024,Fuel (Vehicle),ENV - Projects & Delivery,Allstar Business Solutions Ltd,180315,143.53
"Department for Energy, Security and Net Zero",The Coal Authority,01/05/2024,Fuel (Vehicle),ENV - Projects & Delivery,Allstar Business Solutions Ltd,180315,3.8
"Department for Energy, Security and Net Zero",The Coal Authority,08/05/2024,Fuel (Vehicle),ENV - Projects & Delivery,Allstar Business Solutions Ltd,180449,42.95
"Department for Energy, Security and Net Zero",The Coal Authority,08/05/2024,Fuel (Vehicle),ENV - Projects & Delivery,Allstar Business Solutions Ltd,180449,130.28
"Department for Energy, Security and Net Zero",The Coal Authority,08/05/2024,Fuel (Vehicle),ENV - Projects & Delivery,Allstar Business Solutions Ltd,180449,9.5
"Department for Energy, Security and Net Zero",The Coal Authority,08/05/2024,Fuel (Vehicle),ENV - Projects & Delivery,Allstar Business Solutions Ltd,180449,43.08
"Department for Energy, Security and Net Zero",The Coal Authority,24/04/2024,Fuel (Vehicle),ENV - Projects & Delivery,Allstar Business Solutions Ltd,180792,71.77
"Department for Energy, Security and Net Zero",The Coal Authority,24/04/2024,Fuel (Vehicle),ENV - Projects & Delivery,Allstar Business Solutions Ltd,180792,5.7
"Department for Energy, Security and Net Zero",The Coal Authority,24/04/2024,Fuel (Vehicle),ENV - Projects & Delivery,Allstar Business Solutions Ltd,180792,53.71
"Department for Energy, Security and Net Zero",The Coal Authority,15/05/2024,Fuel (Vehicle),ENV - Projects & Delivery,Allstar Business Solutions Ltd,180848,7.6
"Department for Energy, Security and Net Zero",The Coal Authority,15/05/2024,Fuel (Vehicle),ENV - Projects & Delivery,Allstar Business Solutions Ltd,180848,58.57
"Department for Energy, Security and Net Zero",The Coal Authority,15/05/2024,Fuel (Vehicle),ENV - Projects & Delivery,Allstar Business Solutions Ltd,180848,24.56
"Department for Energy, Security and Net Zero",The Coal Authority,15/05/2024,Fuel (Vehicle),ENV - Projects & Delivery,Allstar Business Solutions Ltd,180848,141.9
"Department for Energy, Security and Net Zero",The Coal Authority,22/05/2024,Fuel (Vehicle),ENV - Projects & Delivery,Allstar Business Solutions Ltd,181399,87.35
"Department for Energy, Security and Net Zero",The Coal Authority,22/05/2024,Fuel (Vehicle),ENV - Projects & Delivery,Allstar Business Solutions Ltd,181399,5.7
"Department for Energy, Security and Net Zero",The Coal Authority,22/05/2024,Fuel (Vehicle),ENV - Projects & Delivery,Allstar Business Solutions Ltd,181399,41.68
"Department for Energy, Security and Net Zero",The Coal Authority,29/05/2024,Fuel (Vehicle),ENV - Projects & Delivery,Allstar Business Solutions Ltd,181421,51.15
"Department for Energy, Security and Net Zero",The Coal Authority,29/05/2024,Fuel (Vehicle),ENV - Projects & Delivery,Allstar Business Solutions Ltd,181421,3.8
"Department for Energy, Security and Net Zero",The Coal Authority,29/05/2024,Fuel (Vehicle),ENV - Projects & Delivery,Allstar Business Solutions Ltd,181421,56.51
"Department for Energy, Security and Net Zero",The Coal Authority,24/05/2024,CY - Minewater Scheme - Additions,ENV - Projects & Delivery,Cornerstone  Projects Ltd,181288,296.78
"Department for Energy, Security and Net Zero",The Coal Authority,09/04/2024,Minewater Borehole Project Management,ENV - Projects & Delivery,Derbyshire County Council,180366,250
"Department for Energy, Security and Net Zero",The Coal Authority,31/03/2024,CY - Minewater Scheme - Additions,ENV - Projects & Delivery,Dunelm Geotechnical and Environmental Ltd,179725,"31,865.41"
"Department for Energy, Security and Net Zero",The Coal Authority,07/05/2024,Minewater Power Costs,ENV - Projects & Delivery,Edf Energy,180043,"-6,688.93"
"Department for Energy, Security and Net Zero",The Coal Authority,07/05/2024,Minewater Power Costs,ENV - Projects & Delivery,Edf Energy,180043,"-7,206.05"
"Department for Energy, Security and Net Zero",The Coal Authority,20/05/2024,Minewater Discharge Consents,ENV - Projects & Delivery,Environment Agency,180978,779
"Department for Energy, Security and Net Zero",The Coal Authority,21/02/2024,CY - Minewater Scheme - Additions,ENV - Projects & Delivery,Environmental Monitoring Solutions Limited,180588,0.09
"Department for Energy, Security and Net Zero",The Coal Authority,21/02/2024,CY - Minewater Scheme - Additions,ENV - Projects & Delivery,Environmental Monitoring Solutions Limited,180588,"2,375.29"
"Department for Energy, Security and Net Zero",The Coal Authority,21/02/2024,CY - Minewater Scheme - Additions,ENV - Projects & Delivery,Environmental Monitoring Solutions Limited,180588,"2,265.18"
"Department for Energy, Security and Net Zero",The Coal Authority,10/04/2024,Training & Education,ENV - Projects & Delivery,Government Procurement Card,181485,255
"Department for Energy, Security and Net Zero",The Coal Authority,11/04/2024,Subsistence Allowances,ENV - Projects & Delivery,Government Procurement Card,181485,6.6
"Department for Energy, Security and Net Zero",The Coal Authority,16/04/2024,Subsistence Allowances,ENV - Projects & Delivery,Government Procurement Card,181485,4.58
"Department for Energy, Security and Net Zero",The Coal Authority,19/04/2024,Fares - Public Transport,ENV - Projects & Delivery,Government Procurement Card,181485,268.68
"Department for Energy, Security and Net Zero",The Coal Authority,24/04/2024,Fares - Rail,ENV - Projects & Delivery,Government Procurement Card,181485,11.53
"Department for Energy, Security and Net Zero",The Coal Authority,01/05/2024,Subsistence Allowances,ENV - Projects & Delivery,Government Procurement Card,181485,3.57
"Department for Energy, Security and Net Zero",The Coal Authority,31/05/2024,Contract Hire Vehicles,ENV - Projects & Delivery,Government Procurement Card,181517,500
"Department for Energy, Security and Net Zero",The Coal Authority,31/05/2024,Fuel (Vehicle),ENV - Projects & Delivery,Government Procurement Card,181517,49.16
"Department for Energy, Security and Net Zero",The Coal Authority,31/05/2024,Subsistence Allowances,ENV - Projects & Delivery,Government Procurement Card,181517,2.42
"Department for Energy, Security and Net Zero",The Coal Authority,31/05/2024,Subsistence Allowances,ENV - Projects & Delivery,Government Procurement Card,181517,6.7
"Department for Energy, Security and Net Zero",The Coal Authority,31/05/2024,Subsistence Allowances,ENV - Projects & Delivery,Government Procurement Card,181517,2.75
"Department for Energy, Security and Net Zero",The Coal Authority,21/05/2024,Minewater Monitoring & Flow Measurement,ENV - Projects & Delivery,Hydro International Data Insight & Analysis Ltd,181270,919
"Department for Energy, Security and Net Zero",The Coal Authority,15/01/2024,CY - Minewater Scheme - Additions,ENV - Projects & Delivery,JBA Bentley Ltd,181463,"198,292.77"
"Department for Energy, Security and Net Zero",The Coal Authority,15/12/2023,CY - Minewater Scheme - Additions,ENV - Projects & Delivery,JBA Bentley Ltd,181464,"32,155.42"
"Department for Energy, Security and Net Zero",The Coal Authority,15/12/2023,CY - Minewater Scheme - Additions,ENV - Projects & Delivery,JBA Bentley Ltd,181464,"60,627.43"
"Department for Energy, Security and Net Zero",The Coal Authority,15/12/2023,CY - Minewater Scheme - Additions,ENV - Projects & Delivery,JBA Bentley Ltd,181464,"3,013.97"
"Department for Energy, Security and Net Zero",The Coal Authority,15/12/2023,CY - Minewater Scheme - Additions,ENV - Projects & Delivery,JBA Bentley Ltd,181464,"47,351.92"
"Department for Energy, Security and Net Zero",The Coal Authority,15/12/2023,CY - Minewater Scheme - Additions,ENV - Projects & Delivery,JBA Bentley Ltd,181464,"20,719.01"
"Department for Energy, Security and Net Zero",The Coal Authority,15/12/2023,CY - Minewater Scheme - Additions,ENV - Projects & Delivery,JBA Bentley Ltd,181464,"43,445.17"
"Department for Energy, Security and Net Zero",The Coal Authority,01/04/2024,CY - Minewater Scheme - Additions,ENV - Projects & Delivery,JBA Bentley Ltd,181482,"70,048.98"
"Department for Energy, Security and Net Zero",The Coal Authority,01/04/2024,CY - Minewater Scheme - Additions,ENV - Projects & Delivery,JBA Bentley Ltd,181482,"15,896.93"
"Department for Energy, Security and Net Zero",The Coal Authority,01/04/2024,CY - Minewater Scheme - Additions,ENV - Projects & Delivery,JBA Bentley Ltd,181482,"72,019.88"
"Department for Energy, Security and Net Zero",The Coal Authority,01/04/2024,CY - Minewater Scheme - Additions,ENV - Projects & Delivery,JBA Bentley Ltd,181482,"5,468.45"
"Department for Energy, Security and Net Zero",The Coal Authority,01/03/2024,CY - Minewater Scheme - Additions,ENV - Projects & Delivery,JBA Bentley Ltd,181483,"186,213.08"
"Department for Energy, Security and Net Zero",The Coal Authority,23/04/2024,CY - Minewater Scheme - Additions,ENV - Projects & Delivery,JBA Bentley Ltd,181484,"180,181.83"
"Department for Energy, Security and Net Zero",The Coal Authority,23/04/2024,CY - Minewater Scheme - Additions,ENV - Projects & Delivery,JBA Bentley Ltd,181484,"20,559.39"
"Department for Energy, Security and Net Zero",The Coal Authority,23/04/2024,CY - Minewater Scheme - Additions,ENV - Projects & Delivery,JBA Bentley Ltd,181484,"1,876.22"
"Department for Energy, Security and Net Zero",The Coal Authority,23/04/2024,CY - Minewater Scheme - Additions,ENV - Projects & Delivery,JBA Bentley Ltd,181484,"10,000.00"
"Department for Energy, Security and Net Zero",The Coal Authority,23/04/2024,CY - Minewater Scheme - Additions,ENV - Projects & Delivery,JBA Bentley Ltd,181484,"28,335.00"
"Department for Energy, Security and Net Zero",The Coal Authority,23/04/2024,CY - Minewater Scheme - Additions,ENV - Projects & Delivery,JBA Bentley Ltd,181484,"1,379.68"
"Department for Energy, Security and Net Zero",The Coal Authority,30/04/2024,CY - Minewater Scheme - Additions,ENV - Projects & Delivery,Kier Integrated Services Limited,180238,"13,447.89"
"Department for Energy, Security and Net Zero",The Coal Authority,07/05/2024,CY - Minewater Scheme - Additions,ENV - Projects & Delivery,Severn Trent Serv Ops Uk Ltd,180853,"3,267.35"
"Department for Energy, Security and Net Zero",The Coal Authority,07/05/2024,CY - Minewater Scheme - Additions,ENV - Projects & Delivery,Severn Trent Serv Ops Uk Ltd,180853,"20,025.62"
"Department for Energy, Security and Net Zero",The Coal Authority,07/05/2024,CY - Minewater Scheme - Additions,ENV - Projects & Delivery,Severn Trent Serv Ops Uk Ltd,180853,156.86
"Department for Energy, Security and Net Zero",The Coal Authority,07/05/2024,CY - Minewater Scheme - Additions,ENV - Projects & Delivery,Severn Trent Serv Ops Uk Ltd,180853,"55,845.13"
"Department for Energy, Security and Net Zero",The Coal Authority,07/05/2024,CY - Minewater Scheme - Additions,ENV - Projects & Delivery,Severn Trent Serv Ops Uk Ltd,180853,400.87
"Department for Energy, Security and Net Zero",The Coal Authority,07/05/2024,CY - Minewater Scheme - Additions,ENV - Projects & Delivery,Severn Trent Serv Ops Uk Ltd,180853,"5,588.54"
"Department for Energy, Security and Net Zero",The Coal Authority,07/05/2024,CY - Minewater Scheme - Additions,ENV - Projects & Delivery,Severn Trent Serv Ops Uk Ltd,180853,"11,025.23"
"Department for Energy, Security and Net Zero",The Coal Authority,07/05/2024,Minewater Pumping Tests,ENV - Projects & Delivery,Severn Trent Serv Ops Uk Ltd,180853,"2,737.45"
"Department for Energy, Security and Net Zero",The Coal Authority,07/05/2024,Minewater Pumping Tests,ENV - Projects & Delivery,Severn Trent Serv Ops Uk Ltd,180853,"1,282.76"
"Department for Energy, Security and Net Zero",The Coal Authority,07/05/2024,Minewater Pumping Tests,ENV - Projects & Delivery,Severn Trent Serv Ops Uk Ltd,180853,"1,747.56"
"Department for Energy, Security and Net Zero",The Coal Authority,07/05/2024,Minewater Pumping Tests,ENV - Projects & Delivery,Severn Trent Serv Ops Uk Ltd,180853,387.04
"Department for Energy, Security and Net Zero",The Coal Authority,07/05/2024,Minewater Pumping Tests,ENV - Projects & Delivery,Severn Trent Serv Ops Uk Ltd,180853,460.21
"Department for Energy, Security and Net Zero",The Coal Authority,07/05/2024,Minewater Pumping Tests,ENV - Projects & Delivery,Severn Trent Serv Ops Uk Ltd,180853,"5,024.69"
"Department for Energy, Security and Net Zero",The Coal Authority,08/04/2024,Mileage Payments,ENV - Projects & Delivery,Staff Expenses Control,179989,17.42
"Department for Energy, Security and Net Zero",The Coal Authority,08/04/2024,Mileage Payments,ENV - Projects & Delivery,Staff Expenses Control,179989,17.37
"Department for Energy, Security and Net Zero",The Coal Authority,10/04/2024,Mileage Payments,ENV - Projects & Delivery,Staff Expenses Control,179989,10.27
"Department for Energy, Security and Net Zero",The Coal Authority,10/04/2024,Mileage Payments,ENV - Projects & Delivery,Staff Expenses Control,179989,10.26
"Department for Energy, Security and Net Zero",The Coal Authority,01/05/2024,Mileage Payments,ENV - Projects & Delivery,Staff Expenses Control,179989,7.55
"Department for Energy, Security and Net Zero",The Coal Authority,01/05/2024,Mileage Payments,ENV - Projects & Delivery,Staff Expenses Control,179989,49.04
"Department for Energy, Security and Net Zero",The Coal Authority,24/04/2024,Incidentals,ENV - Projects & Delivery,Staff Expenses Control,180991,5.5
"Department for Energy, Security and Net Zero",The Coal Authority,25/04/2024,Incidentals,ENV - Projects & Delivery,Staff Expenses Control,180991,5.5
"Department for Energy, Security and Net Zero",The Coal Authority,29/04/2024,Office Furniture,ENV - Projects & Delivery,Staff Expenses Control,180991,58.33
"Department for Energy, Security and Net Zero",The Coal Authority,07/05/2024,Subsistence Allowances,ENV - Projects & Delivery,Staff Expenses Control,180991,12.67
"Department for Energy, Security and Net Zero",The Coal Authority,08/05/2024,Fuel (Vehicle),ENV - Projects & Delivery,Staff Expenses Control,180991,13.28
"Department for Energy, Security and Net Zero",The Coal Authority,08/05/2024,Fuel (Vehicle),ENV - Projects & Delivery,Staff Expenses Control,180991,20.87
"Department for Energy, Security and Net Zero",The Coal Authority,12/03/2024,Fuel (Vehicle),ENV - Projects & Delivery,Staff Expenses Control,181245,34.52
"Department for Energy, Security and Net Zero",The Coal Authority,09/04/2024,Subsistence Allowances,ENV - Projects & Delivery,Staff Expenses Control,181245,2.58
"Department for Energy, Security and Net Zero",The Coal Authority,09/04/2024,Subsistence Allowances,ENV - Projects & Delivery,Staff Expenses Control,181245,13
"Department for Energy, Security and Net Zero",The Coal Authority,14/05/2024,Subsistence Allowances,ENV - Projects & Delivery,Staff Expenses Control,181245,28.43
"Department for Energy, Security and Net Zero",The Coal Authority,15/05/2024,Subsistence Allowances,ENV - Projects & Delivery,Staff Expenses Control,181245,20
"Department for Energy, Security and Net Zero",The Coal Authority,26/04/2024,CY - Minewater Scheme - Additions,ENV - Projects & Delivery,Turner and Townsend Project Management Ltd.,179494,"1,916.88"
"Department for Energy, Security and Net Zero",The Coal Authority,26/04/2024,CY - Minewater Scheme - Additions,ENV - Projects & Delivery,Turner and Townsend Project Management Ltd.,179494,0.02
"Department for Energy, Security and Net Zero",The Coal Authority,26/04/2024,CY - Minewater Scheme - Additions,ENV - Projects & Delivery,Turner and Townsend Project Management Ltd.,179504,15.79
"Department for Energy, Security and Net Zero",The Coal Authority,26/04/2024,CY - Minewater Scheme - Additions,ENV - Projects & Delivery,Turner and Townsend Project Management Ltd.,179504,"2,636.94"
"Department for Energy, Security and Net Zero",The Coal Authority,26/04/2024,CY - Minewater Scheme - Additions,ENV - Projects & Delivery,Turner and Townsend Project Management Ltd.,179504,-0.01
"Department for Energy, Security and Net Zero",The Coal Authority,15/05/2024,Minewater Investigation Studies,ENV - Salinity Programme,AECOM Ltd,180737,"106,683.32"
"Department for Energy, Security and Net Zero",The Coal Authority,09/04/2024,Minewater Pumping Tests,ENV - Salinity Programme,Edf Energy,180031,"34,343.33"
"Department for Energy, Security and Net Zero",The Coal Authority,07/05/2024,Minewater Pumping Tests,ENV - Salinity Programme,Edf Energy,181389,"33,061.04"
"Department for Energy, Security and Net Zero",The Coal Authority,30/04/2024,Minewater Discharge Consents,ENV - Salinity Programme,Environment Agency,179607,"3,931.00"
"Department for Energy, Security and Net Zero",The Coal Authority,24/04/2024,Minewater Discharge Consents,ENV - Salinity Programme,Environment Agency,179963,"1,686.00"
"Department for Energy, Security and Net Zero",The Coal Authority,13/05/2024,Minewater Investigation Studies,ENV - Salinity Programme,Environmental Science and Technology Ltd,180457,"15,282.15"
"Department for Energy, Security and Net Zero",The Coal Authority,22/03/2024,Minewater Investigation Studies,ENV - Salinity Programme,European Geophysical Services,179737,"1,310.00"
"Department for Energy, Security and Net Zero",The Coal Authority,22/03/2024,Minewater Investigation Studies,ENV - Salinity Programme,European Geophysical Services,179795,"3,991.00"
"Department for Energy, Security and Net Zero",The Coal Authority,22/03/2024,Minewater Investigation Studies,ENV - Salinity Programme,European Geophysical Services,179801,"2,987.80"
"Department for Energy, Security and Net Zero",The Coal Authority,17/04/2024,Fuel (Vehicle),ENV - Salinity Programme,Government Procurement Card,181485,56.61
"Department for Energy, Security and Net Zero",The Coal Authority,17/04/2024,Incidentals,ENV - Salinity Programme,Government Procurement Card,181485,5
"Department for Energy, Security and Net Zero",The Coal Authority,17/04/2024,Incidentals,ENV - Salinity Programme,Government Procurement Card,181485,5
"Department for Energy, Security and Net Zero",The Coal Authority,17/04/2024,Subsistence Allowances,ENV - Salinity Programme,Government Procurement Card,181485,3.67
"Department for Energy, Security and Net Zero",The Coal Authority,17/04/2024,Subsistence Allowances,ENV - Salinity Programme,Government Procurement Card,181485,3.67
"Department for Energy, Security and Net Zero",The Coal Authority,17/04/2024,Subsistence Allowances,ENV - Salinity Programme,Government Procurement Card,181485,3.68
"Department for Energy, Security and Net Zero",The Coal Authority,17/04/2024,Subsistence Allowances,ENV - Salinity Programme,Government Procurement Card,181485,15.36
"Department for Energy, Security and Net Zero",The Coal Authority,17/04/2024,Subsistence Allowances,ENV - Salinity Programme,Government Procurement Card,181485,4.05
"Department for Energy, Security and Net Zero",The Coal Authority,17/04/2024,Subsistence Allowances,ENV - Salinity Programme,Government Procurement Card,181485,4.5
"Department for Energy, Security and Net Zero",The Coal Authority,17/04/2024,Subsistence Allowances,ENV - Salinity Programme,Government Procurement Card,181485,4.25
"Department for Energy, Security and Net Zero",The Coal Authority,17/04/2024,Subsistence Allowances,ENV - Salinity Programme,Government Procurement Card,181485,3.25
"Department for Energy, Security and Net Zero",The Coal Authority,18/04/2024,Fuel (Vehicle),ENV - Salinity Programme,Government Procurement Card,181485,14.38
"Department for Energy, Security and Net Zero",The Coal Authority,18/04/2024,Incidentals,ENV - Salinity Programme,Government Procurement Card,181485,7.4
"Department for Energy, Security and Net Zero",The Coal Authority,18/04/2024,Subsistence Allowances,ENV - Salinity Programme,Government Procurement Card,181485,23.6
"Department for Energy, Security and Net Zero",The Coal Authority,19/04/2024,Fuel (Vehicle),ENV - Salinity Programme,Government Procurement Card,181485,21.58
"Department for Energy, Security and Net Zero",The Coal Authority,01/05/2024,Subsistence Allowances,ENV - Salinity Programme,Government Procurement Card,181485,3.54
"Department for Energy, Security and Net Zero",The Coal Authority,01/05/2024,Subsistence Allowances,ENV - Salinity Programme,Government Procurement Card,181485,2.41
"Department for Energy, Security and Net Zero",The Coal Authority,01/05/2024,Subsistence Allowances,ENV - Salinity Programme,Government Procurement Card,181485,3.38
"Department for Energy, Security and Net Zero",The Coal Authority,26/03/2024,Minewater Investigation Studies,ENV - Salinity Programme,Robertson Geologging Ltd,179826,"5,217.50"
"Department for Energy, Security and Net Zero",The Coal Authority,29/05/2024,Minewater Investigation Studies,ENV - Salinity Programme,Robertson Geologging Ltd,181479,"6,510.50"
"Department for Energy, Security and Net Zero",The Coal Authority,29/05/2024,Minewater Investigation Studies,ENV - Salinity Programme,Robertson Geologging Ltd,181480,"4,583.50"
"Department for Energy, Security and Net Zero",The Coal Authority,17/05/2024,Minewater Investigation Studies,ENV - Salinity Programme,RS Hydro Ltd,181445,"4,631.00"
"Department for Energy, Security and Net Zero",The Coal Authority,17/05/2024,Minewater Investigation Studies,ENV - Salinity Programme,RS Hydro Ltd,181445,151
"Department for Energy, Security and Net Zero",The Coal Authority,07/05/2024,CY - Non-coal Minewater - Additions,ENV - Salinity Programme,Severn Trent Serv Ops Uk Ltd,180853,87.55
"Department for Energy, Security and Net Zero",The Coal Authority,07/05/2024,Minewater Pumping Tests,ENV - Salinity Programme,Severn Trent Serv Ops Uk Ltd,180853,"59,158.81"
"Department for Energy, Security and Net Zero",The Coal Authority,07/05/2024,Minewater Pumping Tests,ENV - Salinity Programme,Severn Trent Serv Ops Uk Ltd,180853,"2,473.76"
"Department for Energy, Security and Net Zero",The Coal Authority,07/05/2024,Minewater Pumping Tests,ENV - Salinity Programme,Severn Trent Serv Ops Uk Ltd,180853,244.01
"Department for Energy, Security and Net Zero",The Coal Authority,07/05/2024,Minewater Pumping Tests,ENV - Salinity Programme,Severn Trent Serv Ops Uk Ltd,180853,"1,479.59"
"Department for Energy, Security and Net Zero",The Coal Authority,07/05/2024,Minewater Pumping Tests,ENV - Salinity Programme,Severn Trent Serv Ops Uk Ltd,180853,"1,470.95"
"Department for Energy, Security and Net Zero",The Coal Authority,30/04/2024,Minewater Sampling - 'Non-operational' Sites,ENV - Salinity Programme,Socotec UK Limited,181457,"2,308.23"
"Department for Energy, Security and Net Zero",The Coal Authority,30/04/2024,Minewater Sampling - 'Non-operational' Sites,ENV - Salinity Programme,Socotec UK Limited,181462,257.16
"Department for Energy, Security and Net Zero",The Coal Authority,30/04/2024,Minewater Sampling - 'Non-operational' Sites,ENV - Salinity Programme,Socotec UK Limited,181488,36
"Department for Energy, Security and Net Zero",The Coal Authority,01/05/2024,Mileage Payments,ENV - Salinity Programme,Staff Expenses Control,179989,40
"Department for Energy, Security and Net Zero",The Coal Authority,03/05/2024,Membership Subscriptions,ENV - Salinity Programme,Staff Expenses Control,179989,85
"Department for Energy, Security and Net Zero",The Coal Authority,04/04/2024,Mileage Payments,ENV - Salinity Programme,Staff Expenses Control,180991,0.6
"Department for Energy, Security and Net Zero",The Coal Authority,04/04/2024,Mileage Payments,ENV - Salinity Programme,Staff Expenses Control,180991,1.36
"Department for Energy, Security and Net Zero",The Coal Authority,04/04/2024,Mileage Payments,ENV - Salinity Programme,Staff Expenses Control,180991,2.43
"Department for Energy, Security and Net Zero",The Coal Authority,04/04/2024,Mileage Payments,ENV - Salinity Programme,Staff Expenses Control,180991,3.21
"Department for Energy, Security and Net Zero",The Coal Authority,04/04/2024,Mileage Payments,ENV - Salinity Programme,Staff Expenses Control,180991,3
"Department for Energy, Security and Net Zero",The Coal Authority,04/04/2024,Mileage Payments,ENV - Salinity Programme,Staff Expenses Control,180991,2.5
"Department for Energy, Security and Net Zero",The Coal Authority,04/04/2024,Mileage Payments,ENV - Salinity Programme,Staff Expenses Control,180991,3.97
"Department for Energy, Security and Net Zero",The Coal Authority,18/04/2024,Fuel (Vehicle),ENV - Salinity Programme,Staff Expenses Control,180991,15.74
"Department for Energy, Security and Net Zero",The Coal Authority,22/04/2024,Mileage Payments,ENV - Salinity Programme,Staff Expenses Control,180991,7.37
"Department for Energy, Security and Net Zero",The Coal Authority,22/04/2024,Mileage Payments,ENV - Salinity Programme,Staff Expenses Control,180991,4.51
"Department for Energy, Security and Net Zero",The Coal Authority,22/04/2024,Mileage Payments,ENV - Salinity Programme,Staff Expenses Control,180991,10.67
"Department for Energy, Security and Net Zero",The Coal Authority,22/04/2024,Mileage Payments,ENV - Salinity Programme,Staff Expenses Control,180991,5.4
"Department for Energy, Security and Net Zero",The Coal Authority,02/05/2024,Mileage Payments,ENV - Salinity Programme,Staff Expenses Control,180991,3.15
"Department for Energy, Security and Net Zero",The Coal Authority,02/05/2024,Mileage Payments,ENV - Salinity Programme,Staff Expenses Control,180991,10.67
"Department for Energy, Security and Net Zero",The Coal Authority,22/05/2024,Minewater Investigation Studies,ENV - Salinity Programme,Structural Soils Limited,181273,"1,515.00"
"Department for Energy, Security and Net Zero",The Coal Authority,22/05/2024,Minewater Investigation Studies,ENV - Salinity Programme,Structural Soils Limited,181278,"4,000.00"
"Department for Energy, Security and Net Zero",The Coal Authority,22/05/2024,Minewater Investigation Studies,ENV - Salinity Programme,Structural Soils Limited,181278,85
"Department for Energy, Security and Net Zero",The Coal Authority,22/05/2024,Minewater Investigation Studies,ENV - Salinity Programme,Structural Soils Limited,181280,"4,000.00"
"Department for Energy, Security and Net Zero",The Coal Authority,22/05/2024,Minewater Investigation Studies,ENV - Salinity Programme,Structural Soils Limited,181280,85
"Department for Energy, Security and Net Zero",The Coal Authority,25/04/2024,Minewater Investigation Studies,ENV - Salinity Programme,Structural Soils Limited,181345,"3,385.00"
"Department for Energy, Security and Net Zero",The Coal Authority,16/05/2024,Minewater Investigation Studies,ENV - Salinity Programme,WB & AD Morgan t/a Igne,180841,"2,547.70"
"Department for Energy, Security and Net Zero",The Coal Authority,16/05/2024,Minewater Investigation Studies,ENV - Salinity Programme,WB & AD Morgan t/a Igne,180842,"2,817.20"
"Department for Energy, Security and Net Zero",The Coal Authority,13/05/2024,Minewater Feasibility / Scoping,ENV - Salinity Programme,WSP UK Ltd,180632,"8,483.34"
"Department for Energy, Security and Net Zero",The Coal Authority,03/05/2024,Minewater Feasibility / Scoping,ENV - Salinity Programme,WSP UK Ltd,180633,"5,785.66"
"Department for Energy, Security and Net Zero",The Coal Authority,01/05/2024,Mileage Payments,ENV - Strategy & Sustainability Management,Staff Expenses Control,180470,22.5
"Department for Energy, Security and Net Zero",The Coal Authority,19/04/2024,Mileage Payments,ENV - Sustainability & Environmental Compliance,Staff Expenses Control,180991,31.95
"Department for Energy, Security and Net Zero",The Coal Authority,19/04/2024,Subsistence Allowances,ENV - Sustainability & Environmental Compliance,Staff Expenses Control,180991,4.33
"Department for Energy, Security and Net Zero",The Coal Authority,23/04/2024,Peripherals / Consumables (MEP),ENV - Sustainability & Environmental Compliance,Staff Expenses Control,180991,4.13
"Department for Energy, Security and Net Zero",The Coal Authority,23/04/2024,Subsistence Allowances,ENV - Sustainability & Environmental Compliance,Staff Expenses Control,180991,5
"Department for Energy, Security and Net Zero",The Coal Authority,23/04/2024,Subsistence Allowances,ENV - Sustainability & Environmental Compliance,Staff Expenses Control,180991,5
"Department for Energy, Security and Net Zero",The Coal Authority,26/04/2024,Incidentals,ENV - Sustainability & Environmental Compliance,Staff Expenses Control,180991,1.2
"Department for Energy, Security and Net Zero",The Coal Authority,26/04/2024,Subsistence Allowances,ENV - Sustainability & Environmental Compliance,Staff Expenses Control,180991,5
"Department for Energy, Security and Net Zero",The Coal Authority,26/04/2024,Subsistence Allowances,ENV - Sustainability & Environmental Compliance,Staff Expenses Control,180991,8.96
"Department for Energy, Security and Net Zero",The Coal Authority,26/04/2024,Subsistence Allowances,ENV - Sustainability & Environmental Compliance,Staff Expenses Control,180991,8.96
"Department for Energy, Security and Net Zero",The Coal Authority,30/04/2024,Subsistence Allowances,ENV - Sustainability & Environmental Compliance,Staff Expenses Control,180991,2.29
"Department for Energy, Security and Net Zero",The Coal Authority,30/04/2024,Subsistence Allowances,ENV - Sustainability & Environmental Compliance,Staff Expenses Control,180991,4.17
"Department for Energy, Security and Net Zero",The Coal Authority,30/04/2024,Subsistence Allowances,ENV - Sustainability & Environmental Compliance,Staff Expenses Control,180991,1.88
"Department for Energy, Security and Net Zero",The Coal Authority,30/04/2024,Subsistence Allowances,ENV - Sustainability & Environmental Compliance,Staff Expenses Control,180991,4.96
"Department for Energy, Security and Net Zero",The Coal Authority,01/05/2024,Subsistence Allowances,ENV - Sustainability & Environmental Compliance,Staff Expenses Control,180991,11.23
"Department for Energy, Security and Net Zero",The Coal Authority,13/05/2024,Mileage Payments,ENV - Sustainability & Environmental Compliance,Staff Expenses Control,180991,63
"Department for Energy, Security and Net Zero",The Coal Authority,13/05/2024,Subsistence Allowances,ENV - Sustainability & Environmental Compliance,Staff Expenses Control,180991,3.75
"Department for Energy, Security and Net Zero",The Coal Authority,13/05/2024,Subsistence Allowances,ENV - Sustainability & Environmental Compliance,Staff Expenses Control,180991,3.75
"Department for Energy, Security and Net Zero",The Coal Authority,13/05/2024,Subsistence Allowances,ENV - Sustainability & Environmental Compliance,Staff Expenses Control,180991,22.7
"Department for Energy, Security and Net Zero",The Coal Authority,13/05/2024,Subsistence Allowances,ENV - Sustainability & Environmental Compliance,Staff Expenses Control,180991,22.7
"Department for Energy, Security and Net Zero",The Coal Authority,13/05/2024,Subsistence Allowances,ENV - Sustainability & Environmental Compliance,Staff Expenses Control,180991,22.7
"Department for Energy, Security and Net Zero",The Coal Authority,14/05/2024,Mileage Payments,ENV - Sustainability & Environmental Compliance,Staff Expenses Control,180991,0.45
"Department for Energy, Security and Net Zero",The Coal Authority,15/05/2024,Mileage Payments,ENV - Sustainability & Environmental Compliance,Staff Expenses Control,180991,70.2
"Department for Energy, Security and Net Zero",The Coal Authority,10/05/2024,Software Support & Maintenance - On Premise,ENV - Technical,Aquatic Informatics ULC,180783,"14,596.31"
"Department for Energy, Security and Net Zero",The Coal Authority,28/05/2024,Software Support & Maintenance - On Premise,ENV - Technical,Aquatics Information-1086,181241,-5.61
"Department for Energy, Security and Net Zero",The Coal Authority,17/04/2024,Site Repairs & Maintenance,ENV - Technical,Government Procurement Card,181485,82.58
"Department for Energy, Security and Net Zero",The Coal Authority,17/04/2024,Site Repairs & Maintenance,ENV - Technical,Government Procurement Card,181485,76.41
"Department for Energy, Security and Net Zero",The Coal Authority,02/05/2024,Professional Subscriptions,ENV - Technical,Government Procurement Card,181485,150
"Department for Energy, Security and Net Zero",The Coal Authority,15/05/2024,Applications Consultancy,ENV - Technical,Schneider Electric Systems UK Ltd,181088,"18,591.30"
"Department for Energy, Security and Net Zero",The Coal Authority,03/04/2024,Incidentals,ENV - Technical,Staff Expenses Control,180470,71
"Department for Energy, Security and Net Zero",The Coal Authority,23/04/2024,Personal Protective Equipment,ENV - Technical,Staff Expenses Control,180470,3.74
"Department for Energy, Security and Net Zero",The Coal Authority,01/05/2024,Mileage Payments,ENV - Technical,Staff Expenses Control,180470,35.87
"Department for Energy, Security and Net Zero",The Coal Authority,01/05/2024,Stationery,ENV - Technical,Staff Expenses Control,180470,4.17
"Department for Energy, Security and Net Zero",The Coal Authority,01/05/2024,Stationery,ENV - Technical,Staff Expenses Control,180470,4.17
"Department for Energy, Security and Net Zero",The Coal Authority,01/05/2024,Subsistence Allowances,ENV - Technical,Staff Expenses Control,180470,3.04
"Department for Energy, Security and Net Zero",The Coal Authority,07/05/2024,Subsistence Allowances,ENV - Technical,Staff Expenses Control,180991,9.67
"Department for Energy, Security and Net Zero",The Coal Authority,08/05/2024,Subsistence Allowances,ENV - Technical,Staff Expenses Control,180991,3.9
"Department for Energy, Security and Net Zero",The Coal Authority,13/05/2024,Subsistence Allowances,ENV - Technical,Staff Expenses Control,180991,22.7
"Department for Energy, Security and Net Zero",The Coal Authority,22/01/2024,Professional Subscriptions,Executive,Government Procurement Card,180874,349
"Department for Energy, Security and Net Zero",The Coal Authority,23/01/2024,Subsistence Allowances,Executive,Government Procurement Card,180874,4.58
"Department for Energy, Security and Net Zero",The Coal Authority,23/01/2024,Subsistence Allowances,Executive,Government Procurement Card,180874,9.97
"Department for Energy, Security and Net Zero",The Coal Authority,24/01/2024,Incidentals,Executive,Government Procurement Card,180874,6.95
"Department for Energy, Security and Net Zero",The Coal Authority,24/01/2024,Subsistence Allowances,Executive,Government Procurement Card,180874,9.75
"Department for Energy, Security and Net Zero",The Coal Authority,06/02/2024,Subsistence Allowances,Executive,Government Procurement Card,180876,18.33
"Department for Energy, Security and Net Zero",The Coal Authority,06/02/2024,Subsistence Allowances,Executive,Government Procurement Card,180876,18.33
"Department for Energy, Security and Net Zero",The Coal Authority,06/02/2024,Subsistence Allowances,Executive,Government Procurement Card,180876,18.33
"Department for Energy, Security and Net Zero",The Coal Authority,06/02/2024,Subsistence Allowances,Executive,Government Procurement Card,180876,18.33
"Department for Energy, Security and Net Zero",The Coal Authority,06/02/2024,Subsistence Allowances,Executive,Government Procurement Card,180876,18.33
"Department for Energy, Security and Net Zero",The Coal Authority,06/02/2024,Subsistence Allowances,Executive,Government Procurement Card,180876,16.68
"Department for Energy, Security and Net Zero",The Coal Authority,13/02/2024,Office Printing Services,Executive,Government Procurement Card,180876,32.17
"Department for Energy, Security and Net Zero",The Coal Authority,13/02/2024,Sundry Office Expenses,Executive,Government Procurement Card,180876,31.64
"Department for Energy, Security and Net Zero",The Coal Authority,14/02/2024,Fares - Public Transport,Executive,Government Procurement Card,180876,14.92
"Department for Energy, Security and Net Zero",The Coal Authority,14/02/2024,Incidentals,Executive,Government Procurement Card,180876,5.79
"Department for Energy, Security and Net Zero",The Coal Authority,19/02/2024,Incidentals,Executive,Government Procurement Card,180876,2.8
"Department for Energy, Security and Net Zero",The Coal Authority,19/02/2024,Incidentals,Executive,Government Procurement Card,180876,6.17
"Department for Energy, Security and Net Zero",The Coal Authority,19/02/2024,Subsistence Allowances,Executive,Government Procurement Card,180876,3.54
"Department for Energy, Security and Net Zero",The Coal Authority,20/02/2024,Incidentals,Executive,Government Procurement Card,180876,5.5
"Department for Energy, Security and Net Zero",The Coal Authority,23/04/2024,Incidentals,Executive,Government Procurement Card,181485,25
"Department for Energy, Security and Net Zero",The Coal Authority,23/04/2024,Subsistence Allowances,Executive,Government Procurement Card,181485,22.87
"Department for Energy, Security and Net Zero",The Coal Authority,23/04/2024,Subsistence Allowances,Executive,Government Procurement Card,181485,5.42
"Department for Energy, Security and Net Zero",The Coal Authority,24/04/2024,Incidentals,Executive,Government Procurement Card,181485,4.8
"Department for Energy, Security and Net Zero",The Coal Authority,24/04/2024,Subsistence Allowances,Executive,Government Procurement Card,181485,30.74
"Department for Energy, Security and Net Zero",The Coal Authority,24/04/2024,Subsistence Allowances,Executive,Government Procurement Card,181485,4.9
"Department for Energy, Security and Net Zero",The Coal Authority,25/04/2024,Subsistence Allowances,Executive,Government Procurement Card,181485,7.85
"Department for Energy, Security and Net Zero",The Coal Authority,31/05/2024,Fares - Public Transport,Executive,Government Procurement Card,181517,7.5
"Department for Energy, Security and Net Zero",The Coal Authority,31/05/2024,Fares - Public Transport,Executive,Government Procurement Card,181517,2
"Department for Energy, Security and Net Zero",The Coal Authority,31/05/2024,Incidentals,Executive,Government Procurement Card,181517,24.6
"Department for Energy, Security and Net Zero",The Coal Authority,31/05/2024,Incidentals,Executive,Government Procurement Card,181517,44.93
"Department for Energy, Security and Net Zero",The Coal Authority,31/05/2024,Incidentals,Executive,Government Procurement Card,181517,5.83
"Department for Energy, Security and Net Zero",The Coal Authority,31/05/2024,Subsistence Allowances,Executive,Government Procurement Card,181517,2.58
"Department for Energy, Security and Net Zero",The Coal Authority,30/04/2024,Recruitment Candidate Assessment & Profiling,Executive,Green Park Interim & Executive Ltd,179595,"16,875.00"
"Department for Energy, Security and Net Zero",The Coal Authority,13/05/2024,Training & Education,Executive,Oxford Said Business School Ltd (OSBS),180669,"1,650.00"
"Department for Energy, Security and Net Zero",The Coal Authority,19/02/2024,Training & Education,Executive,St George's House Trust (Windsor Castle),180540,745
"Department for Energy, Security and Net Zero",The Coal Authority,01/02/2024,Mileage Payments,Executive,Staff Expenses Control,180991,8.86
"Department for Energy, Security and Net Zero",The Coal Authority,01/02/2024,Mileage Payments,Executive,Staff Expenses Control,180991,8.63
"Department for Energy, Security and Net Zero",The Coal Authority,07/02/2024,Mileage Payments,Executive,Staff Expenses Control,180991,6.93
"Department for Energy, Security and Net Zero",The Coal Authority,07/02/2024,Mileage Payments,Executive,Staff Expenses Control,180991,6.81
"Department for Energy, Security and Net Zero",The Coal Authority,07/05/2024,Mileage Payments,Executive,Staff Expenses Control,180991,8.86
"Department for Energy, Security and Net Zero",The Coal Authority,08/05/2024,Mileage Payments,Executive,Staff Expenses Control,180991,8.63
"Department for Energy, Security and Net Zero",The Coal Authority,23/01/2024,Personal Protective Equipment,Executive Assistants,Government Procurement Card,180874,21
"Department for Energy, Security and Net Zero",The Coal Authority,31/01/2024,Incidentals,Executive Assistants,Government Procurement Card,180874,12.33
"Department for Energy, Security and Net Zero",The Coal Authority,28/04/2024,Hotel & Accommodation,Executive Assistants,Government Procurement Card,181485,537.84
"Department for Energy, Security and Net Zero",The Coal Authority,23/04/2024,Canteen Equipment,Facilities,All Shires Foods Ltd,179734,142.25
"Department for Energy, Security and Net Zero",The Coal Authority,23/04/2024,Canteen Equipment,Facilities,All Shires Foods Ltd,179734,414.22
"Department for Energy, Security and Net Zero",The Coal Authority,18/04/2024,Canteen Equipment,Facilities,All Shires Foods Ltd,179735,50.68
"Department for Energy, Security and Net Zero",The Coal Authority,18/04/2024,Canteen Equipment,Facilities,All Shires Foods Ltd,179735,181.72
"Department for Energy, Security and Net Zero",The Coal Authority,18/04/2024,Canteen Equipment,Facilities,All Shires Foods Ltd,179735,103.56
"Department for Energy, Security and Net Zero",The Coal Authority,18/04/2024,Canteen Equipment,Facilities,All Shires Foods Ltd,179735,237.08
"Department for Energy, Security and Net Zero",The Coal Authority,18/04/2024,Canteen Equipment,Facilities,All Shires Foods Ltd,179735,152.25
"Department for Energy, Security and Net Zero",The Coal Authority,02/05/2024,Canteen Equipment,Facilities,All Shires Foods Ltd,180282,207.11
"Department for Energy, Security and Net Zero",The Coal Authority,02/05/2024,Canteen Equipment,Facilities,All Shires Foods Ltd,180284,142.25
"Department for Energy, Security and Net Zero",The Coal Authority,30/05/2024,Canteen Equipment,Facilities,All Shires Foods Ltd,181492,32.25
"Department for Energy, Security and Net Zero",The Coal Authority,01/05/2024,Fuel (Vehicle),Facilities,Allstar Business Solutions Ltd,179751,51.55
"Department for Energy, Security and Net Zero",The Coal Authority,01/05/2024,Fuel (Vehicle),Facilities,Allstar Business Solutions Ltd,179751,43.68
"Department for Energy, Security and Net Zero",The Coal Authority,01/05/2024,Fuel (Vehicle),Facilities,Allstar Business Solutions Ltd,179751,90.03
"Department for Energy, Security and Net Zero",The Coal Authority,01/05/2024,Fuel (Vehicle),Facilities,Allstar Business Solutions Ltd,179751,46.73
"Department for Energy, Security and Net Zero",The Coal Authority,01/05/2024,Fuel (Vehicle),Facilities,Allstar Business Solutions Ltd,179751,5.7
"Department for Energy, Security and Net Zero",The Coal Authority,08/05/2024,Fuel (Vehicle),Facilities,Allstar Business Solutions Ltd,180360,30.48
"Department for Energy, Security and Net Zero",The Coal Authority,08/05/2024,Fuel (Vehicle),Facilities,Allstar Business Solutions Ltd,180360,25.89
"Department for Energy, Security and Net Zero",The Coal Authority,08/05/2024,Fuel (Vehicle),Facilities,Allstar Business Solutions Ltd,180360,3.8
"Department for Energy, Security and Net Zero",The Coal Authority,15/05/2024,Fuel (Vehicle),Facilities,Allstar Business Solutions Ltd,180800,128.91
"Department for Energy, Security and Net Zero",The Coal Authority,15/05/2024,Fuel (Vehicle),Facilities,Allstar Business Solutions Ltd,180800,58.01
"Department for Energy, Security and Net Zero",The Coal Authority,15/05/2024,Fuel (Vehicle),Facilities,Allstar Business Solutions Ltd,180800,9.5
"Department for Energy, Security and Net Zero",The Coal Authority,22/05/2024,Fuel (Vehicle),Facilities,Allstar Business Solutions Ltd,181166,53.92
"Department for Energy, Security and Net Zero",The Coal Authority,22/05/2024,Fuel (Vehicle),Facilities,Allstar Business Solutions Ltd,181166,31.74
"Department for Energy, Security and Net Zero",The Coal Authority,22/05/2024,Fuel (Vehicle),Facilities,Allstar Business Solutions Ltd,181166,1.9
"Department for Energy, Security and Net Zero",The Coal Authority,26/04/2024,Site Services,Facilities,Biffa Waste Services Ltd,179485,339.53
"Department for Energy, Security and Net Zero",The Coal Authority,26/04/2024,Site Services,Facilities,Biffa Waste Services Ltd,179552,166.48
"Department for Energy, Security and Net Zero",The Coal Authority,26/04/2024,Site Services,Facilities,Biffa Waste Services Ltd,179552,151.56
"Department for Energy, Security and Net Zero",The Coal Authority,24/05/2024,Site Services,Facilities,Biffa Waste Services Ltd,181311,151.56
"Department for Energy, Security and Net Zero",The Coal Authority,24/05/2024,Site Services,Facilities,Biffa Waste Services Ltd,181311,166.48
"Department for Energy, Security and Net Zero",The Coal Authority,22/04/2024,Plant Maintenance,Facilities,Briggs & Forrester Building Services Maintenance L,179466,"1,554.80"
"Department for Energy, Security and Net Zero",The Coal Authority,22/04/2024,Plant Maintenance,Facilities,Briggs & Forrester Building Services Maintenance L,179467,724.64
"Department for Energy, Security and Net Zero",The Coal Authority,29/04/2024,Plant Maintenance,Facilities,Briggs & Forrester Building Services Maintenance L,179553,983.52
"Department for Energy, Security and Net Zero",The Coal Authority,30/04/2024,Plant Maintenance,Facilities,Briggs & Forrester Building Services Maintenance L,179556,"2,010.94"
"Department for Energy, Security and Net Zero",The Coal Authority,10/05/2024,Plant Maintenance,Facilities,Briggs & Forrester Building Services Maintenance L,180335,251.25
"Department for Energy, Security and Net Zero",The Coal Authority,30/04/2024,Plant Maintenance,Facilities,Dakro Air & Water Limited,179736,238.32
"Department for Energy, Security and Net Zero",The Coal Authority,21/05/2024,Plant Maintenance,Facilities,Dakro Air & Water Limited,181176,180
"Department for Energy, Security and Net Zero",The Coal Authority,28/05/2024,Plant Maintenance,Facilities,Dakro Air & Water Limited,181289,"1,147.04"
"Department for Energy, Security and Net Zero",The Coal Authority,09/04/2024,Electricity Usage,Facilities,Edf Energy,180031,"16,565.09"
"Department for Energy, Security and Net Zero",The Coal Authority,07/05/2024,Electricity Usage,Facilities,Edf Energy,181389,"18,254.67"
"Department for Energy, Security and Net Zero",The Coal Authority,01/05/2024,Short Term Vehicle Hire,Facilities,Enterprise Rent A Car,179773,"8,886.49"
"Department for Energy, Security and Net Zero",The Coal Authority,30/04/2024,Short Term Vehicle Hire,Facilities,Enterprise Rent A Car,180237,"2,855.79"
"Department for Energy, Security and Net Zero",The Coal Authority,18/05/2024,Short Term Vehicle Hire,Facilities,Enterprise Rent A Car,181118,163.3
"Department for Energy, Security and Net Zero",The Coal Authority,01/02/2024,Short Term Vehicle Hire,Facilities,Enterprise Rent A Car,181216,125.1
"Department for Energy, Security and Net Zero",The Coal Authority,02/05/2023,Short Term Vehicle Hire,Facilities,Enterprise Rent A Car,181252,438.55
"Department for Energy, Security and Net Zero",The Coal Authority,30/04/2024,Cleaning Materials,Facilities,Fidelis,181362,592.65
"Department for Energy, Security and Net Zero",The Coal Authority,25/03/2024,Outsourced Cleaning Staff,Facilities,Fidelis,181367,"6,151.79"
"Department for Energy, Security and Net Zero",The Coal Authority,25/04/2024,Outsourced Cleaning Staff,Facilities,Fidelis,181368,"6,151.79"
"Department for Energy, Security and Net Zero",The Coal Authority,25/05/2024,Outsourced Cleaning Staff,Facilities,Fidelis,181372,"6,151.79"
"Department for Energy, Security and Net Zero",The Coal Authority,08/04/2024,Site Repairs & Maintenance,Facilities,Government Procurement Card,181485,17.88
"Department for Energy, Security and Net Zero",The Coal Authority,08/04/2024,Site Repairs & Maintenance,Facilities,Government Procurement Card,181485,10.49
"Department for Energy, Security and Net Zero",The Coal Authority,08/04/2024,Sundry Office Expenses,Facilities,Government Procurement Card,181485,49.05
"Department for Energy, Security and Net Zero",The Coal Authority,09/04/2024,Site Repairs & Maintenance,Facilities,Government Procurement Card,181485,10.82
"Department for Energy, Security and Net Zero",The Coal Authority,10/04/2024,Site Repairs & Maintenance,Facilities,Government Procurement Card,181485,49.98
"Department for Energy, Security and Net Zero",The Coal Authority,15/04/2024,Sundry Office Expenses,Facilities,Government Procurement Card,181485,56.55
"Department for Energy, Security and Net Zero",The Coal Authority,17/04/2024,Sundry Office Expenses,Facilities,Government Procurement Card,181485,21.96
"Department for Energy, Security and Net Zero",The Coal Authority,22/04/2024,Office Furniture,Facilities,Government Procurement Card,181485,100
"Department for Energy, Security and Net Zero",The Coal Authority,22/04/2024,Site Repairs & Maintenance,Facilities,Government Procurement Card,181485,145.79
"Department for Energy, Security and Net Zero",The Coal Authority,22/04/2024,Site Repairs & Maintenance,Facilities,Government Procurement Card,181485,46.63
"Department for Energy, Security and Net Zero",The Coal Authority,22/04/2024,Sundry Office Expenses,Facilities,Government Procurement Card,181485,59.55
"Department for Energy, Security and Net Zero",The Coal Authority,25/04/2024,Site Repairs & Maintenance,Facilities,Government Procurement Card,181485,34.55
"Department for Energy, Security and Net Zero",The Coal Authority,29/04/2024,Incidentals,Facilities,Government Procurement Card,181485,5.3
"Department for Energy, Security and Net Zero",The Coal Authority,29/04/2024,Incidentals,Facilities,Government Procurement Card,181485,5.3
"Department for Energy, Security and Net Zero",The Coal Authority,29/04/2024,Sundry Office Expenses,Facilities,Government Procurement Card,181485,60.3
"Department for Energy, Security and Net Zero",The Coal Authority,30/04/2024,Site Repairs & Maintenance,Facilities,Government Procurement Card,181485,54.98
"Department for Energy, Security and Net Zero",The Coal Authority,01/05/2024,Site Repairs & Maintenance,Facilities,Government Procurement Card,181485,11.66
"Department for Energy, Security and Net Zero",The Coal Authority,02/05/2024,Training & Education,Facilities,Government Procurement Card,181485,85
"Department for Energy, Security and Net Zero",The Coal Authority,31/05/2024,Fuel (Vehicle),Facilities,Government Procurement Card,181517,24.66
"Department for Energy, Security and Net Zero",The Coal Authority,31/05/2024,Incidentals,Facilities,Government Procurement Card,181517,1.75
"Department for Energy, Security and Net Zero",The Coal Authority,31/05/2024,Site Repairs & Maintenance,Facilities,Government Procurement Card,181517,19.16
"Department for Energy, Security and Net Zero",The Coal Authority,31/05/2024,Site Repairs & Maintenance,Facilities,Government Procurement Card,181517,97.48
"Department for Energy, Security and Net Zero",The Coal Authority,31/05/2024,Site Repairs & Maintenance,Facilities,Government Procurement Card,181517,37.49
"Department for Energy, Security and Net Zero",The Coal Authority,31/05/2024,Site Repairs & Maintenance,Facilities,Government Procurement Card,181517,42.95
"Department for Energy, Security and Net Zero",The Coal Authority,31/05/2024,Subsistence Allowances,Facilities,Government Procurement Card,181517,1.63
"Department for Energy, Security and Net Zero",The Coal Authority,31/05/2024,Subsistence Allowances,Facilities,Government Procurement Card,181517,5.58
"Department for Energy, Security and Net Zero",The Coal Authority,31/05/2024,Subsistence Allowances,Facilities,Government Procurement Card,181517,5.43
"Department for Energy, Security and Net Zero",The Coal Authority,31/05/2024,Subsistence Allowances,Facilities,Government Procurement Card,181517,5.43
"Department for Energy, Security and Net Zero",The Coal Authority,31/05/2024,Subsistence Allowances,Facilities,Government Procurement Card,181517,5.43
"Department for Energy, Security and Net Zero",The Coal Authority,31/05/2024,Subsistence Allowances,Facilities,Government Procurement Card,181517,0.6
"Department for Energy, Security and Net Zero",The Coal Authority,31/05/2024,Subsistence Allowances,Facilities,Government Procurement Card,181517,0.6
"Department for Energy, Security and Net Zero",The Coal Authority,31/05/2024,Subsistence Allowances,Facilities,Government Procurement Card,181517,0.6
"Department for Energy, Security and Net Zero",The Coal Authority,31/05/2024,Subsistence Allowances,Facilities,Government Procurement Card,181517,23.08
"Department for Energy, Security and Net Zero",The Coal Authority,31/05/2024,Subsistence Allowances,Facilities,Government Procurement Card,181517,23.08
"Department for Energy, Security and Net Zero",The Coal Authority,31/05/2024,Subsistence Allowances,Facilities,Government Procurement Card,181517,23.08
"Department for Energy, Security and Net Zero",The Coal Authority,30/04/2024,Contract Hire Vehicles,Facilities,Harveys Autocentre Ltd,181406,110
"Department for Energy, Security and Net Zero",The Coal Authority,13/05/2024,Site Services,Facilities,Invincible Draincare Ltd,180797,"2,970.00"
"Department for Energy, Security and Net Zero",The Coal Authority,13/05/2024,Site Repairs & Maintenance,Facilities,Lee Glass & Glazing Nottm Ltd,180559,622.14
"Department for Energy, Security and Net Zero",The Coal Authority,07/05/2024,Contract Hire Vehicles,Facilities,Lex Autolease Ltd,180558,77.21
"Department for Energy, Security and Net Zero",The Coal Authority,07/05/2024,Contract Hire Vehicles,Facilities,Lex Autolease Ltd,180558,294.4
"Department for Energy, Security and Net Zero",The Coal Authority,07/05/2024,Contract Hire Vehicles,Facilities,Lex Autolease Ltd,180558,77.21
"Department for Energy, Security and Net Zero",The Coal Authority,07/05/2024,Contract Hire Vehicles,Facilities,Lex Autolease Ltd,180558,294.4
"Department for Energy, Security and Net Zero",The Coal Authority,29/04/2024,Site Repairs & Maintenance,Facilities,M. Shooter Electrical,179554,30
"Department for Energy, Security and Net Zero",The Coal Authority,20/05/2024,Site Repairs & Maintenance,Facilities,M. Shooter Electrical,181174,98
"Department for Energy, Security and Net Zero",The Coal Authority,20/05/2024,Site Repairs & Maintenance,Facilities,M. Shooter Electrical,181175,25
"Department for Energy, Security and Net Zero",The Coal Authority,30/01/2024,Site Services,Facilities,Personnel Hygiene Services Ltd,179726,"3,050.97"
"Department for Energy, Security and Net Zero",The Coal Authority,22/05/2024,Office Furniture,Facilities,Posturite Ltd,181203,412.04
"Department for Energy, Security and Net Zero",The Coal Authority,30/04/2024,Outsourced Security Staff,Facilities,Regent Office Care Ltd T/A Regent Samsic,180423,"9,659.50"
"Department for Energy, Security and Net Zero",The Coal Authority,30/04/2024,Site Services,Facilities,Restore Datashred,179606,210.35
"Department for Energy, Security and Net Zero",The Coal Authority,01/05/2024,Site Services,Facilities,Spacecare Ltd,180266,736.97
"Department for Energy, Security and Net Zero",The Coal Authority,03/05/2024,Plant Maintenance,Facilities,Stannah Lift Services Limited,180278,873.75
"Department for Energy, Security and Net Zero",The Coal Authority,20/05/2024,Plant Maintenance,Facilities,Stannah Lift Services Limited,181071,195.48
"Department for Energy, Security and Net Zero",The Coal Authority,27/02/2024,Plant Maintenance,Facilities,Total Integrated Solutions,180453,"4,732.42"
"Department for Energy, Security and Net Zero",The Coal Authority,27/04/2024,Water Charges,Facilities,Water Plus Limited,179555,868.77
"Department for Energy, Security and Net Zero",The Coal Authority,28/05/2024,Water Charges,Facilities,Water Plus Limited,181394,882.71
"Department for Energy, Security and Net Zero",The Coal Authority,17/05/2024,Site Services,Facilities,WST Limited,181060,304
"Department for Energy, Security and Net Zero",The Coal Authority,30/04/2024,Software Support & Maintenance - SaaS,Finance,Bottomline Technologies D/D,180711,186.56
